NUMERO _MANDATO;RIGA;IMPORTO _RIGA;IMPORTO _MANDATO;BENEFICIARIO;CIG;DATA _MANDATO;CAPITOLO;ART.;NUMERO_IMPEGNO;TITOLO;DESCR_ TITOLO;LIVELLO_II;DESCR_ LIVELLO_II;LIVELLO_III;DESCR_ LIVELLO_III;LIVELLO _IV;DESCR_ LIVELLO_IV;LIVELLO _V;DESCR_ LIVELLO_V;DATA _PAG_EFF
1620;1;600;600;"BERTOLDO PIETRO E 
ZAMENGO ELVIRA";;03/07/2017;4236;0;591;1;Spese correnti;3;Acquisto di beni e servizi;2;Acquisto di servizi;7;Utilizzo di beni di terzi;1;Locazione di beni immobili;03/07/2017
1621;1;250;250;SOGGETTI DIVERSI;;03/07/2017;4157;0;19;1;Spese correnti;4;Trasferimenti correnti;2;Trasferimenti correnti a Famiglie;2;Interventi assistenziali;999;Altri assegni e sussidi assistenziali;03/07/2017
1622;1;2.000,00;2.000,00;NEOPOST ITALIA SRL;ZA01F31EAC;03/07/2017;145;0;457;1;Spese correnti;3;Acquisto di beni e servizi;2;Acquisto di servizi;16;Servizi amministrativi;2;Spese postali;03/07/2017
1623;1;296;296;FIDELIA SRL - SOC. UNIPERSONALE;Z1D1F212FE;03/07/2017;993;0;443;1;Spese correnti;10;Altre spese correnti;4;Premi di assicurazione;99;Altri premi di assicurazione n.a.c.;999;Altri premi di assicurazione n.a.c.;03/07/2017
1624;1;2.500,07;2.500,07;FIDELIA SRL - SOC. UNIPERSONALE;Z33F2137B;03/07/2017;993;0;444;1;Spese correnti;10;Altre spese correnti;4;Premi di assicurazione;99;Altri premi di assicurazione n.a.c.;999;Altri premi di assicurazione n.a.c.;03/07/2017
1625;1;1.800,00;1.800,00;"IPAB ""LUIGI MARIUTTO""- CENTRO DI SERVIZI ALLA PERSONA";ZA41CCD01F;03/07/2017;3844;0;398;1;Spese correnti;3;Acquisto di beni e servizi;2;Acquisto di servizi;15;Contratti di servizio pubblico;8;Contratti di servizio di assistenza sociale residenziale e semiresidenziale;03/07/2017
1626;1;513,5;513,5;ZAMENGO FIDALMA;;03/07/2017;3844;0;381;1;Spese correnti;3;Acquisto di beni e servizi;2;Acquisto di servizi;15;Contratti di servizio pubblico;8;Contratti di servizio di assistenza sociale residenziale e semiresidenziale;03/07/2017
1627;1;366,71;366,71;MANENTE LUIGIA;;03/07/2017;3844;0;379;1;Spese correnti;3;Acquisto di beni e servizi;2;Acquisto di servizi;15;Contratti di servizio pubblico;8;Contratti di servizio di assistenza sociale residenziale e semiresidenziale;03/07/2017
1628;1;279,37;279,37;PERALE LINA;;03/07/2017;3844;0;378;1;Spese correnti;3;Acquisto di beni e servizi;2;Acquisto di servizi;15;Contratti di servizio pubblico;8;Contratti di servizio di assistenza sociale residenziale e semiresidenziale;03/07/2017
1629;1;300;300;MASIERO DORO -SABBADIN RITA;;03/07/2017;3844;0;257;1;Spese correnti;3;Acquisto di beni e servizi;2;Acquisto di servizi;15;Contratti di servizio pubblico;8;Contratti di servizio di assistenza sociale residenziale e semiresidenziale;03/07/2017
1630;1;250;250;GALLO MADDALENA;;03/07/2017;3844;0;248;1;Spese correnti;3;Acquisto di beni e servizi;2;Acquisto di servizi;15;Contratti di servizio pubblico;8;Contratti di servizio di assistenza sociale residenziale e semiresidenziale;03/07/2017
1631;1;500;500;CAZZIN TERESA;;03/07/2017;3844;0;238;1;Spese correnti;3;Acquisto di beni e servizi;2;Acquisto di servizi;15;Contratti di servizio pubblico;8;Contratti di servizio di assistenza sociale residenziale e semiresidenziale;03/07/2017
1632;1;110;220;SOGGETTI DIVERSI;;03/07/2017;3957;54;681;1;Spese correnti;4;Trasferimenti correnti;2;Trasferimenti correnti a Famiglie;5;Altri trasferimenti a famiglie;999;Altri trasferimenti a famiglie n.a.c.;03/07/2017
1632;2;110;220;SOGGETTI DIVERSI;;03/07/2017;3957;54;681;1;Spese correnti;4;Trasferimenti correnti;2;Trasferimenti correnti a Famiglie;5;Altri trasferimenti a famiglie;999;Altri trasferimenti a famiglie n.a.c.;03/07/2017
1633;1;1.100,00;1.100,00;PREFETTURA DI VENEZIA;;03/07/2017;621;0;439;1;Spese correnti;3;Acquisto di beni e servizi;1;Acquisto di beni;2;Altri beni di consumo;999;Altri beni e materiali di consumo n.a.c.;03/07/2017
1634;1;660;660;SOGGETTI DIVERSI;;03/07/2017;3957;54;681;1;Spese correnti;4;Trasferimenti correnti;2;Trasferimenti correnti a Famiglie;5;Altri trasferimenti a famiglie;999;Altri trasferimenti a famiglie n.a.c.;03/07/2017
1635;1;290;290;FIDELIA SRL - SOC. UNIPERSONALE;Z9B1F21499;04/07/2017;993;0;445;1;Spese correnti;10;Altre spese correnti;4;Premi di assicurazione;99;Altri premi di assicurazione n.a.c.;999;Altri premi di assicurazione n.a.c.;04/07/2017
1636;1;440;4.460,00;SOGGETTI DIVERSI;;04/07/2017;3957;54;681;1;Spese correnti;4;Trasferimenti correnti;2;Trasferimenti correnti a Famiglie;5;Altri trasferimenti a famiglie;999;Altri trasferimenti a famiglie n.a.c.;04/07/2017
1636;2;440;4.460,00;SOGGETTI DIVERSI;;04/07/2017;3957;54;681;1;Spese correnti;4;Trasferimenti correnti;2;Trasferimenti correnti a Famiglie;5;Altri trasferimenti a famiglie;999;Altri trasferimenti a famiglie n.a.c.;04/07/2017
1636;3;440;4.460,00;SOGGETTI DIVERSI;;04/07/2017;3957;54;681;1;Spese correnti;4;Trasferimenti correnti;2;Trasferimenti correnti a Famiglie;5;Altri trasferimenti a famiglie;999;Altri trasferimenti a famiglie n.a.c.;04/07/2017
1636;4;520;4.460,00;SOGGETTI DIVERSI;;04/07/2017;3957;54;681;1;Spese correnti;4;Trasferimenti correnti;2;Trasferimenti correnti a Famiglie;5;Altri trasferimenti a famiglie;999;Altri trasferimenti a famiglie n.a.c.;04/07/2017
1636;5;660;4.460,00;SOGGETTI DIVERSI;;04/07/2017;3957;54;681;1;Spese correnti;4;Trasferimenti correnti;2;Trasferimenti correnti a Famiglie;5;Altri trasferimenti a famiglie;999;Altri trasferimenti a famiglie n.a.c.;04/07/2017
1636;6;260;4.460,00;SOGGETTI DIVERSI;;04/07/2017;3957;54;681;1;Spese correnti;4;Trasferimenti correnti;2;Trasferimenti correnti a Famiglie;5;Altri trasferimenti a famiglie;999;Altri trasferimenti a famiglie n.a.c.;04/07/2017
1636;7;520;4.460,00;SOGGETTI DIVERSI;;04/07/2017;3957;54;681;1;Spese correnti;4;Trasferimenti correnti;2;Trasferimenti correnti a Famiglie;5;Altri trasferimenti a famiglie;999;Altri trasferimenti a famiglie n.a.c.;04/07/2017
1636;8;660;4.460,00;SOGGETTI DIVERSI;;04/07/2017;3957;54;681;1;Spese correnti;4;Trasferimenti correnti;2;Trasferimenti correnti a Famiglie;5;Altri trasferimenti a famiglie;999;Altri trasferimenti a famiglie n.a.c.;04/07/2017
1636;9;520;4.460,00;SOGGETTI DIVERSI;;04/07/2017;3957;54;681;1;Spese correnti;4;Trasferimenti correnti;2;Trasferimenti correnti a Famiglie;5;Altri trasferimenti a famiglie;999;Altri trasferimenti a famiglie n.a.c.;04/07/2017
1637;1;82,6;82,6;GRIGGIO ANDREA;Z761EF0AEB;04/07/2017;1840;0;416;1;Spese correnti;3;Acquisto di beni e servizi;2;Acquisto di servizi;11;Prestazioni professionali e specialistiche;999;Altre prestazioni professionali e specialistiche n.a.c.;04/07/2017
1638;1;1.512,00;1.512,00;FIDELIA SRL - SOC. UNIPERSONALE;ZF51F2135D;04/07/2017;992;0;437;1;Spese correnti;10;Altre spese correnti;4;Premi di assicurazione;1;Premi di assicurazione contro i danni;2;Premi di assicurazione su beni immobili;04/07/2017
1639;1;2.376,00;2.376,00;FIDELIA SRL - SOC. UNIPERSONALE;ZDD1F212C7;04/07/2017;992;0;440;1;Spese correnti;10;Altre spese correnti;4;Premi di assicurazione;1;Premi di assicurazione contro i danni;1;Premi di assicurazione su beni mobili;04/07/2017
1640;1;9.620,00;9.620,00;FIDELIA SRL - SOC. UNIPERSONALE;Z191F212E5;04/07/2017;992;0;441;1;Spese correnti;10;Altre spese correnti;4;Premi di assicurazione;1;Premi di assicurazione contro i danni;3;Premi di assicurazione per responsabilit? civile verso terzi;04/07/2017
1641;1;4.122,52;4.122,52;FASOLO GIANNI;;04/07/2017;3844;0;420;1;Spese correnti;3;Acquisto di beni e servizi;2;Acquisto di servizi;15;Contratti di servizio pubblico;1;Contratti di servizio di trasporto pubblico;04/07/2017
1642;1;300;300;PARROCCHIA ANN.NE BEATA VERGINE MARIA STIGLIANO;;04/07/2017;1859;0;384;1;Spese correnti;4;Trasferimenti correnti;4;Trasferimenti correnti a Istituzioni Sociali Private;1;Trasferimenti correnti a Istituzioni Sociali Private;1;Trasferimenti correnti a Istituzioni Sociali Private;04/07/2017
1643;1;300;300;PARROCCHIA DI S.BIAGIO CALTANA;;04/07/2017;1859;0;383;1;Spese correnti;4;Trasferimenti correnti;4;Trasferimenti correnti a Istituzioni Sociali Private;1;Trasferimenti correnti a Istituzioni Sociali Private;1;Trasferimenti correnti a Istituzioni Sociali Private;04/07/2017
1644;1;400;400;PARROCCHIA DI SAN GIACOMO CASELLE;;04/07/2017;1859;0;382;1;Spese correnti;4;Trasferimenti correnti;4;Trasferimenti correnti a Istituzioni Sociali Private;1;Trasferimenti correnti a Istituzioni Sociali Private;1;Trasferimenti correnti a Istituzioni Sociali Private;04/07/2017
1645;1;1.500,00;1.500,00;LABS LABORATORIO SOLIDALE ONLUS;;04/07/2017;1859;0;261;1;Spese correnti;4;Trasferimenti correnti;4;Trasferimenti correnti a Istituzioni Sociali Private;1;Trasferimenti correnti a Istituzioni Sociali Private;1;Trasferimenti correnti a Istituzioni Sociali Private;04/07/2017
1646;1;2.200,00;2.200,00;CIRCOLO 1554 ASSOCIAZIONE CULTURALE;;04/07/2017;1859;0;284;1;Spese correnti;4;Trasferimenti correnti;4;Trasferimenti correnti a Istituzioni Sociali Private;1;Trasferimenti correnti a Istituzioni Sociali Private;1;Trasferimenti correnti a Istituzioni Sociali Private;04/07/2017
1647;1;1.758,70;1.758,70;"IPAB ""LUIGI MARIUTTO""- CENTRO DI SERVIZI ALLA PERSONA";;04/07/2017;3844;0;476;1;Spese correnti;3;Acquisto di beni e servizi;2;Acquisto di servizi;15;Contratti di servizio pubblico;999;Altre spese per contratti di servizio pubblico;04/07/2017
1648;1;384,81;384,81;COMUNE DI MIRANO;;04/07/2017;4051;0;58;1;Spese correnti;4;Trasferimenti correnti;1;Trasferimenti correnti a Amministrazioni Pubbliche;2;Trasferimenti correnti a Amministrazioni Locali;3;Trasferimenti correnti a Comuni;04/07/2017
1649;1;280;280;FINEGIL EDITORIALE SPA DIV.NORD-EST;Z211D5DEEB;04/07/2017;1820;0;188;1;Spese correnti;3;Acquisto di beni e servizi;1;Acquisto di beni;1;Giornali, riviste e pubblicazioni;1;Giornali e riviste;04/07/2017
1650;1;400;400;SOGGETTI DIVERSI;;04/07/2017;3957;50;196;1;Spese correnti;4;Trasferimenti correnti;2;Trasferimenti correnti a Famiglie;2;Interventi assistenziali;999;Altri assegni e sussidi assistenziali;04/07/2017
1651;1;1.200,00;14.400,00;SOGGETTI DIVERSI;;04/07/2017;3957;50;380;1;Spese correnti;4;Trasferimenti correnti;2;Trasferimenti correnti a Famiglie;2;Interventi assistenziali;999;Altri assegni e sussidi assistenziali;04/07/2017
1651;2;1.200,00;14.400,00;SOGGETTI DIVERSI;;04/07/2017;3957;50;380;1;Spese correnti;4;Trasferimenti correnti;2;Trasferimenti correnti a Famiglie;2;Interventi assistenziali;999;Altri assegni e sussidi assistenziali;04/07/2017
1651;3;1.200,00;14.400,00;SOGGETTI DIVERSI;;04/07/2017;3957;50;380;1;Spese correnti;4;Trasferimenti correnti;2;Trasferimenti correnti a Famiglie;2;Interventi assistenziali;999;Altri assegni e sussidi assistenziali;04/07/2017
1651;4;1.200,00;14.400,00;SOGGETTI DIVERSI;;04/07/2017;3957;50;380;1;Spese correnti;4;Trasferimenti correnti;2;Trasferimenti correnti a Famiglie;2;Interventi assistenziali;999;Altri assegni e sussidi assistenziali;04/07/2017
1651;5;1.200,00;14.400,00;SOGGETTI DIVERSI;;04/07/2017;3957;50;380;1;Spese correnti;4;Trasferimenti correnti;2;Trasferimenti correnti a Famiglie;2;Interventi assistenziali;999;Altri assegni e sussidi assistenziali;04/07/2017
1651;6;1.200,00;14.400,00;SOGGETTI DIVERSI;;04/07/2017;3957;50;380;1;Spese correnti;4;Trasferimenti correnti;2;Trasferimenti correnti a Famiglie;2;Interventi assistenziali;999;Altri assegni e sussidi assistenziali;04/07/2017
1651;7;1.200,00;14.400,00;SOGGETTI DIVERSI;;04/07/2017;3957;50;380;1;Spese correnti;4;Trasferimenti correnti;2;Trasferimenti correnti a Famiglie;2;Interventi assistenziali;999;Altri assegni e sussidi assistenziali;04/07/2017
1651;8;1.200,00;14.400,00;SOGGETTI DIVERSI;;04/07/2017;3957;50;380;1;Spese correnti;4;Trasferimenti correnti;2;Trasferimenti correnti a Famiglie;2;Interventi assistenziali;999;Altri assegni e sussidi assistenziali;04/07/2017
1651;9;1.200,00;14.400,00;SOGGETTI DIVERSI;;04/07/2017;3957;50;380;1;Spese correnti;4;Trasferimenti correnti;2;Trasferimenti correnti a Famiglie;2;Interventi assistenziali;999;Altri assegni e sussidi assistenziali;04/07/2017
1651;10;1.200,00;14.400,00;SOGGETTI DIVERSI;;04/07/2017;3957;50;380;1;Spese correnti;4;Trasferimenti correnti;2;Trasferimenti correnti a Famiglie;2;Interventi assistenziali;999;Altri assegni e sussidi assistenziali;04/07/2017
1651;11;1.200,00;14.400,00;SOGGETTI DIVERSI;;04/07/2017;3957;50;380;1;Spese correnti;4;Trasferimenti correnti;2;Trasferimenti correnti a Famiglie;2;Interventi assistenziali;999;Altri assegni e sussidi assistenziali;04/07/2017
1651;12;1.200,00;14.400,00;SOGGETTI DIVERSI;;04/07/2017;3957;50;380;1;Spese correnti;4;Trasferimenti correnti;2;Trasferimenti correnti a Famiglie;2;Interventi assistenziali;999;Altri assegni e sussidi assistenziali;04/07/2017
1657;1;19.505,22;19.505,22;AGENZIA DELLE ENTRATE - IVA;;06/07/2017;291;0;459;1;Spese correnti;10;Altre spese correnti;3;Versamenti IVA a debito;1;Versamenti IVA a debito per le gestioni commerciali;1;Versamenti IVA a debito per le gestioni commerciali;06/07/2017
1658;1;2.749,79;2.749,79;PENNACCHIO BARBARA;Z591BC323E;06/07/2017;540;0;685;1;Spese correnti;3;Acquisto di beni e servizi;2;Acquisto di servizi;11;Prestazioni professionali e specialistiche;999;Altre prestazioni professionali e specialistiche n.a.c.;06/07/2017
1659;1;1.168,15;1.168,15;FALEGNAMERIA DAL CORSO SNC;ZF41E4EB2F;06/07/2017;548;0;322;1;Spese correnti;3;Acquisto di beni e servizi;2;Acquisto di servizi;9;Manutenzione ordinaria e riparazioni;8;Manutenzione ordinaria e riparazioni di beni immobili;06/07/2017
1660;1;67;67;ANZIANI E NON SOLO SOC.COOP.SOCIALE;ZAD1E062C8;06/07/2017;833;0;276;1;Spese correnti;3;Acquisto di beni e servizi;2;Acquisto di servizi;4;Acquisto di servizi per formazione e addestramento del personale dell'ente;999;Acquisto di servizi per altre spese per formazione e addestramento n.a.c.;06/07/2017
1661;1;100;100;KAIROS SRL;Z0B1E658D9;06/07/2017;833;0;346;1;Spese correnti;3;Acquisto di beni e servizi;2;Acquisto di servizi;4;Acquisto di servizi per formazione e addestramento del personale dell'ente;4;Acquisto di servizi per formazione obbligatoria;06/07/2017
1662;1;4,14;44,95;SONEPAR ITALIA SPA;Z671D95B62;06/07/2017;1338;0;204;1;Spese correnti;3;Acquisto di beni e servizi;2;Acquisto di servizi;9;Manutenzione ordinaria e riparazioni;4;Manutenzione ordinaria e riparazioni di impianti e macchinari;06/07/2017
1662;2;40,81;44,95;SONEPAR ITALIA SPA;Z671D95B62;06/07/2017;1338;0;204;1;Spese correnti;3;Acquisto di beni e servizi;2;Acquisto di servizi;9;Manutenzione ordinaria e riparazioni;4;Manutenzione ordinaria e riparazioni di impianti e macchinari;06/07/2017
1663;1;82,6;82,6;PIOVESAN EMANUELA;ZC21EF0CC6;06/07/2017;1840;0;418;1;Spese correnti;3;Acquisto di beni e servizi;2;Acquisto di servizi;11;Prestazioni professionali e specialistiche;999;Altre prestazioni professionali e specialistiche n.a.c.;06/07/2017
1664;1;1.153,90;1.153,90;TIPOGRAFIA VERONESE SRL;Z4F1E8B67A;06/07/2017;1849;0;362;1;Spese correnti;3;Acquisto di beni e servizi;2;Acquisto di servizi;99;Altri servizi;999;Altri servizi diversi n.a.c.;06/07/2017
1665;1;25.098,45;25.098,45;SOCIETA'AGRICOLA VIVAI GARDIN S.S.;ZB51E96AEC;06/07/2017;2538;0;373;1;Spese correnti;3;Acquisto di beni e servizi;2;Acquisto di servizi;9;Manutenzione ordinaria e riparazioni;12;Manutenzione ordinaria e riparazioni di terreni e beni materiali non prodotti;06/07/2017
1666;1;1.202,00;1.202,00;PROVINCIA RELIGIOSA DI S. MARZIANO DI DON ORIONE;Z501ECB174;06/07/2017;4044;0;386;1;Spese correnti;3;Acquisto di beni e servizi;2;Acquisto di servizi;15;Contratti di servizio pubblico;8;Contratti di servizio di assistenza sociale residenziale e semiresidenziale;06/07/2017
1667;1;9.688,94;9.688,94;EDILTREVISO SRL;6891647F00;06/07/2017;7450;1;909;2;Spese in conto capitale;2;Investimenti fissi lordi e acquisto di terreni;1;Beni materiali;10;Beni immobili di valore culturale, storico ed artistico;999;Beni immobili di valore culturale, storico ed artistico n.a.c.;06/07/2017
1668;1;45.000,00;45.000,00;ASFALTI BARIZZA DI SAMBO LEONARDO;6923677EFE;06/07/2017;8503;0;570;2;Spese in conto capitale;2;Investimenti fissi lordi e acquisto di terreni;1;Beni materiali;9;Beni immobili;12;Infrastrutture stradali;06/07/2017
1669;1;4.201,51;4.201,51;ASFALTI BARIZZA DI SAMBO LEONARDO;6923677EFE;06/07/2017;8503;0;572;2;Spese in conto capitale;2;Investimenti fissi lordi e acquisto di terreni;1;Beni materiali;9;Beni immobili;12;Infrastrutture stradali;06/07/2017
1670;1;30.900,49;30.900,49;ASFALTI BARIZZA DI SAMBO LEONARDO;6923677EFE;06/07/2017;8558;0;571;2;Spese in conto capitale;2;Investimenti fissi lordi e acquisto di terreni;1;Beni materiali;9;Beni immobili;12;Infrastrutture stradali;06/07/2017
1671;1;342,6;342,6;F.G. DI NALESSO GABRIELE & C. SAS;Z0D1EEFF49;06/07/2017;8565;0;413;2;Spese in conto capitale;2;Investimenti fissi lordi e acquisto di terreni;1;Beni materiali;9;Beni immobili;12;Infrastrutture stradali;06/07/2017
1672;1;1.073,25;1.073,25;MANCARELLA MARCO;Z501E010D9;07/07/2017;833;0;275;1;Spese correnti;3;Acquisto di beni e servizi;2;Acquisto di servizi;4;Acquisto di servizi per formazione e addestramento del personale dell'ente;999;Acquisto di servizi per altre spese per formazione e addestramento n.a.c.;07/07/2017
1673;1;115,2;115,2;I.N.P.S. SEDE DI VENEZIA;Z501E010D9;07/07/2017;833;0;275;1;Spese correnti;3;Acquisto di beni e servizi;2;Acquisto di servizi;4;Acquisto di servizi per formazione e addestramento del personale dell'ente;999;Acquisto di servizi per altre spese per formazione e addestramento n.a.c.;07/07/2017
1675;1;3.882,60;3.882,60;SARTORI ANDREA;Z5C1C07D2D;10/07/2017;8416;0;714;2;Spese in conto capitale;2;Investimenti fissi lordi e acquisto di terreni;1;Beni materiali;9;Beni immobili;16;Impianti sportivi;10/07/2017
1676;1;5.000,00;5.000,00;SARTORI ANDREA;Z5C1C07D2D;10/07/2017;8416;0;714;2;Spese in conto capitale;2;Investimenti fissi lordi e acquisto di terreni;1;Beni materiali;9;Beni immobili;16;Impianti sportivi;10/07/2017
1677;1;3.260,67;3.260,67;MONTIN MANUEL;Z801A7A5C1;10/07/2017;8503;0;431;2;Spese in conto capitale;2;Investimenti fissi lordi e acquisto di terreni;1;Beni materiali;9;Beni immobili;12;Infrastrutture stradali;10/07/2017
1678;1;14.000,00;14.000,00;SCUOLA MATERNA S.GIUSEPPE;;10/07/2017;1259;0;464;1;Spese correnti;4;Trasferimenti correnti;4;Trasferimenti correnti a Istituzioni Sociali Private;1;Trasferimenti correnti a Istituzioni Sociali Private;1;Trasferimenti correnti a Istituzioni Sociali Private;10/07/2017
1679;1;16.500,00;16.500,00;ASILO INFANTILE F.T.CROVATO;;10/07/2017;1259;0;460;1;Spese correnti;4;Trasferimenti correnti;4;Trasferimenti correnti a Istituzioni Sociali Private;1;Trasferimenti correnti a Istituzioni Sociali Private;1;Trasferimenti correnti a Istituzioni Sociali Private;10/07/2017
1680;1;22.000,00;22.000,00;SCUOLA MATERNA MARIA BAMBINA;;10/07/2017;1259;0;462;1;Spese correnti;4;Trasferimenti correnti;4;Trasferimenti correnti a Istituzioni Sociali Private;1;Trasferimenti correnti a Istituzioni Sociali Private;1;Trasferimenti correnti a Istituzioni Sociali Private;10/07/2017
1681;1;16.000,00;16.000,00;SC.MAT.MADONNA DEL ROSARIO/ASILO NIDO;;10/07/2017;1259;0;461;1;Spese correnti;4;Trasferimenti correnti;4;Trasferimenti correnti a Istituzioni Sociali Private;1;Trasferimenti correnti a Istituzioni Sociali Private;1;Trasferimenti correnti a Istituzioni Sociali Private;10/07/2017
1682;1;16.000,00;16.000,00;SCUOLA DELL'INFANZIA SACRO CUORE;;10/07/2017;1259;0;463;1;Spese correnti;4;Trasferimenti correnti;4;Trasferimenti correnti a Istituzioni Sociali Private;1;Trasferimenti correnti a Istituzioni Sociali Private;1;Trasferimenti correnti a Istituzioni Sociali Private;10/07/2017
1683;1;50;8.561,88;SOGGETTI DIVERSI;;11/07/2017;4157;0;16;1;Spese correnti;4;Trasferimenti correnti;2;Trasferimenti correnti a Famiglie;2;Interventi assistenziali;999;Altri assegni e sussidi assistenziali;11/07/2017
1683;2;21,88;8.561,88;ATER AZ.TERR.EDIL.RESIDENZIALE;;11/07/2017;4157;0;16;1;Spese correnti;4;Trasferimenti correnti;2;Trasferimenti correnti a Famiglie;2;Interventi assistenziali;999;Altri assegni e sussidi assistenziali;11/07/2017
1683;3;300;8.561,88;SOGGETTI DIVERSI;;11/07/2017;4157;0;16;1;Spese correnti;4;Trasferimenti correnti;2;Trasferimenti correnti a Famiglie;2;Interventi assistenziali;999;Altri assegni e sussidi assistenziali;11/07/2017
1683;4;130;8.561,88;SOGGETTI DIVERSI;;11/07/2017;4157;0;16;1;Spese correnti;4;Trasferimenti correnti;2;Trasferimenti correnti a Famiglie;2;Interventi assistenziali;999;Altri assegni e sussidi assistenziali;11/07/2017
1683;5;100;8.561,88;SOGGETTI DIVERSI;;11/07/2017;4157;0;16;1;Spese correnti;4;Trasferimenti correnti;2;Trasferimenti correnti a Famiglie;2;Interventi assistenziali;999;Altri assegni e sussidi assistenziali;11/07/2017
1683;6;130;8.561,88;SOGGETTI DIVERSI;;11/07/2017;4157;0;16;1;Spese correnti;4;Trasferimenti correnti;2;Trasferimenti correnti a Famiglie;2;Interventi assistenziali;999;Altri assegni e sussidi assistenziali;11/07/2017
1683;7;100;8.561,88;SOGGETTI DIVERSI;;11/07/2017;4157;0;16;1;Spese correnti;4;Trasferimenti correnti;2;Trasferimenti correnti a Famiglie;2;Interventi assistenziali;999;Altri assegni e sussidi assistenziali;11/07/2017
1683;8;130;8.561,88;SOGGETTI DIVERSI;;11/07/2017;4157;0;16;1;Spese correnti;4;Trasferimenti correnti;2;Trasferimenti correnti a Famiglie;2;Interventi assistenziali;999;Altri assegni e sussidi assistenziali;11/07/2017
1683;9;150;8.561,88;SOGGETTI DIVERSI;;11/07/2017;4157;0;16;1;Spese correnti;4;Trasferimenti correnti;2;Trasferimenti correnti a Famiglie;2;Interventi assistenziali;999;Altri assegni e sussidi assistenziali;11/07/2017
1683;10;150;8.561,88;SOGGETTI DIVERSI;;11/07/2017;4157;0;16;1;Spese correnti;4;Trasferimenti correnti;2;Trasferimenti correnti a Famiglie;2;Interventi assistenziali;999;Altri assegni e sussidi assistenziali;11/07/2017
1683;11;2.970,00;8.561,88;SOGGETTI DIVERSI;;11/07/2017;4157;0;16;1;Spese correnti;4;Trasferimenti correnti;2;Trasferimenti correnti a Famiglie;2;Interventi assistenziali;999;Altri assegni e sussidi assistenziali;11/07/2017
1683;12;650;8.561,88;SOGGETTI DIVERSI;;11/07/2017;4157;0;16;1;Spese correnti;4;Trasferimenti correnti;2;Trasferimenti correnti a Famiglie;2;Interventi assistenziali;999;Altri assegni e sussidi assistenziali;11/07/2017
1683;13;100;8.561,88;SOGGETTI DIVERSI;;11/07/2017;4157;0;16;1;Spese correnti;4;Trasferimenti correnti;2;Trasferimenti correnti a Famiglie;2;Interventi assistenziali;999;Altri assegni e sussidi assistenziali;11/07/2017
1683;14;150;8.561,88;SOGGETTI DIVERSI;;11/07/2017;4157;0;16;1;Spese correnti;4;Trasferimenti correnti;2;Trasferimenti correnti a Famiglie;2;Interventi assistenziali;999;Altri assegni e sussidi assistenziali;11/07/2017
1683;15;50;8.561,88;SOGGETTI DIVERSI;;11/07/2017;4157;0;16;1;Spese correnti;4;Trasferimenti correnti;2;Trasferimenti correnti a Famiglie;2;Interventi assistenziali;999;Altri assegni e sussidi assistenziali;11/07/2017
1683;16;150;8.561,88;SOGGETTI DIVERSI;;11/07/2017;4157;0;16;1;Spese correnti;4;Trasferimenti correnti;2;Trasferimenti correnti a Famiglie;2;Interventi assistenziali;999;Altri assegni e sussidi assistenziali;11/07/2017
1683;17;590;8.561,88;SOGGETTI DIVERSI;;11/07/2017;4157;0;16;1;Spese correnti;4;Trasferimenti correnti;2;Trasferimenti correnti a Famiglie;2;Interventi assistenziali;999;Altri assegni e sussidi assistenziali;11/07/2017
1683;18;130;8.561,88;SOGGETTI DIVERSI;;11/07/2017;4157;0;16;1;Spese correnti;4;Trasferimenti correnti;2;Trasferimenti correnti a Famiglie;2;Interventi assistenziali;999;Altri assegni e sussidi assistenziali;11/07/2017
1683;19;300;8.561,88;SOGGETTI DIVERSI;;11/07/2017;4157;0;16;1;Spese correnti;4;Trasferimenti correnti;2;Trasferimenti correnti a Famiglie;2;Interventi assistenziali;999;Altri assegni e sussidi assistenziali;11/07/2017
1683;20;150;8.561,88;SOGGETTI DIVERSI;;11/07/2017;4157;0;16;1;Spese correnti;4;Trasferimenti correnti;2;Trasferimenti correnti a Famiglie;2;Interventi assistenziali;999;Altri assegni e sussidi assistenziali;11/07/2017
1683;21;100;8.561,88;SOGGETTI DIVERSI;;11/07/2017;4157;0;16;1;Spese correnti;4;Trasferimenti correnti;2;Trasferimenti correnti a Famiglie;2;Interventi assistenziali;999;Altri assegni e sussidi assistenziali;11/07/2017
1683;22;600;8.561,88;SOGGETTI DIVERSI;;11/07/2017;4157;0;16;1;Spese correnti;4;Trasferimenti correnti;2;Trasferimenti correnti a Famiglie;2;Interventi assistenziali;999;Altri assegni e sussidi assistenziali;11/07/2017
1683;23;300;8.561,88;SOGGETTI DIVERSI;;11/07/2017;4157;0;16;1;Spese correnti;4;Trasferimenti correnti;2;Trasferimenti correnti a Famiglie;2;Interventi assistenziali;999;Altri assegni e sussidi assistenziali;11/07/2017
1683;24;250;8.561,88;SOGGETTI DIVERSI;;11/07/2017;4157;0;16;1;Spese correnti;4;Trasferimenti correnti;2;Trasferimenti correnti a Famiglie;2;Interventi assistenziali;999;Altri assegni e sussidi assistenziali;11/07/2017
1683;25;200;8.561,88;SOGGETTI DIVERSI;;11/07/2017;4157;0;16;1;Spese correnti;4;Trasferimenti correnti;2;Trasferimenti correnti a Famiglie;2;Interventi assistenziali;999;Altri assegni e sussidi assistenziali;11/07/2017
1683;26;130;8.561,88;SOGGETTI DIVERSI;;11/07/2017;4157;0;16;1;Spese correnti;4;Trasferimenti correnti;2;Trasferimenti correnti a Famiglie;2;Interventi assistenziali;999;Altri assegni e sussidi assistenziali;11/07/2017
1683;27;220;8.561,88;SOGGETTI DIVERSI;;11/07/2017;4157;0;16;1;Spese correnti;4;Trasferimenti correnti;2;Trasferimenti correnti a Famiglie;2;Interventi assistenziali;999;Altri assegni e sussidi assistenziali;11/07/2017
1683;28;160;8.561,88;SOGGETTI DIVERSI;;11/07/2017;4157;0;16;1;Spese correnti;4;Trasferimenti correnti;2;Trasferimenti correnti a Famiglie;2;Interventi assistenziali;999;Altri assegni e sussidi assistenziali;11/07/2017
1683;29;100;8.561,88;SOGGETTI DIVERSI;;11/07/2017;4157;0;16;1;Spese correnti;4;Trasferimenti correnti;2;Trasferimenti correnti a Famiglie;2;Interventi assistenziali;999;Altri assegni e sussidi assistenziali;11/07/2017
1684;1;1.200,00;1.200,00;GOTTARDO DINO & C.SNC;Z861EF7438;11/07/2017;522;0;421;1;Spese correnti;3;Acquisto di beni e servizi;1;Acquisto di beni;2;Altri beni di consumo;999;Altri beni e materiali di consumo n.a.c.;11/07/2017
1685;1;1.500,00;1.500,00;GOTTARDO DINO & C.SNC;Z861EF7438;11/07/2017;548;0;422;1;Spese correnti;3;Acquisto di beni e servizi;2;Acquisto di servizi;9;Manutenzione ordinaria e riparazioni;8;Manutenzione ordinaria e riparazioni di beni immobili;11/07/2017
1686;1;687,96;687,96;KYOCERA DOCUMENT SOLUTIONS ITALIA SPA;Z3517CFFA1;11/07/2017;748;0;70;1;Spese correnti;3;Acquisto di beni e servizi;2;Acquisto di servizi;19;Servizi informatici e di telecomunicazioni;9;Servizi per le postazioni di lavoro e relativa manutenzione;11/07/2017
1687;1;16.165,00;16.165,00;HALLEY VENETO SRL;Z2D1ED18C6;11/07/2017;748;0;400;1;Spese correnti;3;Acquisto di beni e servizi;2;Acquisto di servizi;19;Servizi informatici e di telecomunicazioni;1;Gestione e manutenzione applicazioni;11/07/2017
1688;1;2.000,00;2.000,00;GOTTARDO DINO & C.SNC;Z861EF7438;11/07/2017;1338;0;423;1;Spese correnti;3;Acquisto di beni e servizi;2;Acquisto di servizi;9;Manutenzione ordinaria e riparazioni;8;Manutenzione ordinaria e riparazioni di beni immobili;11/07/2017
1689;1;1.500,00;1.500,00;GOTTARDO DINO & C.SNC;Z861EF7438;11/07/2017;1938;0;424;1;Spese correnti;3;Acquisto di beni e servizi;2;Acquisto di servizi;9;Manutenzione ordinaria e riparazioni;8;Manutenzione ordinaria e riparazioni di beni immobili;11/07/2017
1690;1;1.476,20;1.476,20;VENICE AMBITEC SCARL;Z7B1EAB36F;11/07/2017;2438;0;376;1;Spese correnti;3;Acquisto di beni e servizi;2;Acquisto di servizi;9;Manutenzione ordinaria e riparazioni;11;Manutenzione ordinaria e riparazioni di altri beni materiali;11/07/2017
1691;1;492,9;492,9;SUPERBETON SPA;ZCF1DBDD30;11/07/2017;3538;0;220;1;Spese correnti;3;Acquisto di beni e servizi;2;Acquisto di servizi;9;Manutenzione ordinaria e riparazioni;8;Manutenzione ordinaria e riparazioni di beni immobili;11/07/2017
1692;1;1.263,39;1.263,39;GOTTARDO DINO & C.SNC;Z861EF7438;11/07/2017;3538;0;425;1;Spese correnti;3;Acquisto di beni e servizi;2;Acquisto di servizi;9;Manutenzione ordinaria e riparazioni;8;Manutenzione ordinaria e riparazioni di beni immobili;11/07/2017
1693;1;51,46;51,46;EUROPE ENERGY GAS & POWER SPA;4,74E+16;11/07/2017;3544;0;563;1;Spese correnti;3;Acquisto di beni e servizi;2;Acquisto di servizi;15;Contratti di servizio pubblico;15;Contratti di servizio per l'illuminazione pubblica;11/07/2017
1694;1;898,68;898,68;E.N.P.A. ONLUS SEZ. DI MIRA;0;11/07/2017;3659;0;213;1;Spese correnti;4;Trasferimenti correnti;4;Trasferimenti correnti a Istituzioni Sociali Private;1;Trasferimenti correnti a Istituzioni Sociali Private;1;Trasferimenti correnti a Istituzioni Sociali Private;11/07/2017
1695;1;2.378,78;2.378,78;ARTEA SNC DI LION & SALVIATO;Z1D1EA5963;11/07/2017;4438;0;374;1;Spese correnti;3;Acquisto di beni e servizi;2;Acquisto di servizi;9;Manutenzione ordinaria e riparazioni;8;Manutenzione ordinaria e riparazioni di beni immobili;11/07/2017
1696;1;6.695,14;6.695,14;GUIDOLIN SRL;ZED1EC78BE;11/07/2017;4438;0;388;1;Spese correnti;3;Acquisto di beni e servizi;2;Acquisto di servizi;9;Manutenzione ordinaria e riparazioni;8;Manutenzione ordinaria e riparazioni di beni immobili;11/07/2017
1697;1;3.673,42;3.673,42;DE LIBERALI IMPIANTI SRL;Z4B1C6F196;11/07/2017;8503;0;811;2;Spese in conto capitale;2;Investimenti fissi lordi e acquisto di terreni;1;Beni materiali;9;Beni immobili;12;Infrastrutture stradali;11/07/2017
1698;1;134,2;134,2;MYO SPA;Z0F1E5270A;11/07/2017;649;0;340;1;Spese correnti;3;Acquisto di beni e servizi;2;Acquisto di servizi;99;Altri servizi;4;Altre spese per consultazioni elettorali dell'ente;11/07/2017
1699;1;200;200;ZI LIN LUCA YOU;Z091EF15BD;11/07/2017;1840;0;417;1;Spese correnti;3;Acquisto di beni e servizi;2;Acquisto di servizi;11;Prestazioni professionali e specialistiche;999;Altre prestazioni professionali e specialistiche n.a.c.;11/07/2017
1700;1;120,56;120,56;COMUNE DI MIRANO;;11/07/2017;145;0;0;1;Spese correnti;3;Acquisto di beni e servizi;2;Acquisto di servizi;16;Servizi amministrativi;999;Altre spese per servizi amministrativi;11/07/2017
1701;1;6,88;6,88;COMUNE DI CADONEGHE;;11/07/2017;145;0;0;1;Spese correnti;3;Acquisto di beni e servizi;2;Acquisto di servizi;16;Servizi amministrativi;999;Altre spese per servizi amministrativi;11/07/2017
1704;1;24,38;24,38;SOENERGY S.R.L.;68635615B6;12/07/2017;134;31;112;1;Spese correnti;3;Acquisto di beni e servizi;2;Acquisto di servizi;5;Utenze e canoni;6;Gas;12/07/2017
1705;1;35,86;35,86;SOENERGY S.R.L.;68635615B6;12/07/2017;134;31;112;1;Spese correnti;3;Acquisto di beni e servizi;2;Acquisto di servizi;5;Utenze e canoni;6;Gas;12/07/2017
1706;1;35,86;35,86;SOENERGY S.R.L.;68635615B6;12/07/2017;134;31;112;1;Spese correnti;3;Acquisto di beni e servizi;2;Acquisto di servizi;5;Utenze e canoni;6;Gas;12/07/2017
1707;1;17,43;17,43;SOENERGY S.R.L.;68635615B6;12/07/2017;1334;30;113;1;Spese correnti;3;Acquisto di beni e servizi;2;Acquisto di servizi;5;Utenze e canoni;6;Gas;12/07/2017
1708;1;17,43;17,43;SOENERGY S.R.L.;68635615B6;12/07/2017;1334;30;113;1;Spese correnti;3;Acquisto di beni e servizi;2;Acquisto di servizi;5;Utenze e canoni;6;Gas;12/07/2017
1709;1;35,86;35,86;SOENERGY S.R.L.;68635615B6;12/07/2017;1334;30;113;1;Spese correnti;3;Acquisto di beni e servizi;2;Acquisto di servizi;5;Utenze e canoni;6;Gas;12/07/2017
1710;1;90,34;90,34;SOENERGY S.R.L.;68635615B6;12/07/2017;1334;30;113;1;Spese correnti;3;Acquisto di beni e servizi;2;Acquisto di servizi;5;Utenze e canoni;6;Gas;12/07/2017
1711;1;5;5;SOENERGY S.R.L.;68635615B6;12/07/2017;1334;30;113;1;Spese correnti;3;Acquisto di beni e servizi;2;Acquisto di servizi;5;Utenze e canoni;6;Gas;12/07/2017
1712;1;25,86;25,86;SOENERGY S.R.L.;68635615B6;12/07/2017;1334;30;113;1;Spese correnti;3;Acquisto di beni e servizi;2;Acquisto di servizi;5;Utenze e canoni;6;Gas;12/07/2017
1713;1;6;6;SOENERGY S.R.L.;68635615B6;12/07/2017;1334;30;113;1;Spese correnti;3;Acquisto di beni e servizi;2;Acquisto di servizi;5;Utenze e canoni;6;Gas;12/07/2017
1714;1;23,86;23,86;SOENERGY S.R.L.;68635615B6;12/07/2017;1334;30;113;1;Spese correnti;3;Acquisto di beni e servizi;2;Acquisto di servizi;5;Utenze e canoni;6;Gas;12/07/2017
1715;1;12;12;SOENERGY S.R.L.;68635615B6;12/07/2017;1334;30;113;1;Spese correnti;3;Acquisto di beni e servizi;2;Acquisto di servizi;5;Utenze e canoni;6;Gas;12/07/2017
1716;1;11,86;11,86;SOENERGY S.R.L.;68635615B6;12/07/2017;1334;30;113;1;Spese correnti;3;Acquisto di beni e servizi;2;Acquisto di servizi;5;Utenze e canoni;6;Gas;12/07/2017
1717;1;10;10;SOENERGY S.R.L.;68635615B6;12/07/2017;1334;30;113;1;Spese correnti;3;Acquisto di beni e servizi;2;Acquisto di servizi;5;Utenze e canoni;6;Gas;12/07/2017
1718;1;15,86;15,86;SOENERGY S.R.L.;68635615B6;12/07/2017;1334;30;113;1;Spese correnti;3;Acquisto di beni e servizi;2;Acquisto di servizi;5;Utenze e canoni;6;Gas;12/07/2017
1719;1;17,43;17,43;SOENERGY S.R.L.;68635615B6;12/07/2017;1934;0;115;1;Spese correnti;3;Acquisto di beni e servizi;2;Acquisto di servizi;5;Utenze e canoni;6;Gas;12/07/2017
1720;1;17,43;17,43;SOENERGY S.R.L.;68635615B6;12/07/2017;1934;0;115;1;Spese correnti;3;Acquisto di beni e servizi;2;Acquisto di servizi;5;Utenze e canoni;6;Gas;12/07/2017
1721;1;141,78;141,78;SOENERGY S.R.L.;68635615B6;12/07/2017;1934;0;115;1;Spese correnti;3;Acquisto di beni e servizi;2;Acquisto di servizi;5;Utenze e canoni;6;Gas;12/07/2017
1722;1;5;5;SOENERGY S.R.L.;68635615B6;12/07/2017;1934;0;115;1;Spese correnti;3;Acquisto di beni e servizi;2;Acquisto di servizi;5;Utenze e canoni;6;Gas;12/07/2017
1723;1;6;6;SOENERGY S.R.L.;68635615B6;12/07/2017;1934;0;115;1;Spese correnti;3;Acquisto di beni e servizi;2;Acquisto di servizi;5;Utenze e canoni;6;Gas;12/07/2017
1724;1;12;12;SOENERGY S.R.L.;68635615B6;12/07/2017;1934;0;115;1;Spese correnti;3;Acquisto di beni e servizi;2;Acquisto di servizi;5;Utenze e canoni;6;Gas;12/07/2017
1725;1;10;10;SOENERGY S.R.L.;68635615B6;12/07/2017;1934;0;115;1;Spese correnti;3;Acquisto di beni e servizi;2;Acquisto di servizi;5;Utenze e canoni;6;Gas;12/07/2017
1726;1;45,94;45,94;SOENERGY S.R.L.;68635615B6;12/07/2017;3534;0;116;1;Spese correnti;3;Acquisto di beni e servizi;2;Acquisto di servizi;5;Utenze e canoni;6;Gas;12/07/2017
1727;1;7;7;V.E.R.I.T.A.S. SPA;;13/07/2017;134;30;93;1;Spese correnti;3;Acquisto di beni e servizi;2;Acquisto di servizi;5;Utenze e canoni;5;Acqua;13/07/2017
1728;1;3,5;3,5;V.E.R.I.T.A.S. SPA;;13/07/2017;134;30;93;1;Spese correnti;3;Acquisto di beni e servizi;2;Acquisto di servizi;5;Utenze e canoni;5;Acqua;13/07/2017
1729;1;58,37;58,37;V.E.R.I.T.A.S. SPA;;13/07/2017;134;31;94;1;Spese correnti;3;Acquisto di beni e servizi;2;Acquisto di servizi;5;Utenze e canoni;5;Acqua;13/07/2017
1730;1;21,71;21,71;V.E.R.I.T.A.S. SPA;;13/07/2017;134;31;94;1;Spese correnti;3;Acquisto di beni e servizi;2;Acquisto di servizi;5;Utenze e canoni;5;Acqua;13/07/2017
1731;1;12,55;415,56;V.E.R.I.T.A.S. SPA;;13/07/2017;134;31;94;1;Spese correnti;3;Acquisto di beni e servizi;2;Acquisto di servizi;5;Utenze e canoni;5;Acqua;13/07/2017
1731;2;12,43;415,56;V.E.R.I.T.A.S. SPA;;13/07/2017;134;31;94;1;Spese correnti;3;Acquisto di beni e servizi;2;Acquisto di servizi;5;Utenze e canoni;5;Acqua;13/07/2017
1731;3;14,96;415,56;V.E.R.I.T.A.S. SPA;;13/07/2017;134;31;94;1;Spese correnti;3;Acquisto di beni e servizi;2;Acquisto di servizi;5;Utenze e canoni;5;Acqua;13/07/2017
1731;4;14,96;415,56;V.E.R.I.T.A.S. SPA;;13/07/2017;134;31;94;1;Spese correnti;3;Acquisto di beni e servizi;2;Acquisto di servizi;5;Utenze e canoni;5;Acqua;13/07/2017
1731;5;15,13;415,56;V.E.R.I.T.A.S. SPA;;13/07/2017;134;31;94;1;Spese correnti;3;Acquisto di beni e servizi;2;Acquisto di servizi;5;Utenze e canoni;5;Acqua;13/07/2017
1731;6;15,39;415,56;V.E.R.I.T.A.S. SPA;;13/07/2017;134;31;94;1;Spese correnti;3;Acquisto di beni e servizi;2;Acquisto di servizi;5;Utenze e canoni;5;Acqua;13/07/2017
1731;7;18,95;415,56;V.E.R.I.T.A.S. SPA;;13/07/2017;134;31;94;1;Spese correnti;3;Acquisto di beni e servizi;2;Acquisto di servizi;5;Utenze e canoni;5;Acqua;13/07/2017
1731;8;23,21;415,56;V.E.R.I.T.A.S. SPA;;13/07/2017;134;31;94;1;Spese correnti;3;Acquisto di beni e servizi;2;Acquisto di servizi;5;Utenze e canoni;5;Acqua;13/07/2017
1731;9;23,21;415,56;V.E.R.I.T.A.S. SPA;;13/07/2017;134;31;94;1;Spese correnti;3;Acquisto di beni e servizi;2;Acquisto di servizi;5;Utenze e canoni;5;Acqua;13/07/2017
1731;10;23,21;415,56;V.E.R.I.T.A.S. SPA;;13/07/2017;134;31;94;1;Spese correnti;3;Acquisto di beni e servizi;2;Acquisto di servizi;5;Utenze e canoni;5;Acqua;13/07/2017
1731;11;23,21;415,56;V.E.R.I.T.A.S. SPA;;13/07/2017;134;31;94;1;Spese correnti;3;Acquisto di beni e servizi;2;Acquisto di servizi;5;Utenze e canoni;5;Acqua;13/07/2017
1731;12;23,21;415,56;V.E.R.I.T.A.S. SPA;;13/07/2017;134;31;94;1;Spese correnti;3;Acquisto di beni e servizi;2;Acquisto di servizi;5;Utenze e canoni;5;Acqua;13/07/2017
1731;13;23,21;415,56;V.E.R.I.T.A.S. SPA;;13/07/2017;134;31;94;1;Spese correnti;3;Acquisto di beni e servizi;2;Acquisto di servizi;5;Utenze e canoni;5;Acqua;13/07/2017
1731;14;23,21;415,56;V.E.R.I.T.A.S. SPA;;13/07/2017;134;31;94;1;Spese correnti;3;Acquisto di beni e servizi;2;Acquisto di servizi;5;Utenze e canoni;5;Acqua;13/07/2017
1731;15;23,21;415,56;V.E.R.I.T.A.S. SPA;;13/07/2017;134;31;94;1;Spese correnti;3;Acquisto di beni e servizi;2;Acquisto di servizi;5;Utenze e canoni;5;Acqua;13/07/2017
1731;16;23,21;415,56;V.E.R.I.T.A.S. SPA;;13/07/2017;134;31;94;1;Spese correnti;3;Acquisto di beni e servizi;2;Acquisto di servizi;5;Utenze e canoni;5;Acqua;13/07/2017
1731;17;23,21;415,56;V.E.R.I.T.A.S. SPA;;13/07/2017;134;31;94;1;Spese correnti;3;Acquisto di beni e servizi;2;Acquisto di servizi;5;Utenze e canoni;5;Acqua;13/07/2017
1731;18;23,21;415,56;V.E.R.I.T.A.S. SPA;;13/07/2017;134;31;94;1;Spese correnti;3;Acquisto di beni e servizi;2;Acquisto di servizi;5;Utenze e canoni;5;Acqua;13/07/2017
1731;19;23,31;415,56;V.E.R.I.T.A.S. SPA;;13/07/2017;134;31;94;1;Spese correnti;3;Acquisto di beni e servizi;2;Acquisto di servizi;5;Utenze e canoni;5;Acqua;13/07/2017
1731;20;36,57;415,56;V.E.R.I.T.A.S. SPA;;13/07/2017;134;31;94;1;Spese correnti;3;Acquisto di beni e servizi;2;Acquisto di servizi;5;Utenze e canoni;5;Acqua;13/07/2017
1732;1;23,21;301,03;V.E.R.I.T.A.S. SPA;;13/07/2017;1334;30;95;1;Spese correnti;3;Acquisto di beni e servizi;2;Acquisto di servizi;5;Utenze e canoni;5;Acqua;13/07/2017
1732;2;278,82;301,03;V.E.R.I.T.A.S. SPA;;13/07/2017;1334;30;95;1;Spese correnti;3;Acquisto di beni e servizi;2;Acquisto di servizi;5;Utenze e canoni;5;Acqua;13/07/2017
1733;1;23,21;379,26;V.E.R.I.T.A.S. SPA;;13/07/2017;1334;30;95;1;Spese correnti;3;Acquisto di beni e servizi;2;Acquisto di servizi;5;Utenze e canoni;5;Acqua;13/07/2017
1733;2;38,58;379,26;V.E.R.I.T.A.S. SPA;;13/07/2017;1334;30;95;1;Spese correnti;3;Acquisto di beni e servizi;2;Acquisto di servizi;5;Utenze e canoni;5;Acqua;13/07/2017
1733;3;318,47;379,26;V.E.R.I.T.A.S. SPA;;13/07/2017;1334;30;95;1;Spese correnti;3;Acquisto di beni e servizi;2;Acquisto di servizi;5;Utenze e canoni;5;Acqua;13/07/2017
1734;1;12,61;12,61;V.E.R.I.T.A.S. SPA;;13/07/2017;1334;30;95;1;Spese correnti;3;Acquisto di beni e servizi;2;Acquisto di servizi;5;Utenze e canoni;5;Acqua;13/07/2017
1735;1;44,14;44,14;V.E.R.I.T.A.S. SPA;;13/07/2017;1334;30;95;1;Spese correnti;3;Acquisto di beni e servizi;2;Acquisto di servizi;5;Utenze e canoni;5;Acqua;13/07/2017
1736;1;12,61;12,61;V.E.R.I.T.A.S. SPA;;13/07/2017;1334;30;95;1;Spese correnti;3;Acquisto di beni e servizi;2;Acquisto di servizi;5;Utenze e canoni;5;Acqua;13/07/2017
1737;1;30,23;30,23;V.E.R.I.T.A.S. SPA;;13/07/2017;1334;30;95;1;Spese correnti;3;Acquisto di beni e servizi;2;Acquisto di servizi;5;Utenze e canoni;5;Acqua;13/07/2017
1738;1;5;5;V.E.R.I.T.A.S. SPA;;13/07/2017;1334;30;95;1;Spese correnti;3;Acquisto di beni e servizi;2;Acquisto di servizi;5;Utenze e canoni;5;Acqua;13/07/2017
1739;1;13,21;13,21;V.E.R.I.T.A.S. SPA;;13/07/2017;1334;30;95;1;Spese correnti;3;Acquisto di beni e servizi;2;Acquisto di servizi;5;Utenze e canoni;5;Acqua;13/07/2017
1740;1;47;47;V.E.R.I.T.A.S. SPA;;13/07/2017;1334;30;95;1;Spese correnti;3;Acquisto di beni e servizi;2;Acquisto di servizi;5;Utenze e canoni;5;Acqua;13/07/2017
1741;1;145,58;145,58;V.E.R.I.T.A.S. SPA;;13/07/2017;1334;30;95;1;Spese correnti;3;Acquisto di beni e servizi;2;Acquisto di servizi;5;Utenze e canoni;5;Acqua;13/07/2017
1742;1;6;6;V.E.R.I.T.A.S. SPA;;13/07/2017;1334;30;95;1;Spese correnti;3;Acquisto di beni e servizi;2;Acquisto di servizi;5;Utenze e canoni;5;Acqua;13/07/2017
1743;1;11,21;11,21;V.E.R.I.T.A.S. SPA;;13/07/2017;1334;30;95;1;Spese correnti;3;Acquisto di beni e servizi;2;Acquisto di servizi;5;Utenze e canoni;5;Acqua;13/07/2017
1744;1;97;97;V.E.R.I.T.A.S. SPA;;13/07/2017;1334;30;95;1;Spese correnti;3;Acquisto di beni e servizi;2;Acquisto di servizi;5;Utenze e canoni;5;Acqua;13/07/2017
1745;1;159,98;159,98;V.E.R.I.T.A.S. SPA;;13/07/2017;1334;30;95;1;Spese correnti;3;Acquisto di beni e servizi;2;Acquisto di servizi;5;Utenze e canoni;5;Acqua;13/07/2017
1746;1;8;8;V.E.R.I.T.A.S. SPA;;13/07/2017;1334;30;95;1;Spese correnti;3;Acquisto di beni e servizi;2;Acquisto di servizi;5;Utenze e canoni;5;Acqua;13/07/2017
1747;1;7,21;7,21;V.E.R.I.T.A.S. SPA;;13/07/2017;1334;30;95;1;Spese correnti;3;Acquisto di beni e servizi;2;Acquisto di servizi;5;Utenze e canoni;5;Acqua;13/07/2017
1748;1;11;11;V.E.R.I.T.A.S. SPA;;13/07/2017;1334;30;95;1;Spese correnti;3;Acquisto di beni e servizi;2;Acquisto di servizi;5;Utenze e canoni;5;Acqua;13/07/2017
1749;1;11,85;11,85;V.E.R.I.T.A.S. SPA;;13/07/2017;1334;30;95;1;Spese correnti;3;Acquisto di beni e servizi;2;Acquisto di servizi;5;Utenze e canoni;5;Acqua;13/07/2017
1750;1;5;5;V.E.R.I.T.A.S. SPA;;13/07/2017;1334;30;95;1;Spese correnti;3;Acquisto di beni e servizi;2;Acquisto di servizi;5;Utenze e canoni;5;Acqua;13/07/2017
1751;1;13,21;13,21;V.E.R.I.T.A.S. SPA;;13/07/2017;1334;30;95;1;Spese correnti;3;Acquisto di beni e servizi;2;Acquisto di servizi;5;Utenze e canoni;5;Acqua;13/07/2017
1752;1;9;9;V.E.R.I.T.A.S. SPA;;13/07/2017;1334;30;95;1;Spese correnti;3;Acquisto di beni e servizi;2;Acquisto di servizi;5;Utenze e canoni;5;Acqua;13/07/2017
1753;1;22,78;22,78;V.E.R.I.T.A.S. SPA;;13/07/2017;1334;30;95;1;Spese correnti;3;Acquisto di beni e servizi;2;Acquisto di servizi;5;Utenze e canoni;5;Acqua;13/07/2017
1754;1;23,21;190,92;V.E.R.I.T.A.S. SPA;;13/07/2017;1834;0;96;1;Spese correnti;3;Acquisto di beni e servizi;2;Acquisto di servizi;5;Utenze e canoni;5;Acqua;13/07/2017
1754;2;23,21;190,92;V.E.R.I.T.A.S. SPA;;13/07/2017;1834;0;96;1;Spese correnti;3;Acquisto di beni e servizi;2;Acquisto di servizi;5;Utenze e canoni;5;Acqua;13/07/2017
1754;3;26,28;190,92;V.E.R.I.T.A.S. SPA;;13/07/2017;1834;0;96;1;Spese correnti;3;Acquisto di beni e servizi;2;Acquisto di servizi;5;Utenze e canoni;5;Acqua;13/07/2017
1754;4;117,22;190,92;V.E.R.I.T.A.S. SPA;;13/07/2017;1834;0;96;1;Spese correnti;3;Acquisto di beni e servizi;2;Acquisto di servizi;5;Utenze e canoni;5;Acqua;13/07/2017
1755;1;12,6;12,6;V.E.R.I.T.A.S. SPA;;13/07/2017;1934;0;97;1;Spese correnti;3;Acquisto di beni e servizi;2;Acquisto di servizi;5;Utenze e canoni;5;Acqua;13/07/2017
1756;1;44,14;44,14;V.E.R.I.T.A.S. SPA;;13/07/2017;1934;0;97;1;Spese correnti;3;Acquisto di beni e servizi;2;Acquisto di servizi;5;Utenze e canoni;5;Acqua;13/07/2017
1757;1;12,6;12,6;V.E.R.I.T.A.S. SPA;;13/07/2017;1934;0;97;1;Spese correnti;3;Acquisto di beni e servizi;2;Acquisto di servizi;5;Utenze e canoni;5;Acqua;13/07/2017
1758;1;30,24;30,24;V.E.R.I.T.A.S. SPA;;13/07/2017;1934;0;97;1;Spese correnti;3;Acquisto di beni e servizi;2;Acquisto di servizi;5;Utenze e canoni;5;Acqua;13/07/2017
1759;1;5;5;V.E.R.I.T.A.S. SPA;;13/07/2017;1934;0;97;1;Spese correnti;3;Acquisto di beni e servizi;2;Acquisto di servizi;5;Utenze e canoni;5;Acqua;13/07/2017
1760;1;47;47;V.E.R.I.T.A.S. SPA;;13/07/2017;1934;0;97;1;Spese correnti;3;Acquisto di beni e servizi;2;Acquisto di servizi;5;Utenze e canoni;5;Acqua;13/07/2017
1761;1;6;6;V.E.R.I.T.A.S. SPA;;13/07/2017;1934;0;97;1;Spese correnti;3;Acquisto di beni e servizi;2;Acquisto di servizi;5;Utenze e canoni;5;Acqua;13/07/2017
1762;1;97;97;V.E.R.I.T.A.S. SPA;;13/07/2017;1934;0;97;1;Spese correnti;3;Acquisto di beni e servizi;2;Acquisto di servizi;5;Utenze e canoni;5;Acqua;13/07/2017
1763;1;8;8;V.E.R.I.T.A.S. SPA;;13/07/2017;1934;0;97;1;Spese correnti;3;Acquisto di beni e servizi;2;Acquisto di servizi;5;Utenze e canoni;5;Acqua;13/07/2017
1764;1;11;11;V.E.R.I.T.A.S. SPA;;13/07/2017;1934;0;97;1;Spese correnti;3;Acquisto di beni e servizi;2;Acquisto di servizi;5;Utenze e canoni;5;Acqua;13/07/2017
1765;1;5;5;V.E.R.I.T.A.S. SPA;;13/07/2017;1934;0;97;1;Spese correnti;3;Acquisto di beni e servizi;2;Acquisto di servizi;5;Utenze e canoni;5;Acqua;13/07/2017
1766;1;9;9;V.E.R.I.T.A.S. SPA;;13/07/2017;1934;0;97;1;Spese correnti;3;Acquisto di beni e servizi;2;Acquisto di servizi;5;Utenze e canoni;5;Acqua;13/07/2017
1767;1;12,86;35,07;V.E.R.I.T.A.S. SPA;;13/07/2017;3534;0;98;1;Spese correnti;3;Acquisto di beni e servizi;2;Acquisto di servizi;5;Utenze e canoni;5;Acqua;13/07/2017
1767;2;23,21;35,07;V.E.R.I.T.A.S. SPA;;13/07/2017;3534;0;98;1;Spese correnti;3;Acquisto di beni e servizi;2;Acquisto di servizi;5;Utenze e canoni;5;Acqua;13/07/2017
1768;1;14,95;254,58;V.E.R.I.T.A.S. SPA;;13/07/2017;4434;0;100;1;Spese correnti;3;Acquisto di beni e servizi;2;Acquisto di servizi;5;Utenze e canoni;5;Acqua;13/07/2017
1768;2;18,14;254,58;V.E.R.I.T.A.S. SPA;;13/07/2017;4434;0;100;1;Spese correnti;3;Acquisto di beni e servizi;2;Acquisto di servizi;5;Utenze e canoni;5;Acqua;13/07/2017
1768;3;221,49;254,58;V.E.R.I.T.A.S. SPA;;13/07/2017;4434;0;100;1;Spese correnti;3;Acquisto di beni e servizi;2;Acquisto di servizi;5;Utenze e canoni;5;Acqua;13/07/2017
1769;1;5.710,60;5.710,60;VECCHIATO OMERO;Z031C145B7;13/07/2017;8417;0;721;2;Spese in conto capitale;2;Investimenti fissi lordi e acquisto di terreni;1;Beni materiali;9;Beni immobili;16;Impianti sportivi;13/07/2017
1770;1;3.918,05;3.918,05;BARALDO GIANNI;;17/07/2017;230;0;458;1;Spese correnti;3;Acquisto di beni e servizi;2;Acquisto di servizi;1;Organi e incarichi istituzionali dell'amministrazione;8;Compensi agli organi istituzionali di revisione, di controllo ed altri incarichi istituzionali dell'amministrazione;17/07/2017
1771;1;5.710,60;5.710,60;SARRAGIOTO GIANNI;;17/07/2017;230;0;458;1;Spese correnti;3;Acquisto di beni e servizi;2;Acquisto di servizi;1;Organi e incarichi istituzionali dell'amministrazione;8;Compensi agli organi istituzionali di revisione, di controllo ed altri incarichi istituzionali dell'amministrazione;17/07/2017
1772;1;1.924,11;1.924,11;VODAFONE ITALIA SPA;ZD91D19076;17/07/2017;134;0;122;1;Spese correnti;3;Acquisto di beni e servizi;2;Acquisto di servizi;5;Utenze e canoni;2;Telefonia mobile;17/07/2017
1773;1;1.207,82;1.207,82;VODAFONE ITALIA SPA;ZD91D19076;17/07/2017;134;0;122;1;Spese correnti;3;Acquisto di beni e servizi;2;Acquisto di servizi;5;Utenze e canoni;2;Telefonia mobile;17/07/2017
1774;1;214,27;214,27;TIM-TELECOM ITALIA SPA;ZD51D16E0C;17/07/2017;134;0;133;1;Spese correnti;3;Acquisto di beni e servizi;2;Acquisto di servizi;5;Utenze e canoni;2;Telefonia mobile;17/07/2017
1775;1;54,53;54,53;VODAFONE ITALIA SPA;Z631D18735;17/07/2017;134;30;86;1;Spese correnti;3;Acquisto di beni e servizi;2;Acquisto di servizi;5;Utenze e canoni;1;Telefonia fissa;17/07/2017
1776;1;736,75;736,75;VODAFONE ITALIA SPA;Z631D18735;17/07/2017;134;31;87;1;Spese correnti;3;Acquisto di beni e servizi;2;Acquisto di servizi;5;Utenze e canoni;1;Telefonia fissa;17/07/2017
1777;1;60,32;60,32;GRAFICHE E. GASPARI SRL;ZED1DFDE05;17/07/2017;621;0;269;1;Spese correnti;3;Acquisto di beni e servizi;1;Acquisto di beni;2;Altri beni di consumo;14;Stampati specialistici;17/07/2017
1778;1;1.647,00;1.647,00;ACCATRE SRL;Z021CE1422;17/07/2017;748;0;18;1;Spese correnti;3;Acquisto di beni e servizi;2;Acquisto di servizi;19;Servizi informatici e di telecomunicazioni;2;Assistenza all'utente e formazione;17/07/2017
1779;1;684,45;684,45;VODAFONE ITALIA SPA;Z681D18B7F;17/07/2017;1334;0;118;1;Spese correnti;3;Acquisto di beni e servizi;2;Acquisto di servizi;5;Utenze e canoni;1;Telefonia fissa;17/07/2017
1780;1;327,4;327,4;VODAFONE ITALIA SPA;Z681D18B7F;17/07/2017;1334;0;119;1;Spese correnti;3;Acquisto di beni e servizi;2;Acquisto di servizi;5;Utenze e canoni;1;Telefonia fissa;17/07/2017
1781;1;117,63;117,63;VODAFONE ITALIA SPA;Z631D18735;17/07/2017;1834;0;88;1;Spese correnti;3;Acquisto di beni e servizi;2;Acquisto di servizi;5;Utenze e canoni;1;Telefonia fissa;17/07/2017
1782;1;36,72;36,72;TIM-TELECOM ITALIA SPA;ZD51D16E0C;17/07/2017;1834;0;135;1;Spese correnti;3;Acquisto di beni e servizi;2;Acquisto di servizi;5;Utenze e canoni;1;Telefonia fissa;17/07/2017
1783;1;237,01;619,11;BORTOLATO SAS DI BORTOLATO ONORINO & C.;Z051DBAAAA;17/07/2017;2538;0;219;1;Spese correnti;3;Acquisto di beni e servizi;2;Acquisto di servizi;9;Manutenzione ordinaria e riparazioni;5;Manutenzione ordinaria e riparazioni di attrezzature;17/07/2017
1783;2;382,1;619,11;BORTOLATO SAS DI BORTOLATO ONORINO & C.;Z051DBAAAA;17/07/2017;2538;0;219;1;Spese correnti;3;Acquisto di beni e servizi;2;Acquisto di servizi;9;Manutenzione ordinaria e riparazioni;5;Manutenzione ordinaria e riparazioni di attrezzature;17/07/2017
1784;1;63,45;63,45;VODAFONE ITALIA SPA;Z631D18735;17/07/2017;3534;0;89;1;Spese correnti;3;Acquisto di beni e servizi;2;Acquisto di servizi;5;Utenze e canoni;1;Telefonia fissa;17/07/2017
1785;1;559,45;559,45;NUOVA AUTOCAR 94 SNC;ZD91E4F689;17/07/2017;3538;0;330;1;Spese correnti;3;Acquisto di beni e servizi;2;Acquisto di servizi;9;Manutenzione ordinaria e riparazioni;1;Manutenzione ordinaria e riparazioni di mezzi di trasporto ad uso civile, di sicurezza e ordine pubblico;17/07/2017
1786;1;39,53;39,53;TIM-TELECOM ITALIA SPA;ZD51D16E0C;17/07/2017;4234;0;134;1;Spese correnti;3;Acquisto di beni e servizi;2;Acquisto di servizi;5;Utenze e canoni;1;Telefonia fissa;17/07/2017
1787;1;982,69;982,69;LE LIBRERIE SRL UN.LOC.LIBRERIA MODERNA;7,03E+35;17/07/2017;8430;0;278;2;Spese in conto capitale;2;Investimenti fissi lordi e acquisto di terreni;1;Beni materiali;99;Altri beni materiali;1;Materiale bibliografico;17/07/2017
1788;1;700;3.552,00;SOGGETTI DIVERSI;;17/07/2017;3757;0;32;1;Spese correnti;4;Trasferimenti correnti;2;Trasferimenti correnti a Famiglie;5;Altri trasferimenti a famiglie;999;Altri trasferimenti a famiglie n.a.c.;17/07/2017
1788;2;1.210,00;3.552,00;SOGGETTI DIVERSI;;17/07/2017;3757;0;32;1;Spese correnti;4;Trasferimenti correnti;2;Trasferimenti correnti a Famiglie;5;Altri trasferimenti a famiglie;999;Altri trasferimenti a famiglie n.a.c.;17/07/2017
1788;3;30;3.552,00;SOGGETTI DIVERSI;;17/07/2017;3757;0;32;1;Spese correnti;4;Trasferimenti correnti;2;Trasferimenti correnti a Famiglie;5;Altri trasferimenti a famiglie;999;Altri trasferimenti a famiglie n.a.c.;17/07/2017
1788;4;322;3.552,00;SOGGETTI DIVERSI;;17/07/2017;3757;0;32;1;Spese correnti;4;Trasferimenti correnti;2;Trasferimenti correnti a Famiglie;5;Altri trasferimenti a famiglie;999;Altri trasferimenti a famiglie n.a.c.;17/07/2017
1788;5;420;3.552,00;SOGGETTI DIVERSI;;17/07/2017;3757;0;32;1;Spese correnti;4;Trasferimenti correnti;2;Trasferimenti correnti a Famiglie;5;Altri trasferimenti a famiglie;999;Altri trasferimenti a famiglie n.a.c.;17/07/2017
1788;6;580;3.552,00;SOGGETTI DIVERSI;;17/07/2017;3757;0;32;1;Spese correnti;4;Trasferimenti correnti;2;Trasferimenti correnti a Famiglie;5;Altri trasferimenti a famiglie;999;Altri trasferimenti a famiglie n.a.c.;17/07/2017
1788;7;290;3.552,00;SOGGETTI DIVERSI;;17/07/2017;3757;0;32;1;Spese correnti;4;Trasferimenti correnti;2;Trasferimenti correnti a Famiglie;5;Altri trasferimenti a famiglie;999;Altri trasferimenti a famiglie n.a.c.;17/07/2017
1789;1;823,5;823,5;SOGGETTI DIVERSI;;17/07/2017;3757;0;465;1;Spese correnti;4;Trasferimenti correnti;2;Trasferimenti correnti a Famiglie;5;Altri trasferimenti a famiglie;999;Altri trasferimenti a famiglie n.a.c.;17/07/2017
1790;1;700;700;SOGGETTI DIVERSI;;17/07/2017;3757;0;465;1;Spese correnti;4;Trasferimenti correnti;2;Trasferimenti correnti a Famiglie;5;Altri trasferimenti a famiglie;999;Altri trasferimenti a famiglie n.a.c.;17/07/2017
1791;1;120;120;SOGGETTI DIVERSI;;17/07/2017;3757;0;465;1;Spese correnti;4;Trasferimenti correnti;2;Trasferimenti correnti a Famiglie;5;Altri trasferimenti a famiglie;999;Altri trasferimenti a famiglie n.a.c.;17/07/2017
1792;1;500;500;SOGGETTI DIVERSI;;17/07/2017;4157;0;16;1;Spese correnti;4;Trasferimenti correnti;2;Trasferimenti correnti a Famiglie;2;Interventi assistenziali;999;Altri assegni e sussidi assistenziali;17/07/2017
1793;1;240.176,12;240.176,12;AZIENDA ULSS N. 3 SERENISSIMA;;17/07/2017;3851;0;438;1;Spese correnti;4;Trasferimenti correnti;1;Trasferimenti correnti a Amministrazioni Pubbliche;2;Trasferimenti correnti a Amministrazioni Locali;11;Trasferimenti correnti a Aziende sanitarie locali n.a.f.;17/07/2017
1796;1;8.767,40;8.767,40;DIVERSI-AMMINISTRATORI COM.LI;;18/07/2017;30;99;0;1;Spese correnti;3;Acquisto di beni e servizi;2;Acquisto di servizi;1;Organi e incarichi istituzionali dell'amministrazione;1;Organi istituzionali dell'amministrazione - Indennit?;18/07/2017
1861;1;90,5;90,5;ENI SPA DIVISIONE REFINING & MARKETING;Z991D1C5CE;18/07/2017;521;0;75;1;Spese correnti;3;Acquisto di beni e servizi;1;Acquisto di beni;2;Altri beni di consumo;2;Carburanti, combustibili e lubrificanti;18/07/2017
1862;1;35,08;35,08;ENI SPA DIVISIONE REFINING & MARKETING;Z991D1C5CE;18/07/2017;521;0;75;1;Spese correnti;3;Acquisto di beni e servizi;1;Acquisto di beni;2;Altri beni di consumo;2;Carburanti, combustibili e lubrificanti;18/07/2017
1863;1;75,91;75,91;ENI SPA DIVISIONE REFINING & MARKETING;Z991D1C5CE;18/07/2017;521;0;75;1;Spese correnti;3;Acquisto di beni e servizi;1;Acquisto di beni;2;Altri beni di consumo;2;Carburanti, combustibili e lubrificanti;18/07/2017
1864;1;250;250;SOGGETTI DIVERSI;;20/07/2017;4157;0;19;1;Spese correnti;4;Trasferimenti correnti;2;Trasferimenti correnti a Famiglie;2;Interventi assistenziali;999;Altri assegni e sussidi assistenziali;20/07/2017
1865;1;246;246;DOLOMITI ENERGIA SPA;6679006A1A;20/07/2017;134;30;101;1;Spese correnti;3;Acquisto di beni e servizi;2;Acquisto di servizi;5;Utenze e canoni;4;Energia elettrica;20/07/2017
1866;1;55,56;55,56;DOLOMITI ENERGIA SPA;6679006A1A;20/07/2017;134;31;102;1;Spese correnti;3;Acquisto di beni e servizi;2;Acquisto di servizi;5;Utenze e canoni;4;Energia elettrica;20/07/2017
1867;1;700,65;700,65;DOLOMITI ENERGIA SPA;6679006A1A;20/07/2017;134;31;102;1;Spese correnti;3;Acquisto di beni e servizi;2;Acquisto di servizi;5;Utenze e canoni;4;Energia elettrica;20/07/2017
1868;1;525;525;DOLOMITI ENERGIA SPA;6679006A1A;20/07/2017;134;31;102;1;Spese correnti;3;Acquisto di beni e servizi;2;Acquisto di servizi;5;Utenze e canoni;4;Energia elettrica;20/07/2017
1869;1;2.849,78;2.849,78;DOLOMITI ENERGIA SPA;6679006A1A;20/07/2017;134;31;102;1;Spese correnti;3;Acquisto di beni e servizi;2;Acquisto di servizi;5;Utenze e canoni;4;Energia elettrica;20/07/2017
1870;1;1.432,57;1.432,57;DOLOMITI ENERGIA SPA;6679006A1A;20/07/2017;134;31;102;1;Spese correnti;3;Acquisto di beni e servizi;2;Acquisto di servizi;5;Utenze e canoni;4;Energia elettrica;20/07/2017
1871;1;700,65;700,65;DOLOMITI ENERGIA SPA;6679006A1A;20/07/2017;1934;0;105;1;Spese correnti;3;Acquisto di beni e servizi;2;Acquisto di servizi;5;Utenze e canoni;4;Energia elettrica;20/07/2017
1872;1;99,97;99,97;DOLOMITI ENERGIA SPA;6679006A1A;20/07/2017;1934;0;105;1;Spese correnti;3;Acquisto di beni e servizi;2;Acquisto di servizi;5;Utenze e canoni;4;Energia elettrica;20/07/2017
1873;1;525;525;DOLOMITI ENERGIA SPA;6679006A1A;20/07/2017;1934;0;105;1;Spese correnti;3;Acquisto di beni e servizi;2;Acquisto di servizi;5;Utenze e canoni;4;Energia elettrica;20/07/2017
1874;1;150;150;DOLOMITI ENERGIA SPA;6679006A1A;20/07/2017;2734;0;106;1;Spese correnti;3;Acquisto di beni e servizi;2;Acquisto di servizi;5;Utenze e canoni;4;Energia elettrica;20/07/2017
1875;1;310;310;DOLOMITI ENERGIA SPA;6679006A1A;20/07/2017;3534;0;107;1;Spese correnti;3;Acquisto di beni e servizi;2;Acquisto di servizi;5;Utenze e canoni;4;Energia elettrica;20/07/2017
1876;1;294;294;DOLOMITI ENERGIA SPA;6679006A1A;20/07/2017;3534;0;107;1;Spese correnti;3;Acquisto di beni e servizi;2;Acquisto di servizi;5;Utenze e canoni;4;Energia elettrica;20/07/2017
1877;1;376,81;376,81;DOLOMITI ENERGIA SPA;6679006A1A;20/07/2017;3544;0;110;1;Spese correnti;3;Acquisto di beni e servizi;2;Acquisto di servizi;15;Contratti di servizio pubblico;15;Contratti di servizio per l'illuminazione pubblica;20/07/2017
1878;1;12.308,21;12.308,21;DOLOMITI ENERGIA SPA;6679006A1A;20/07/2017;3544;0;110;1;Spese correnti;3;Acquisto di beni e servizi;2;Acquisto di servizi;15;Contratti di servizio pubblico;15;Contratti di servizio per l'illuminazione pubblica;20/07/2017
1879;1;980;980;DOLOMITI ENERGIA SPA;6679006A1A;20/07/2017;4234;0;108;1;Spese correnti;3;Acquisto di beni e servizi;2;Acquisto di servizi;5;Utenze e canoni;4;Energia elettrica;20/07/2017
1880;1;4.217,00;4.217,00;GOTTARDO SRL;Z8C1E79408;20/07/2017;7681;0;353;2;Spese in conto capitale;2;Investimenti fissi lordi e acquisto di terreni;1;Beni materiali;9;Beni immobili;3;Fabbricati ad uso scolastico;20/07/2017
1881;1;20.000,00;20.000,00;GOTTARDO SRL;Z8C1E79408;20/07/2017;8483;0;352;2;Spese in conto capitale;2;Investimenti fissi lordi e acquisto di terreni;1;Beni materiali;9;Beni immobili;16;Impianti sportivi;20/07/2017
1882;1;1.416,73;1.416,73;NATURAL SERVICE SOCIETA' COOPERATIVA;Z961E04EDB;20/07/2017;2538;0;256;1;Spese correnti;3;Acquisto di beni e servizi;2;Acquisto di servizi;9;Manutenzione ordinaria e riparazioni;12;Manutenzione ordinaria e riparazioni di terreni e beni materiali non prodotti;20/07/2017
1884;1;3.040,00;3.040,00;FONDAZIONE CAV.GUIDO GINI - ONLUS;Z6C1BE9B2D;20/07/2017;4044;0;638;1;Spese correnti;3;Acquisto di beni e servizi;2;Acquisto di servizi;15;Contratti di servizio pubblico;8;Contratti di servizio di assistenza sociale residenziale e semiresidenziale;20/07/2017
1885;1;1.520,00;1.520,00;FONDAZIONE CAV.GUIDO GINI - ONLUS;Z6C1BE9B2D;20/07/2017;4044;0;638;1;Spese correnti;3;Acquisto di beni e servizi;2;Acquisto di servizi;15;Contratti di servizio pubblico;8;Contratti di servizio di assistenza sociale residenziale e semiresidenziale;20/07/2017
1886;1;63,03;63,03;MINISTERO DELL'INTERN.EX AGENZIA AUT.SEG.SEZ.REG.VENETO;;24/07/2017;150;0;471;1;Spese correnti;4;Trasferimenti correnti;1;Trasferimenti correnti a Amministrazioni Pubbliche;1;Trasferimenti correnti a Amministrazioni Centrali;1;Trasferimenti correnti a Ministeri;24/07/2017
1888;1;100;100;KUWAIT PETROLEUM ITALIA SPA;Z021874A21;25/07/2017;121;7;77;1;Spese correnti;3;Acquisto di beni e servizi;1;Acquisto di beni;2;Altri beni di consumo;2;Carburanti, combustibili e lubrificanti;25/07/2017
1889;1;400;400;KUWAIT PETROLEUM ITALIA SPA;Z021874A21;25/07/2017;521;0;78;1;Spese correnti;3;Acquisto di beni e servizi;1;Acquisto di beni;2;Altri beni di consumo;2;Carburanti, combustibili e lubrificanti;25/07/2017
1890;1;268,4;268,4;BORTOLATO NICO TIPOGRAFIA;Z0F1F2733A;25/07/2017;521;0;447;1;Spese correnti;3;Acquisto di beni e servizi;1;Acquisto di beni;2;Altri beni di consumo;999;Altri beni e materiali di consumo n.a.c.;25/07/2017
1891;1;269,22;269,22;C.E.I.F. DI BESSEGA VANNI;ZD51D68903;25/07/2017;522;0;174;1;Spese correnti;3;Acquisto di beni e servizi;1;Acquisto di beni;2;Altri beni di consumo;999;Altri beni e materiali di consumo n.a.c.;25/07/2017
1892;1;589,26;589,26;MYO SPA;Z261F235C6;25/07/2017;621;0;442;1;Spese correnti;3;Acquisto di beni e servizi;1;Acquisto di beni;2;Altri beni di consumo;999;Altri beni e materiali di consumo n.a.c.;25/07/2017
1893;1;5.978,00;5.978,00;BOXXAPPS SRL;Z6F1D1DBD2;25/07/2017;748;0;68;1;Spese correnti;3;Acquisto di beni e servizi;2;Acquisto di servizi;19;Servizi informatici e di telecomunicazioni;5;Servizi per i sistemi e relativa manutenzione;25/07/2017
1894;1;90;90;INTERAZIONE SRL;;25/07/2017;833;0;370;1;Spese correnti;3;Acquisto di beni e servizi;2;Acquisto di servizi;4;Acquisto di servizi per formazione e addestramento del personale dell'ente;999;Acquisto di servizi per altre spese per formazione e addestramento n.a.c.;25/07/2017
1895;1;448;448;PUBLIKA SRL;ZE41EE9C5C;25/07/2017;833;0;412;1;Spese correnti;3;Acquisto di beni e servizi;2;Acquisto di servizi;4;Acquisto di servizi per formazione e addestramento del personale dell'ente;4;Acquisto di servizi per formazione obbligatoria;25/07/2017
1896;1;9.232,74;9.232,74;SCANTAMBURLO PIETRO;Z511DC05BE;25/07/2017;2438;0;224;1;Spese correnti;3;Acquisto di beni e servizi;2;Acquisto di servizi;9;Manutenzione ordinaria e riparazioni;12;Manutenzione ordinaria e riparazioni di terreni e beni materiali non prodotti;25/07/2017
1897;1;207,05;207,05;KUWAIT PETROLEUM ITALIA SPA;Z021874A21;25/07/2017;3521;0;80;1;Spese correnti;3;Acquisto di beni e servizi;1;Acquisto di beni;2;Altri beni di consumo;2;Carburanti, combustibili e lubrificanti;25/07/2017
1898;1;188,88;188,88;SUPERBETON SPA;ZCF1DBDD30;25/07/2017;3538;0;220;1;Spese correnti;3;Acquisto di beni e servizi;2;Acquisto di servizi;9;Manutenzione ordinaria e riparazioni;8;Manutenzione ordinaria e riparazioni di beni immobili;25/07/2017
1899;1;192,22;192,22;EPIU' SRL - COSTRUIRE INSIEME;Z6B1DBDDB0;25/07/2017;3538;0;222;1;Spese correnti;3;Acquisto di beni e servizi;2;Acquisto di servizi;9;Manutenzione ordinaria e riparazioni;8;Manutenzione ordinaria e riparazioni di beni immobili;25/07/2017
1900;1;550;550;KUWAIT PETROLEUM ITALIA SPA;Z021874A21;25/07/2017;4121;0;79;1;Spese correnti;3;Acquisto di beni e servizi;1;Acquisto di beni;2;Altri beni di consumo;2;Carburanti, combustibili e lubrificanti;25/07/2017
1901;1;3.429,99;3.429,99;TELEGAMMA SAS DI GAMMA DIVIDINO & C.;ZD417AD175;25/07/2017;7631;0;902;2;Spese in conto capitale;2;Investimenti fissi lordi e acquisto di terreni;1;Beni materiali;9;Beni immobili;9;Infrastrutture telematiche;25/07/2017
1902;1;4.981,27;4.981,27;C.M.L. SRL;ZE61EAD337;25/07/2017;8567;0;372;2;Spese in conto capitale;2;Investimenti fissi lordi e acquisto di terreni;1;Beni materiali;9;Beni immobili;12;Infrastrutture stradali;25/07/2017
1904;1;250;250;CRISTOFORETTI SERVIZI ENERGIA S.P.A.;Z941AF6F89;25/07/2017;134;30;331;1;Spese correnti;3;Acquisto di beni e servizi;2;Acquisto di servizi;5;Utenze e canoni;6;Gas;25/07/2017
1905;1;2.000,00;2.000,00;CRISTOFORETTI SERVIZI ENERGIA S.P.A.;Z941AF6F89;25/07/2017;134;31;332;1;Spese correnti;3;Acquisto di beni e servizi;2;Acquisto di servizi;5;Utenze e canoni;6;Gas;25/07/2017
1906;1;3.785,70;3.785,70;CRISTOFORETTI SERVIZI ENERGIA S.P.A.;Z941AF6F89;25/07/2017;1334;30;333;1;Spese correnti;3;Acquisto di beni e servizi;2;Acquisto di servizi;5;Utenze e canoni;6;Gas;25/07/2017
1907;1;1.000,00;1.000,00;CRISTOFORETTI SERVIZI ENERGIA S.P.A.;Z941AF6F89;25/07/2017;1834;0;334;1;Spese correnti;3;Acquisto di beni e servizi;2;Acquisto di servizi;5;Utenze e canoni;6;Gas;25/07/2017
1908;1;3.000,00;3.000,00;CRISTOFORETTI SERVIZI ENERGIA S.P.A.;Z941AF6F89;25/07/2017;1934;0;335;1;Spese correnti;3;Acquisto di beni e servizi;2;Acquisto di servizi;5;Utenze e canoni;6;Gas;25/07/2017
1909;1;500;500;CRISTOFORETTI SERVIZI ENERGIA S.P.A.;Z941AF6F89;25/07/2017;3534;0;336;1;Spese correnti;3;Acquisto di beni e servizi;2;Acquisto di servizi;5;Utenze e canoni;6;Gas;25/07/2017
1910;1;500;500;CRISTOFORETTI SERVIZI ENERGIA S.P.A.;Z941AF6F89;25/07/2017;4234;0;337;1;Spese correnti;3;Acquisto di beni e servizi;2;Acquisto di servizi;5;Utenze e canoni;6;Gas;25/07/2017
1911;1;350;350;CALZAVARA MARINA;;25/07/2017;1840;0;414;1;Spese correnti;3;Acquisto di beni e servizi;2;Acquisto di servizi;11;Prestazioni professionali e specialistiche;999;Altre prestazioni professionali e specialistiche n.a.c.;25/07/2017
1912;1;655;655;SOGGETTI DIVERSI;;27/07/2017;4157;0;16;1;Spese correnti;4;Trasferimenti correnti;2;Trasferimenti correnti a Famiglie;2;Interventi assistenziali;999;Altri assegni e sussidi assistenziali;27/07/2017
1913;1;1.043,33;1.043,33;FORNITECNICA S.R.L.;ZEB17CFEAE;28/07/2017;748;0;71;1;Spese correnti;3;Acquisto di beni e servizi;2;Acquisto di servizi;19;Servizi informatici e di telecomunicazioni;9;Servizi per le postazioni di lavoro e relativa manutenzione;28/07/2017
1914;1;3.664,21;3.664,21;DUCALERESTAURO SRL;6887204C86;28/07/2017;7450;1;764;2;Spese in conto capitale;2;Investimenti fissi lordi e acquisto di terreni;1;Beni materiali;10;Beni immobili di valore culturale, storico ed artistico;999;Beni immobili di valore culturale, storico ed artistico n.a.c.;28/07/2017
1915;1;6.566,79;6.566,79;DUCALERESTAURO SRL;6887204C86;28/07/2017;7450;1;764;2;Spese in conto capitale;2;Investimenti fissi lordi e acquisto di terreni;1;Beni materiali;10;Beni immobili di valore culturale, storico ed artistico;999;Beni immobili di valore culturale, storico ed artistico n.a.c.;28/07/2017
1916;1;66.284,88;66.284,88;DUCALERESTAURO SRL;64076987A9;28/07/2017;7450;2;609;2;Spese in conto capitale;2;Investimenti fissi lordi e acquisto di terreni;1;Beni materiali;10;Beni immobili di valore culturale, storico ed artistico;999;Beni immobili di valore culturale, storico ed artistico n.a.c.;28/07/2017
1917;1;15.000,00;15.000,00;TELEGAMMA SAS DI GAMMA DIVIDINO & C.;ZBA1DFD432;28/07/2017;8800;1;254;2;Spese in conto capitale;2;Investimenti fissi lordi e acquisto di terreni;1;Beni materiali;99;Altri beni materiali;999;Altri beni materiali diversi;28/07/2017
1918;1;15.000,00;15.000,00;ECOPAVI SRL;ZBC1EFBAA9;28/07/2017;8503;0;410;2;Spese in conto capitale;2;Investimenti fissi lordi e acquisto di terreni;1;Beni materiali;9;Beni immobili;12;Infrastrutture stradali;28/07/2017
1919;1;1.846,59;1.846,59;DUCALERESTAURO SRL;64076987A9;28/07/2017;7450;2;703;2;Spese in conto capitale;2;Investimenti fissi lordi e acquisto di terreni;1;Beni materiali;10;Beni immobili di valore culturale, storico ed artistico;999;Beni immobili di valore culturale, storico ed artistico n.a.c.;28/07/2017
1920;1;4.000,00;4.000,00;SCUOLA MATERNA MARIA BAMBINA;;28/07/2017;1259;0;475;1;Spese correnti;4;Trasferimenti correnti;4;Trasferimenti correnti a Istituzioni Sociali Private;1;Trasferimenti correnti a Istituzioni Sociali Private;1;Trasferimenti correnti a Istituzioni Sociali Private;28/07/2017
1921;1;3.734,00;3.734,00;SOGGETTI DIVERSI;;31/07/2017;3757;0;436;1;Spese correnti;4;Trasferimenti correnti;2;Trasferimenti correnti a Famiglie;5;Altri trasferimenti a famiglie;999;Altri trasferimenti a famiglie n.a.c.;31/07/2017
1923;1;2.010,08;2.010,08;SEMENZATO MARIANGELA;Z4619D1D85;01/08/2017;40;0;263;1;Spese correnti;3;Acquisto di beni e servizi;2;Acquisto di servizi;11;Prestazioni professionali e specialistiche;6;Patrocinio legale;01/08/2017
1924;1;413,77;413,77;SOENERGY S.R.L.;68635615B6;01/08/2017;134;31;112;1;Spese correnti;3;Acquisto di beni e servizi;2;Acquisto di servizi;5;Utenze e canoni;6;Gas;01/08/2017
1925;1;24,86;24,86;SOENERGY S.R.L.;68635615B6;01/08/2017;134;31;112;1;Spese correnti;3;Acquisto di beni e servizi;2;Acquisto di servizi;5;Utenze e canoni;6;Gas;01/08/2017
1926;1;1.589,85;1.589,85;SOENERGY S.R.L.;68635615B6;01/08/2017;134;31;112;1;Spese correnti;3;Acquisto di beni e servizi;2;Acquisto di servizi;5;Utenze e canoni;6;Gas;01/08/2017
1927;1;67,31;467,79;SONEPAR ITALIA SPA;Z671D95B62;01/08/2017;521;0;203;1;Spese correnti;3;Acquisto di beni e servizi;1;Acquisto di beni;2;Altri beni di consumo;999;Altri beni e materiali di consumo n.a.c.;01/08/2017
1927;2;399,48;467,79;SONEPAR ITALIA SPA;Z671D95B62;01/08/2017;521;0;203;1;Spese correnti;3;Acquisto di beni e servizi;1;Acquisto di beni;2;Altri beni di consumo;999;Altri beni e materiali di consumo n.a.c.;01/08/2017
1928;1;566,08;566,08;MYO SPA;Z261F235C6;01/08/2017;621;0;442;1;Spese correnti;3;Acquisto di beni e servizi;1;Acquisto di beni;2;Altri beni di consumo;999;Altri beni e materiali di consumo n.a.c.;01/08/2017
1929;1;268,4;268,4;NE-T BY TELERETE NORDEST SRL;Z651D1DB16;01/08/2017;748;0;72;1;Spese correnti;3;Acquisto di beni e servizi;2;Acquisto di servizi;19;Servizi informatici e di telecomunicazioni;7;Servizi di gestione documentale;01/08/2017
1930;1;34,27;34,27;SOENERGY S.R.L.;68635615B6;01/08/2017;1334;30;113;1;Spese correnti;3;Acquisto di beni e servizi;2;Acquisto di servizi;5;Utenze e canoni;6;Gas;01/08/2017
1931;1;501,03;501,03;SOENERGY S.R.L.;68635615B6;01/08/2017;1334;30;113;1;Spese correnti;3;Acquisto di beni e servizi;2;Acquisto di servizi;5;Utenze e canoni;6;Gas;01/08/2017
1932;1;244,05;244,05;SOENERGY S.R.L.;68635615B6;01/08/2017;1334;30;113;1;Spese correnti;3;Acquisto di beni e servizi;2;Acquisto di servizi;5;Utenze e canoni;6;Gas;01/08/2017
1933;1;879,07;879,07;SOENERGY S.R.L.;68635615B6;01/08/2017;1334;30;113;1;Spese correnti;3;Acquisto di beni e servizi;2;Acquisto di servizi;5;Utenze e canoni;6;Gas;01/08/2017
1934;1;177;177;SOENERGY S.R.L.;68635615B6;01/08/2017;1334;30;113;1;Spese correnti;3;Acquisto di beni e servizi;2;Acquisto di servizi;5;Utenze e canoni;6;Gas;01/08/2017
1935;1;153,71;153,71;SOENERGY S.R.L.;68635615B6;01/08/2017;1334;30;113;1;Spese correnti;3;Acquisto di beni e servizi;2;Acquisto di servizi;5;Utenze e canoni;6;Gas;01/08/2017
1936;1;150;150;SOENERGY S.R.L.;68635615B6;01/08/2017;1334;30;113;1;Spese correnti;3;Acquisto di beni e servizi;2;Acquisto di servizi;5;Utenze e canoni;6;Gas;01/08/2017
1937;1;246,66;246,66;SOENERGY S.R.L.;68635615B6;01/08/2017;1334;30;113;1;Spese correnti;3;Acquisto di beni e servizi;2;Acquisto di servizi;5;Utenze e canoni;6;Gas;01/08/2017
1938;1;170;170;SOENERGY S.R.L.;68635615B6;01/08/2017;1334;30;113;1;Spese correnti;3;Acquisto di beni e servizi;2;Acquisto di servizi;5;Utenze e canoni;6;Gas;01/08/2017
1939;1;513,88;513,88;SOENERGY S.R.L.;68635615B6;01/08/2017;1334;30;113;1;Spese correnti;3;Acquisto di beni e servizi;2;Acquisto di servizi;5;Utenze e canoni;6;Gas;01/08/2017
1940;1;83;83;SOENERGY S.R.L.;68635615B6;01/08/2017;1334;30;113;1;Spese correnti;3;Acquisto di beni e servizi;2;Acquisto di servizi;5;Utenze e canoni;6;Gas;01/08/2017
1941;1;252,89;252,89;SOENERGY S.R.L.;68635615B6;01/08/2017;1334;30;113;1;Spese correnti;3;Acquisto di beni e servizi;2;Acquisto di servizi;5;Utenze e canoni;6;Gas;01/08/2017
1942;1;3.878,69;9.370,29;SODEXO ITALIA SPA;67352876A8;01/08/2017;1344;0;447;1;Spese correnti;3;Acquisto di beni e servizi;2;Acquisto di servizi;15;Contratti di servizio pubblico;6;Contratti di servizio per le mense scolastiche;01/08/2017
1942;2;5.493,60;9.370,29;SODEXO ITALIA SPA;67352876A8;01/08/2017;1344;0;447;1;Spese correnti;3;Acquisto di beni e servizi;2;Acquisto di servizi;15;Contratti di servizio pubblico;6;Contratti di servizio per le mense scolastiche;01/08/2017
1943;1;138,65;138,65;SOENERGY S.R.L.;68635615B6;01/08/2017;1934;0;115;1;Spese correnti;3;Acquisto di beni e servizi;2;Acquisto di servizi;5;Utenze e canoni;6;Gas;01/08/2017
1944;1;244,06;244,06;SOENERGY S.R.L.;68635615B6;01/08/2017;1934;0;115;1;Spese correnti;3;Acquisto di beni e servizi;2;Acquisto di servizi;5;Utenze e canoni;6;Gas;01/08/2017
1945;1;879,07;879,07;SOENERGY S.R.L.;68635615B6;01/08/2017;1934;0;115;1;Spese correnti;3;Acquisto di beni e servizi;2;Acquisto di servizi;5;Utenze e canoni;6;Gas;01/08/2017
1946;1;177;177;SOENERGY S.R.L.;68635615B6;01/08/2017;1934;0;115;1;Spese correnti;3;Acquisto di beni e servizi;2;Acquisto di servizi;5;Utenze e canoni;6;Gas;01/08/2017
1947;1;150;150;SOENERGY S.R.L.;68635615B6;01/08/2017;1934;0;115;1;Spese correnti;3;Acquisto di beni e servizi;2;Acquisto di servizi;5;Utenze e canoni;6;Gas;01/08/2017
1948;1;170;170;SOENERGY S.R.L.;68635615B6;01/08/2017;1934;0;115;1;Spese correnti;3;Acquisto di beni e servizi;2;Acquisto di servizi;5;Utenze e canoni;6;Gas;01/08/2017
1949;1;83;83;SOENERGY S.R.L.;68635615B6;01/08/2017;1934;0;115;1;Spese correnti;3;Acquisto di beni e servizi;2;Acquisto di servizi;5;Utenze e canoni;6;Gas;01/08/2017
1950;1;43,11;43,11;SOENERGY S.R.L.;68635615B6;01/08/2017;3534;0;116;1;Spese correnti;3;Acquisto di beni e servizi;2;Acquisto di servizi;5;Utenze e canoni;6;Gas;01/08/2017
1951;1;952,8;952,8;E.N.P.A. ONLUS SEZ. DI MIRA;0;01/08/2017;3659;0;213;1;Spese correnti;4;Trasferimenti correnti;4;Trasferimenti correnti a Istituzioni Sociali Private;1;Trasferimenti correnti a Istituzioni Sociali Private;1;Trasferimenti correnti a Istituzioni Sociali Private;01/08/2017
1952;1;1.903,20;1.903,20;SEMENZATO MARIANGELA;;01/08/2017;830;0;857;1;Spese correnti;3;Acquisto di beni e servizi;2;Acquisto di servizi;1;Organi e incarichi istituzionali dell'amministrazione;8;Compensi agli organi istituzionali di revisione, di controllo ed altri incarichi istituzionali dell'amministrazione;01/08/2017
1953;1;687,92;687,92;FASOLO GIANNI;;01/08/2017;3844;0;420;1;Spese correnti;3;Acquisto di beni e servizi;2;Acquisto di servizi;15;Contratti di servizio pubblico;1;Contratti di servizio di trasporto pubblico;01/08/2017
1954;1;279,37;279,37;PERALE LINA;;01/08/2017;3844;0;378;1;Spese correnti;3;Acquisto di beni e servizi;2;Acquisto di servizi;15;Contratti di servizio pubblico;8;Contratti di servizio di assistenza sociale residenziale e semiresidenziale;01/08/2017
1955;1;1.800,00;1.800,00;"IPAB ""LUIGI MARIUTTO""- CENTRO DI SERVIZI ALLA PERSONA";ZA41CCD01F;01/08/2017;3844;0;398;1;Spese correnti;3;Acquisto di beni e servizi;2;Acquisto di servizi;15;Contratti di servizio pubblico;8;Contratti di servizio di assistenza sociale residenziale e semiresidenziale;01/08/2017
1956;1;513,5;513,5;ZAMENGO FIDALMA;;01/08/2017;3844;0;381;1;Spese correnti;3;Acquisto di beni e servizi;2;Acquisto di servizi;15;Contratti di servizio pubblico;8;Contratti di servizio di assistenza sociale residenziale e semiresidenziale;01/08/2017
1957;1;366,71;366,71;MANENTE LUIGIA;;01/08/2017;3844;0;379;1;Spese correnti;3;Acquisto di beni e servizi;2;Acquisto di servizi;15;Contratti di servizio pubblico;8;Contratti di servizio di assistenza sociale residenziale e semiresidenziale;01/08/2017
1958;1;300;300;MASIERO DORO-SABBADIN RITA;;01/08/2017;3844;0;257;1;Spese correnti;3;Acquisto di beni e servizi;2;Acquisto di servizi;15;Contratti di servizio pubblico;8;Contratti di servizio di assistenza sociale residenziale e semiresidenziale;01/08/2017
1959;1;250;250;GALLO MADDALENA;;01/08/2017;3844;0;248;1;Spese correnti;3;Acquisto di beni e servizi;2;Acquisto di servizi;15;Contratti di servizio pubblico;8;Contratti di servizio di assistenza sociale residenziale e semiresidenziale;01/08/2017
1960;1;500;500;CAZZIN TERESA;;01/08/2017;3844;0;238;1;Spese correnti;3;Acquisto di beni e servizi;2;Acquisto di servizi;15;Contratti di servizio pubblico;8;Contratti di servizio di assistenza sociale residenziale e semiresidenziale;01/08/2017
1961;1;110;220;SOGGETTI DIVERSI;;01/08/2017;3957;54;681;1;Spese correnti;4;Trasferimenti correnti;2;Trasferimenti correnti a Famiglie;5;Altri trasferimenti a famiglie;999;Altri trasferimenti a famiglie n.a.c.;01/08/2017
1961;2;110;220;SOGGETTI DIVERSI;;01/08/2017;3957;54;681;1;Spese correnti;4;Trasferimenti correnti;2;Trasferimenti correnti a Famiglie;5;Altri trasferimenti a famiglie;999;Altri trasferimenti a famiglie n.a.c.;01/08/2017
1962;1;440;1.570,00;SOGGETTI DIVERSI;;01/08/2017;3957;54;681;1;Spese correnti;4;Trasferimenti correnti;2;Trasferimenti correnti a Famiglie;5;Altri trasferimenti a famiglie;999;Altri trasferimenti a famiglie n.a.c.;01/08/2017
1962;2;220;1.570,00;SOGGETTI DIVERSI;;01/08/2017;3957;54;681;1;Spese correnti;4;Trasferimenti correnti;2;Trasferimenti correnti a Famiglie;5;Altri trasferimenti a famiglie;999;Altri trasferimenti a famiglie n.a.c.;01/08/2017
1962;3;260;1.570,00;SOGGETTI DIVERSI;;01/08/2017;3957;54;681;1;Spese correnti;4;Trasferimenti correnti;2;Trasferimenti correnti a Famiglie;5;Altri trasferimenti a famiglie;999;Altri trasferimenti a famiglie n.a.c.;01/08/2017
1962;4;130;1.570,00;SOGGETTI DIVERSI;;01/08/2017;3957;54;681;1;Spese correnti;4;Trasferimenti correnti;2;Trasferimenti correnti a Famiglie;5;Altri trasferimenti a famiglie;999;Altri trasferimenti a famiglie n.a.c.;01/08/2017
1962;5;260;1.570,00;SOGGETTI DIVERSI;;01/08/2017;3957;54;681;1;Spese correnti;4;Trasferimenti correnti;2;Trasferimenti correnti a Famiglie;5;Altri trasferimenti a famiglie;999;Altri trasferimenti a famiglie n.a.c.;01/08/2017
1962;6;260;1.570,00;SOGGETTI DIVERSI;;01/08/2017;3957;54;681;1;Spese correnti;4;Trasferimenti correnti;2;Trasferimenti correnti a Famiglie;5;Altri trasferimenti a famiglie;999;Altri trasferimenti a famiglie n.a.c.;01/08/2017
1963;1;600;600;BERTOLDO PIETRO E ZAMENGO ELVIRA;;01/08/2017;4236;0;591;1;Spese correnti;3;Acquisto di beni e servizi;2;Acquisto di servizi;7;Utilizzo di beni di terzi;1;Locazione di beni immobili;01/08/2017
1964;1;200;200;CONSULT 3 SAS PER CONTO CONDOM.AL SOLE;;01/08/2017;549;0;482;1;Spese correnti;3;Acquisto di beni e servizi;2;Acquisto di servizi;99;Altri servizi;999;Altri servizi diversi n.a.c.;01/08/2017
1965;1;59,57;59,57;C/C/P 15453301 SERVIZIO DI TESORERIA COM;;02/08/2017;146;0;0;1;Spese correnti;3;Acquisto di beni e servizi;2;Acquisto di servizi;17;Servizi finanziari;999;Spese per servizi finanziari n.a.c.;02/08/2017
1966;1;49,65;49,65;C/C/P 15453301 SERVIZIO DI TESORERIA COM;;02/08/2017;146;0;0;1;Spese correnti;3;Acquisto di beni e servizi;2;Acquisto di servizi;17;Servizi finanziari;999;Spese per servizi finanziari n.a.c.;02/08/2017
1967;1;1,41;1,41;NEOPOST ITALIA SRL;ZB31DCA28F;02/08/2017;145;0;226;1;Spese correnti;3;Acquisto di beni e servizi;2;Acquisto di servizi;16;Servizi amministrativi;2;Spese postali;02/08/2017
1969;1;11.388,60;11.388,60;AGENZIA DELLE ENTRATE - IVA;;03/08/2017;291;0;485;1;Spese correnti;10;Altre spese correnti;3;Versamenti IVA a debito;1;Versamenti IVA a debito per le gestioni commerciali;1;Versamenti IVA a debito per le gestioni commerciali;03/08/2017
1970;1;3.120,00;3.120,00;DE LIBERALI ENNIO E BORTOLATO GRAZIELLA;;03/08/2017;4236;0;171;1;Spese correnti;3;Acquisto di beni e servizi;2;Acquisto di servizi;7;Utilizzo di beni di terzi;1;Locazione di beni immobili;03/08/2017
1971;1;2.317,92;2.317,92;ITW CONSTRUCTION PRODUCTS ITALY SRL;;08/08/2017;30;99;97;1;Spese correnti;3;Acquisto di beni e servizi;2;Acquisto di servizi;1;Organi e incarichi istituzionali dell'amministrazione;2;Organi istituzionali dell'amministrazione - Rimborsi;08/08/2017
1972;1;390;390;PRESS SAS DI G.VALERIO E C.;Z1D1D1E41D;08/08/2017;31;0;406;1;Spese correnti;3;Acquisto di beni e servizi;2;Acquisto di servizi;2;Organizzazione eventi, pubblicita` e servizi per trasferta;999;Altre spese per relazioni pubbliche, convegni e mostre, pubblicita` n.a.c;08/08/2017
1973;1;3.806,40;3.806,40;LOATO PAOLO;;08/08/2017;230;0;458;1;Spese correnti;3;Acquisto di beni e servizi;2;Acquisto di servizi;1;Organi e incarichi istituzionali dell'amministrazione;8;Compensi agli organi istituzionali di revisione, di controllo ed altri incarichi istituzionali dell'amministrazione;08/08/2017
1974;1;2.928,00;2.928,00;DISMA SAS DI ANGELO RIGO & C.;Z5A1CF26DA;08/08/2017;2049;0;33;1;Spese correnti;3;Acquisto di beni e servizi;2;Acquisto di servizi;99;Altri servizi;999;Altri servizi diversi n.a.c.;08/08/2017
1975;1;6.885,23;6.885,23;SCANTAMBURLO PIETRO;Z511DC05BE;08/08/2017;2438;0;224;1;Spese correnti;3;Acquisto di beni e servizi;2;Acquisto di servizi;9;Manutenzione ordinaria e riparazioni;12;Manutenzione ordinaria e riparazioni di terreni e beni materiali non prodotti;08/08/2017
1976;1;222,3;222,3;BUSITALIA VENETO SPA;Z341E6562C;08/08/2017;3844;0;354;1;Spese correnti;3;Acquisto di beni e servizi;2;Acquisto di servizi;15;Contratti di servizio pubblico;1;Contratti di servizio di trasporto pubblico;08/08/2017
1977;1;5.804,27;5.804,27;MARZARO IMPIANTI DI MARZARO ROBERTO;Z871716266;08/08/2017;4438;0;824;1;Spese correnti;3;Acquisto di beni e servizi;2;Acquisto di servizi;9;Manutenzione ordinaria e riparazioni;8;Manutenzione ordinaria e riparazioni di beni immobili;08/08/2017
1978;1;9.421,39;9.421,39;VECCHIATO GUIDO SAS DI VECCHIATO ALESSANDRO;ZF31EACEE0;08/08/2017;8418;0;325;2;Spese in conto capitale;2;Investimenti fissi lordi e acquisto di terreni;1;Beni materiali;9;Beni immobili;16;Impianti sportivi;08/08/2017
1979;1;16.000,00;16.000,00;IST.COMPR.STAT.F.E P.CORDENONS;;08/08/2017;1350;0;484;1;Spese correnti;4;Trasferimenti correnti;1;Trasferimenti correnti a Amministrazioni Pubbliche;1;Trasferimenti correnti a Amministrazioni Centrali;2;Trasferimenti correnti a Ministero dell'Istruzione - Istituzioni scolastiche;08/08/2017
1980;1;1.701,00;1.701,00;"IPAB ""LUIGI MARIUTTO""- CENTRO DI SERVIZI ALLA PERSONA";;08/08/2017;3844;0;476;1;Spese correnti;3;Acquisto di beni e servizi;2;Acquisto di servizi;15;Contratti di servizio pubblico;999;Altre spese per contratti di servizio pubblico;08/08/2017
1981;1;200;950;SOGGETTI DIVERSI;;08/08/2017;4157;0;476;1;Spese correnti;4;Trasferimenti correnti;2;Trasferimenti correnti a Famiglie;2;Interventi assistenziali;999;Altri assegni e sussidi assistenziali;08/08/2017
1981;2;150;950;SOGGETTI DIVERSI;;08/08/2017;4157;0;476;1;Spese correnti;4;Trasferimenti correnti;2;Trasferimenti correnti a Famiglie;2;Interventi assistenziali;999;Altri assegni e sussidi assistenziali;08/08/2017
1981;3;200;950;SOGGETTI DIVERSI;;08/08/2017;4157;0;476;1;Spese correnti;4;Trasferimenti correnti;2;Trasferimenti correnti a Famiglie;2;Interventi assistenziali;999;Altri assegni e sussidi assistenziali;08/08/2017
1981;4;200;950;SOGGETTI DIVERSI;;08/08/2017;4157;0;476;1;Spese correnti;4;Trasferimenti correnti;2;Trasferimenti correnti a Famiglie;2;Interventi assistenziali;999;Altri assegni e sussidi assistenziali;08/08/2017
1981;5;200;950;SOGGETTI DIVERSI;;08/08/2017;4157;0;476;1;Spese correnti;4;Trasferimenti correnti;2;Trasferimenti correnti a Famiglie;2;Interventi assistenziali;999;Altri assegni e sussidi assistenziali;08/08/2017
1982;1;250;250;SOGGETTI DIVERSI;;08/08/2017;4157;0;19;1;Spese correnti;4;Trasferimenti correnti;2;Trasferimenti correnti a Famiglie;2;Interventi assistenziali;999;Altri assegni e sussidi assistenziali;08/08/2017
1983;1;13,41;647,56;COMUNE DI S.MARIA DI SALA;;08/08/2017;332;0;0;1;Spese correnti;3;Acquisto di beni e servizi;2;Acquisto di servizi;3;Aggi di riscossione;999;Altri aggi di riscossione n.a.c.;08/08/2017
1983;2;14,5;647,56;COMUNE DI S.MARIA DI SALA;;08/08/2017;332;0;0;1;Spese correnti;3;Acquisto di beni e servizi;2;Acquisto di servizi;3;Aggi di riscossione;999;Altri aggi di riscossione n.a.c.;08/08/2017
1983;3;280,09;647,56;COMUNE DI S.MARIA DI SALA;;08/08/2017;332;0;0;1;Spese correnti;3;Acquisto di beni e servizi;2;Acquisto di servizi;3;Aggi di riscossione;999;Altri aggi di riscossione n.a.c.;08/08/2017
1983;4;340,56;647,56;COMUNE DI S.MARIA DI SALA;;08/08/2017;332;0;0;1;Spese correnti;3;Acquisto di beni e servizi;2;Acquisto di servizi;3;Aggi di riscossione;999;Altri aggi di riscossione n.a.c.;08/08/2017
1984;1;110,93;573,81;ABACO SPA;5325258DE8;08/08/2017;332;0;0;1;Spese correnti;3;Acquisto di beni e servizi;2;Acquisto di servizi;3;Aggi di riscossione;999;Altri aggi di riscossione n.a.c.;08/08/2017
1984;2;463,88;573,81;ABACO SPA;5325258DE8;08/08/2017;332;0;0;1;Spese correnti;3;Acquisto di beni e servizi;2;Acquisto di servizi;3;Aggi di riscossione;999;Altri aggi di riscossione n.a.c.;08/08/2017
1985;1;88.587,64;88.587,64;ECOPAVI SRL;704280528B;08/08/2017;8417;0;839;2;Spese in conto capitale;2;Investimenti fissi lordi e acquisto di terreni;1;Beni materiali;9;Beni immobili;16;Impianti sportivi;08/08/2017
1987;1;150;5.116,88;SOGGETTI DIVERSI;;09/08/2017;4157;0;16;1;Spese correnti;4;Trasferimenti correnti;2;Trasferimenti correnti a Famiglie;2;Interventi assistenziali;999;Altri assegni e sussidi assistenziali;09/08/2017
1987;2;50;5.116,88;SOGGETTI DIVERSI;;09/08/2017;4157;0;16;1;Spese correnti;4;Trasferimenti correnti;2;Trasferimenti correnti a Famiglie;2;Interventi assistenziali;999;Altri assegni e sussidi assistenziali;09/08/2017
1987;3;21,88;5.116,88;ATER AZ.TERR.EDIL.RESIDENZIALE;;09/08/2017;4157;0;16;1;Spese correnti;4;Trasferimenti correnti;2;Trasferimenti correnti a Famiglie;2;Interventi assistenziali;999;Altri assegni e sussidi assistenziali;09/08/2017
1987;4;130;5.116,88;SOGGETTI DIVERSI;;09/08/2017;4157;0;16;1;Spese correnti;4;Trasferimenti correnti;2;Trasferimenti correnti a Famiglie;2;Interventi assistenziali;999;Altri assegni e sussidi assistenziali;09/08/2017
1987;5;130;5.116,88;SOGGETTI DIVERSI;;09/08/2017;4157;0;16;1;Spese correnti;4;Trasferimenti correnti;2;Trasferimenti correnti a Famiglie;2;Interventi assistenziali;999;Altri assegni e sussidi assistenziali;09/08/2017
1987;6;100;5.116,88;SOGGETTI DIVERSI;;09/08/2017;4157;0;16;1;Spese correnti;4;Trasferimenti correnti;2;Trasferimenti correnti a Famiglie;2;Interventi assistenziali;999;Altri assegni e sussidi assistenziali;09/08/2017
1987;7;130;5.116,88;SOGGETTI DIVERSI;;09/08/2017;4157;0;16;1;Spese correnti;4;Trasferimenti correnti;2;Trasferimenti correnti a Famiglie;2;Interventi assistenziali;999;Altri assegni e sussidi assistenziali;09/08/2017
1987;8;150;5.116,88;SOGGETTI DIVERSI;;09/08/2017;4157;0;16;1;Spese correnti;4;Trasferimenti correnti;2;Trasferimenti correnti a Famiglie;2;Interventi assistenziali;999;Altri assegni e sussidi assistenziali;09/08/2017
1987;9;150;5.116,88;SOGGETTI DIVERSI;;09/08/2017;4157;0;16;1;Spese correnti;4;Trasferimenti correnti;2;Trasferimenti correnti a Famiglie;2;Interventi assistenziali;999;Altri assegni e sussidi assistenziali;09/08/2017
1987;10;150;5.116,88;COOPERATIVA SOCIALE DIEFFE;;09/08/2017;4157;0;16;1;Spese correnti;4;Trasferimenti correnti;2;Trasferimenti correnti a Famiglie;2;Interventi assistenziali;999;Altri assegni e sussidi assistenziali;09/08/2017
1987;11;150;5.116,88;SOGGETTI DIVERSI;;09/08/2017;4157;0;16;1;Spese correnti;4;Trasferimenti correnti;2;Trasferimenti correnti a Famiglie;2;Interventi assistenziali;999;Altri assegni e sussidi assistenziali;09/08/2017
1987;12;100;5.116,88;SOGGETTI DIVERSI;;09/08/2017;4157;0;16;1;Spese correnti;4;Trasferimenti correnti;2;Trasferimenti correnti a Famiglie;2;Interventi assistenziali;999;Altri assegni e sussidi assistenziali;09/08/2017
1987;13;200;5.116,88;SOGGETTI DIVERSI;;09/08/2017;4157;0;16;1;Spese correnti;4;Trasferimenti correnti;2;Trasferimenti correnti a Famiglie;2;Interventi assistenziali;999;Altri assegni e sussidi assistenziali;09/08/2017
1987;14;200;5.116,88;SOGGETTI DIVERSI;;09/08/2017;4157;0;16;1;Spese correnti;4;Trasferimenti correnti;2;Trasferimenti correnti a Famiglie;2;Interventi assistenziali;999;Altri assegni e sussidi assistenziali;09/08/2017
1987;15;140;5.116,88;SOGGETTI DIVERSI;;09/08/2017;4157;0;16;1;Spese correnti;4;Trasferimenti correnti;2;Trasferimenti correnti a Famiglie;2;Interventi assistenziali;999;Altri assegni e sussidi assistenziali;09/08/2017
1987;16;120;5.116,88;SOGGETTI DIVERSI;;09/08/2017;4157;0;16;1;Spese correnti;4;Trasferimenti correnti;2;Trasferimenti correnti a Famiglie;2;Interventi assistenziali;999;Altri assegni e sussidi assistenziali;09/08/2017
1987;17;130;5.116,88;SOGGETTI DIVERSI;;09/08/2017;4157;0;16;1;Spese correnti;4;Trasferimenti correnti;2;Trasferimenti correnti a Famiglie;2;Interventi assistenziali;999;Altri assegni e sussidi assistenziali;09/08/2017
1987;18;150;5.116,88;SOGGETTI DIVERSI;;09/08/2017;4157;0;16;1;Spese correnti;4;Trasferimenti correnti;2;Trasferimenti correnti a Famiglie;2;Interventi assistenziali;999;Altri assegni e sussidi assistenziali;09/08/2017
1987;19;150;5.116,88;SOGGETTI DIVERSI;;09/08/2017;4157;0;16;1;Spese correnti;4;Trasferimenti correnti;2;Trasferimenti correnti a Famiglie;2;Interventi assistenziali;999;Altri assegni e sussidi assistenziali;09/08/2017
1987;20;600;5.116,88;SOGGETTI DIVERSI;;09/08/2017;4157;0;16;1;Spese correnti;4;Trasferimenti correnti;2;Trasferimenti correnti a Famiglie;2;Interventi assistenziali;999;Altri assegni e sussidi assistenziali;09/08/2017
1987;21;150;5.116,88;SOGGETTI DIVERSI;;09/08/2017;4157;0;16;1;Spese correnti;4;Trasferimenti correnti;2;Trasferimenti correnti a Famiglie;2;Interventi assistenziali;999;Altri assegni e sussidi assistenziali;09/08/2017
1987;22;155;5.116,88;SOGGETTI DIVERSI;;09/08/2017;4157;0;16;1;Spese correnti;4;Trasferimenti correnti;2;Trasferimenti correnti a Famiglie;2;Interventi assistenziali;999;Altri assegni e sussidi assistenziali;09/08/2017
1987;23;300;5.116,88;SOGGETTI DIVERSI;;09/08/2017;4157;0;16;1;Spese correnti;4;Trasferimenti correnti;2;Trasferimenti correnti a Famiglie;2;Interventi assistenziali;999;Altri assegni e sussidi assistenziali;09/08/2017
1987;24;250;5.116,88;SOGGETTI DIVERSI;;09/08/2017;4157;0;16;1;Spese correnti;4;Trasferimenti correnti;2;Trasferimenti correnti a Famiglie;2;Interventi assistenziali;999;Altri assegni e sussidi assistenziali;09/08/2017
1987;25;200;5.116,88;SOGGETTI DIVERSI;;09/08/2017;4157;0;16;1;Spese correnti;4;Trasferimenti correnti;2;Trasferimenti correnti a Famiglie;2;Interventi assistenziali;999;Altri assegni e sussidi assistenziali;09/08/2017
1987;26;130;5.116,88;SOGGETTI DIVERSI;;09/08/2017;4157;0;16;1;Spese correnti;4;Trasferimenti correnti;2;Trasferimenti correnti a Famiglie;2;Interventi assistenziali;999;Altri assegni e sussidi assistenziali;09/08/2017
1987;27;70;5.116,88;SOGGETTI DIVERSI;;09/08/2017;4157;0;16;1;Spese correnti;4;Trasferimenti correnti;2;Trasferimenti correnti a Famiglie;2;Interventi assistenziali;999;Altri assegni e sussidi assistenziali;09/08/2017
1987;28;500;5.116,88;SOGGETTI DIVERSI;;09/08/2017;4157;0;16;1;Spese correnti;4;Trasferimenti correnti;2;Trasferimenti correnti a Famiglie;2;Interventi assistenziali;999;Altri assegni e sussidi assistenziali;09/08/2017
1987;29;160;5.116,88;SOGGETTI DIVERSI;;09/08/2017;4157;0;16;1;Spese correnti;4;Trasferimenti correnti;2;Trasferimenti correnti a Famiglie;2;Interventi assistenziali;999;Altri assegni e sussidi assistenziali;09/08/2017
1987;30;100;5.116,88;SOGGETTI DIVERSI;;09/08/2017;4157;0;16;1;Spese correnti;4;Trasferimenti correnti;2;Trasferimenti correnti a Famiglie;2;Interventi assistenziali;999;Altri assegni e sussidi assistenziali;09/08/2017
1988;1;1.665,69;1.665,69;P.& G. AUTOSERVICE SNC;Z531F5C20D;09/08/2017;3538;0;470;1;Spese correnti;3;Acquisto di beni e servizi;2;Acquisto di servizi;9;Manutenzione ordinaria e riparazioni;1;Manutenzione ordinaria e riparazioni di mezzi di trasporto ad uso civile, di sicurezza e ordine pubblico;09/08/2017
1989;1;3.680,52;3.680,52;PIANON MAURIZIO;Z631ED226D;09/08/2017;8503;0;395;2;Spese in conto capitale;2;Investimenti fissi lordi e acquisto di terreni;1;Beni materiali;9;Beni immobili;12;Infrastrutture stradali;09/08/2017
1990;1;23,53;14.384,87;AEC ILLUMINAZIONE SRL;ZEA1E5A9A4;09/08/2017;8601;0;912;2;Spese in conto capitale;2;Investimenti fissi lordi e acquisto di terreni;1;Beni materiali;9;Beni immobili;12;Infrastrutture stradali;09/08/2017
1990;2;14.361,34;14.384,87;AEC ILLUMINAZIONE SRL;ZEA1E5A9A4;09/08/2017;8601;0;912;2;Spese in conto capitale;2;Investimenti fissi lordi e acquisto di terreni;1;Beni materiali;9;Beni immobili;12;Infrastrutture stradali;09/08/2017
1991;1;1.214,90;1.214,90;NOISICURI PROJECT S.R.L.;Z481A51183;09/08/2017;1140;0;404;1;Spese correnti;3;Acquisto di beni e servizi;2;Acquisto di servizi;11;Prestazioni professionali e specialistiche;999;Altre prestazioni professionali e specialistiche n.a.c.;09/08/2017
1994;1;8.187,72;8.187,72;DIVERSI-AMMINISTRATORI COM.LI;;10/08/2017;30;99;0;1;Spese correnti;3;Acquisto di beni e servizi;2;Acquisto di servizi;1;Organi e incarichi istituzionali dell'amministrazione;1;Organi istituzionali dell'amministrazione - Indennit?;10/08/2017
2055;1;2,46;9,45;V.E.R.I.T.A.S. SPA;;10/08/2017;134;30;93;1;Spese correnti;3;Acquisto di beni e servizi;2;Acquisto di servizi;5;Utenze e canoni;5;Acqua;10/08/2017
2055;2;7,99;9,45;V.E.R.I.T.A.S. SPA;;10/08/2017;134;30;93;1;Spese correnti;3;Acquisto di beni e servizi;2;Acquisto di servizi;5;Utenze e canoni;5;Acqua;10/08/2017
2056;1;25,47;25,47;V.E.R.I.T.A.S. SPA;;10/08/2017;134;31;94;1;Spese correnti;3;Acquisto di beni e servizi;2;Acquisto di servizi;5;Utenze e canoni;5;Acqua;10/08/2017
2057;1;12,92;40,63;V.E.R.I.T.A.S. SPA;;10/08/2017;134;31;94;1;Spese correnti;3;Acquisto di beni e servizi;2;Acquisto di servizi;5;Utenze e canoni;5;Acqua;10/08/2017
2057;2;14,76;40,63;V.E.R.I.T.A.S. SPA;;10/08/2017;134;31;94;1;Spese correnti;3;Acquisto di beni e servizi;2;Acquisto di servizi;5;Utenze e canoni;5;Acqua;10/08/2017
2057;3;14,95;40,63;V.E.R.I.T.A.S. SPA;;10/08/2017;134;31;94;1;Spese correnti;3;Acquisto di beni e servizi;2;Acquisto di servizi;5;Utenze e canoni;5;Acqua;10/08/2017
2058;1;20;80;V.E.R.I.T.A.S. SPA;;10/08/2017;134;31;94;1;Spese correnti;3;Acquisto di beni e servizi;2;Acquisto di servizi;5;Utenze e canoni;5;Acqua;10/08/2017
2058;2;60;80;V.E.R.I.T.A.S. SPA;;10/08/2017;134;31;94;1;Spese correnti;3;Acquisto di beni e servizi;2;Acquisto di servizi;5;Utenze e canoni;5;Acqua;10/08/2017
2059;1;12,97;387,84;V.E.R.I.T.A.S. SPA;;10/08/2017;134;31;94;1;Spese correnti;3;Acquisto di beni e servizi;2;Acquisto di servizi;5;Utenze e canoni;5;Acqua;10/08/2017
2059;2;13;387,84;V.E.R.I.T.A.S. SPA;;10/08/2017;134;31;94;1;Spese correnti;3;Acquisto di beni e servizi;2;Acquisto di servizi;5;Utenze e canoni;5;Acqua;10/08/2017
2059;3;14,96;387,84;V.E.R.I.T.A.S. SPA;;10/08/2017;134;31;94;1;Spese correnti;3;Acquisto di beni e servizi;2;Acquisto di servizi;5;Utenze e canoni;5;Acqua;10/08/2017
2059;4;14,96;387,84;V.E.R.I.T.A.S. SPA;;10/08/2017;134;31;94;1;Spese correnti;3;Acquisto di beni e servizi;2;Acquisto di servizi;5;Utenze e canoni;5;Acqua;10/08/2017
2059;5;15,92;387,84;V.E.R.I.T.A.S. SPA;;10/08/2017;134;31;94;1;Spese correnti;3;Acquisto di beni e servizi;2;Acquisto di servizi;5;Utenze e canoni;5;Acqua;10/08/2017
2059;6;16,34;387,84;V.E.R.I.T.A.S. SPA;;10/08/2017;134;31;94;1;Spese correnti;3;Acquisto di beni e servizi;2;Acquisto di servizi;5;Utenze e canoni;5;Acqua;10/08/2017
2059;7;21,44;387,84;V.E.R.I.T.A.S. SPA;;10/08/2017;134;31;94;1;Spese correnti;3;Acquisto di beni e servizi;2;Acquisto di servizi;5;Utenze e canoni;5;Acqua;10/08/2017
2059;8;22,46;387,84;V.E.R.I.T.A.S. SPA;;10/08/2017;134;31;94;1;Spese correnti;3;Acquisto di beni e servizi;2;Acquisto di servizi;5;Utenze e canoni;5;Acqua;10/08/2017
2059;9;22,46;387,84;V.E.R.I.T.A.S. SPA;;10/08/2017;134;31;94;1;Spese correnti;3;Acquisto di beni e servizi;2;Acquisto di servizi;5;Utenze e canoni;5;Acqua;10/08/2017
2059;10;22,46;387,84;V.E.R.I.T.A.S. SPA;;10/08/2017;134;31;94;1;Spese correnti;3;Acquisto di beni e servizi;2;Acquisto di servizi;5;Utenze e canoni;5;Acqua;10/08/2017
2059;11;22,46;387,84;V.E.R.I.T.A.S. SPA;;10/08/2017;134;31;94;1;Spese correnti;3;Acquisto di beni e servizi;2;Acquisto di servizi;5;Utenze e canoni;5;Acqua;10/08/2017
2059;12;22,46;387,84;V.E.R.I.T.A.S. SPA;;10/08/2017;134;31;94;1;Spese correnti;3;Acquisto di beni e servizi;2;Acquisto di servizi;5;Utenze e canoni;5;Acqua;10/08/2017
2059;13;22,46;387,84;V.E.R.I.T.A.S. SPA;;10/08/2017;134;31;94;1;Spese correnti;3;Acquisto di beni e servizi;2;Acquisto di servizi;5;Utenze e canoni;5;Acqua;10/08/2017
2059;14;22,46;387,84;V.E.R.I.T.A.S. SPA;;10/08/2017;134;31;94;1;Spese correnti;3;Acquisto di beni e servizi;2;Acquisto di servizi;5;Utenze e canoni;5;Acqua;10/08/2017
2059;15;22,46;387,84;V.E.R.I.T.A.S. SPA;;10/08/2017;134;31;94;1;Spese correnti;3;Acquisto di beni e servizi;2;Acquisto di servizi;5;Utenze e canoni;5;Acqua;10/08/2017
2059;16;22,46;387,84;V.E.R.I.T.A.S. SPA;;10/08/2017;134;31;94;1;Spese correnti;3;Acquisto di beni e servizi;2;Acquisto di servizi;5;Utenze e canoni;5;Acqua;10/08/2017
2059;17;22,46;387,84;V.E.R.I.T.A.S. SPA;;10/08/2017;134;31;94;1;Spese correnti;3;Acquisto di beni e servizi;2;Acquisto di servizi;5;Utenze e canoni;5;Acqua;10/08/2017
2059;18;22,46;387,84;V.E.R.I.T.A.S. SPA;;10/08/2017;134;31;94;1;Spese correnti;3;Acquisto di beni e servizi;2;Acquisto di servizi;5;Utenze e canoni;5;Acqua;10/08/2017
2059;19;34,19;387,84;V.E.R.I.T.A.S. SPA;;10/08/2017;134;31;94;1;Spese correnti;3;Acquisto di beni e servizi;2;Acquisto di servizi;5;Utenze e canoni;5;Acqua;10/08/2017
2060;1;22,46;318,24;V.E.R.I.T.A.S. SPA;;10/08/2017;1334;30;95;1;Spese correnti;3;Acquisto di beni e servizi;2;Acquisto di servizi;5;Utenze e canoni;5;Acqua;10/08/2017
2060;2;296,78;318,24;V.E.R.I.T.A.S. SPA;;10/08/2017;1334;30;95;1;Spese correnti;3;Acquisto di beni e servizi;2;Acquisto di servizi;5;Utenze e canoni;5;Acqua;10/08/2017
2061;1;22,46;238;V.E.R.I.T.A.S. SPA;;10/08/2017;1334;30;95;1;Spese correnti;3;Acquisto di beni e servizi;2;Acquisto di servizi;5;Utenze e canoni;5;Acqua;10/08/2017
2061;2;47,4;238;V.E.R.I.T.A.S. SPA;;10/08/2017;1334;30;95;1;Spese correnti;3;Acquisto di beni e servizi;2;Acquisto di servizi;5;Utenze e canoni;5;Acqua;10/08/2017
2061;3;168,14;238;V.E.R.I.T.A.S. SPA;;10/08/2017;1334;30;95;1;Spese correnti;3;Acquisto di beni e servizi;2;Acquisto di servizi;5;Utenze e canoni;5;Acqua;10/08/2017
2062;1;29,41;29,41;V.E.R.I.T.A.S. SPA;;10/08/2017;1334;30;95;1;Spese correnti;3;Acquisto di beni e servizi;2;Acquisto di servizi;5;Utenze e canoni;5;Acqua;10/08/2017
2063;1;11,23;11,23;V.E.R.I.T.A.S. SPA;;10/08/2017;1334;30;95;1;Spese correnti;3;Acquisto di beni e servizi;2;Acquisto di servizi;5;Utenze e canoni;5;Acqua;10/08/2017
2064;1;42,49;42,49;V.E.R.I.T.A.S. SPA;;10/08/2017;1334;30;95;1;Spese correnti;3;Acquisto di beni e servizi;2;Acquisto di servizi;5;Utenze e canoni;5;Acqua;10/08/2017
2065;1;11,23;11,23;V.E.R.I.T.A.S. SPA;;10/08/2017;1334;30;95;1;Spese correnti;3;Acquisto di beni e servizi;2;Acquisto di servizi;5;Utenze e canoni;5;Acqua;10/08/2017
2066;1;31;31;V.E.R.I.T.A.S. SPA;;10/08/2017;1334;30;95;1;Spese correnti;3;Acquisto di beni e servizi;2;Acquisto di servizi;5;Utenze e canoni;5;Acqua;10/08/2017
2067;1;95,87;95,87;V.E.R.I.T.A.S. SPA;;10/08/2017;1334;30;95;1;Spese correnti;3;Acquisto di beni e servizi;2;Acquisto di servizi;5;Utenze e canoni;5;Acqua;10/08/2017
2068;1;5;5;V.E.R.I.T.A.S. SPA;;10/08/2017;1334;30;95;1;Spese correnti;3;Acquisto di beni e servizi;2;Acquisto di servizi;5;Utenze e canoni;5;Acqua;10/08/2017
2069;1;12,46;12,46;V.E.R.I.T.A.S. SPA;;10/08/2017;1334;30;95;1;Spese correnti;3;Acquisto di beni e servizi;2;Acquisto di servizi;5;Utenze e canoni;5;Acqua;10/08/2017
2070;1;12;12;V.E.R.I.T.A.S. SPA;;10/08/2017;1334;30;95;1;Spese correnti;3;Acquisto di beni e servizi;2;Acquisto di servizi;5;Utenze e canoni;5;Acqua;10/08/2017
2071;1;10,78;10,78;V.E.R.I.T.A.S. SPA;;10/08/2017;1334;30;95;1;Spese correnti;3;Acquisto di beni e servizi;2;Acquisto di servizi;5;Utenze e canoni;5;Acqua;10/08/2017
2072;1;7;7;V.E.R.I.T.A.S. SPA;;10/08/2017;1334;30;95;1;Spese correnti;3;Acquisto di beni e servizi;2;Acquisto di servizi;5;Utenze e canoni;5;Acqua;10/08/2017
2073;1;8,46;8,46;V.E.R.I.T.A.S. SPA;;10/08/2017;1334;30;95;1;Spese correnti;3;Acquisto di beni e servizi;2;Acquisto di servizi;5;Utenze e canoni;5;Acqua;10/08/2017
2074;1;7;7;V.E.R.I.T.A.S. SPA;;10/08/2017;1334;30;95;1;Spese correnti;3;Acquisto di beni e servizi;2;Acquisto di servizi;5;Utenze e canoni;5;Acqua;10/08/2017
2075;1;12,82;12,82;V.E.R.I.T.A.S. SPA;;10/08/2017;1334;30;95;1;Spese correnti;3;Acquisto di beni e servizi;2;Acquisto di servizi;5;Utenze e canoni;5;Acqua;10/08/2017
2076;1;4;4;V.E.R.I.T.A.S. SPA;;10/08/2017;1334;30;95;1;Spese correnti;3;Acquisto di beni e servizi;2;Acquisto di servizi;5;Utenze e canoni;5;Acqua;10/08/2017
2077;1;14,46;14,46;V.E.R.I.T.A.S. SPA;;10/08/2017;1334;30;95;1;Spese correnti;3;Acquisto di beni e servizi;2;Acquisto di servizi;5;Utenze e canoni;5;Acqua;10/08/2017
2078;1;6;6;V.E.R.I.T.A.S. SPA;;10/08/2017;1334;30;95;1;Spese correnti;3;Acquisto di beni e servizi;2;Acquisto di servizi;5;Utenze e canoni;5;Acqua;10/08/2017
2079;1;10,46;10,46;V.E.R.I.T.A.S. SPA;;10/08/2017;1334;30;95;1;Spese correnti;3;Acquisto di beni e servizi;2;Acquisto di servizi;5;Utenze e canoni;5;Acqua;10/08/2017
2080;1;102;102;V.E.R.I.T.A.S. SPA;;10/08/2017;1334;30;95;1;Spese correnti;3;Acquisto di beni e servizi;2;Acquisto di servizi;5;Utenze e canoni;5;Acqua;10/08/2017
2081;1;167,98;167,98;V.E.R.I.T.A.S. SPA;;10/08/2017;1334;30;95;1;Spese correnti;3;Acquisto di beni e servizi;2;Acquisto di servizi;5;Utenze e canoni;5;Acqua;10/08/2017
2082;1;29,41;29,41;V.E.R.I.T.A.S. SPA;;10/08/2017;1934;0;97;1;Spese correnti;3;Acquisto di beni e servizi;2;Acquisto di servizi;5;Utenze e canoni;5;Acqua;10/08/2017
2083;1;11,23;11,23;V.E.R.I.T.A.S. SPA;;10/08/2017;1934;0;97;1;Spese correnti;3;Acquisto di beni e servizi;2;Acquisto di servizi;5;Utenze e canoni;5;Acqua;10/08/2017
2084;1;43,5;43,5;V.E.R.I.T.A.S. SPA;;10/08/2017;1934;0;97;1;Spese correnti;3;Acquisto di beni e servizi;2;Acquisto di servizi;5;Utenze e canoni;5;Acqua;10/08/2017
2085;1;11,23;11,23;V.E.R.I.T.A.S. SPA;;10/08/2017;1934;0;97;1;Spese correnti;3;Acquisto di beni e servizi;2;Acquisto di servizi;5;Utenze e canoni;5;Acqua;10/08/2017
2086;1;31;31;V.E.R.I.T.A.S. SPA;;10/08/2017;1934;0;97;1;Spese correnti;3;Acquisto di beni e servizi;2;Acquisto di servizi;5;Utenze e canoni;5;Acqua;10/08/2017
2087;1;5;5;V.E.R.I.T.A.S. SPA;;10/08/2017;1934;0;97;1;Spese correnti;3;Acquisto di beni e servizi;2;Acquisto di servizi;5;Utenze e canoni;5;Acqua;10/08/2017
2088;1;12;12;V.E.R.I.T.A.S. SPA;;10/08/2017;1934;0;97;1;Spese correnti;3;Acquisto di beni e servizi;2;Acquisto di servizi;5;Utenze e canoni;5;Acqua;10/08/2017
2089;1;7;7;V.E.R.I.T.A.S. SPA;;10/08/2017;1934;0;97;1;Spese correnti;3;Acquisto di beni e servizi;2;Acquisto di servizi;5;Utenze e canoni;5;Acqua;10/08/2017
2090;1;7;7;V.E.R.I.T.A.S. SPA;;10/08/2017;1934;0;97;1;Spese correnti;3;Acquisto di beni e servizi;2;Acquisto di servizi;5;Utenze e canoni;5;Acqua;10/08/2017
2091;1;4;4;V.E.R.I.T.A.S. SPA;;10/08/2017;1934;0;97;1;Spese correnti;3;Acquisto di beni e servizi;2;Acquisto di servizi;5;Utenze e canoni;5;Acqua;10/08/2017
2092;1;6;6;V.E.R.I.T.A.S. SPA;;10/08/2017;1934;0;97;1;Spese correnti;3;Acquisto di beni e servizi;2;Acquisto di servizi;5;Utenze e canoni;5;Acqua;10/08/2017
2093;1;102;102;V.E.R.I.T.A.S. SPA;;10/08/2017;1934;0;97;1;Spese correnti;3;Acquisto di beni e servizi;2;Acquisto di servizi;5;Utenze e canoni;5;Acqua;10/08/2017
2094;1;14,96;36,42;V.E.R.I.T.A.S. SPA;;10/08/2017;3534;0;98;1;Spese correnti;3;Acquisto di beni e servizi;2;Acquisto di servizi;5;Utenze e canoni;5;Acqua;10/08/2017
2094;2;22,46;36,42;V.E.R.I.T.A.S. SPA;;10/08/2017;3534;0;98;1;Spese correnti;3;Acquisto di beni e servizi;2;Acquisto di servizi;5;Utenze e canoni;5;Acqua;10/08/2017
2095;1;10,45;120,85;V.E.R.I.T.A.S. SPA;;10/08/2017;4234;0;99;1;Spese correnti;3;Acquisto di beni e servizi;2;Acquisto di servizi;5;Utenze e canoni;5;Acqua;10/08/2017
2095;2;22,46;120,85;V.E.R.I.T.A.S. SPA;;10/08/2017;4234;0;99;1;Spese correnti;3;Acquisto di beni e servizi;2;Acquisto di servizi;5;Utenze e canoni;5;Acqua;10/08/2017
2095;3;22,46;120,85;V.E.R.I.T.A.S. SPA;;10/08/2017;4234;0;99;1;Spese correnti;3;Acquisto di beni e servizi;2;Acquisto di servizi;5;Utenze e canoni;5;Acqua;10/08/2017
2095;4;31,7;120,85;V.E.R.I.T.A.S. SPA;;10/08/2017;4234;0;99;1;Spese correnti;3;Acquisto di beni e servizi;2;Acquisto di servizi;5;Utenze e canoni;5;Acqua;10/08/2017
2095;5;34,78;120,85;V.E.R.I.T.A.S. SPA;;10/08/2017;4234;0;99;1;Spese correnti;3;Acquisto di beni e servizi;2;Acquisto di servizi;5;Utenze e canoni;5;Acqua;10/08/2017
2096;1;308,71;308,71;V.E.R.I.T.A.S. SPA;;10/08/2017;4434;0;100;1;Spese correnti;3;Acquisto di beni e servizi;2;Acquisto di servizi;5;Utenze e canoni;5;Acqua;10/08/2017
2097;1;48,92;48,92;ENI SPA DIVISIONE REFINING & MARKETING;Z991D1C5CE;10/08/2017;4121;0;76;1;Spese correnti;3;Acquisto di beni e servizi;1;Acquisto di beni;2;Altri beni di consumo;2;Carburanti, combustibili e lubrificanti;10/08/2017
2098;1;1.700,00;1.700,00;A.S.D. UNIONE GRUPPI SALESI;;10/08/2017;1959;0;494;1;Spese correnti;4;Trasferimenti correnti;4;Trasferimenti correnti a Istituzioni Sociali Private;1;Trasferimenti correnti a Istituzioni Sociali Private;1;Trasferimenti correnti a Istituzioni Sociali Private;10/08/2017
2099;1;1.739,96;1.739,96;ABACO SPA;5325258DE8;21/08/2017;332;0;0;1;Spese correnti;3;Acquisto di beni e servizi;2;Acquisto di servizi;3;Aggi di riscossione;999;Altri aggi di riscossione n.a.c.;21/08/2017
2100;1;44,63;44,63;ABACO SPA;5325258DE8;21/08/2017;332;0;655;1;Spese correnti;3;Acquisto di beni e servizi;2;Acquisto di servizi;3;Aggi di riscossione;999;Altri aggi di riscossione n.a.c.;21/08/2017
2101;1;10,52;21,59;ABACO SPA;Z4B154EC0D;21/08/2017;332;0;810;1;Spese correnti;3;Acquisto di beni e servizi;2;Acquisto di servizi;3;Aggi di riscossione;999;Altri aggi di riscossione n.a.c.;21/08/2017
2101;2;11,07;21,59;ABACO SPA;5325258DE8;21/08/2017;332;0;810;1;Spese correnti;3;Acquisto di beni e servizi;2;Acquisto di servizi;3;Aggi di riscossione;999;Altri aggi di riscossione n.a.c.;21/08/2017
2102;1;84,51;84,51;ABACO SPA;5325258DE8;21/08/2017;332;0;0;1;Spese correnti;3;Acquisto di beni e servizi;2;Acquisto di servizi;3;Aggi di riscossione;999;Altri aggi di riscossione n.a.c.;21/08/2017
2103;1;72,11;72,11;ABACO SPA;5325258DE8;21/08/2017;332;0;0;1;Spese correnti;3;Acquisto di beni e servizi;2;Acquisto di servizi;3;Aggi di riscossione;999;Altri aggi di riscossione n.a.c.;21/08/2017
2104;1;30,62;205,25;ABACO SPA;Z4B0FF1CA6;21/08/2017;1132;0;461;1;Spese correnti;3;Acquisto di beni e servizi;2;Acquisto di servizi;3;Aggi di riscossione;999;Altri aggi di riscossione n.a.c.;21/08/2017
2104;2;80,31;205,25;ABACO SPA;Z4B0FF1CA6;21/08/2017;1132;0;461;1;Spese correnti;3;Acquisto di beni e servizi;2;Acquisto di servizi;3;Aggi di riscossione;999;Altri aggi di riscossione n.a.c.;21/08/2017
2104;3;95,32;205,25;ABACO SPA;Z4B0FF1CA6;21/08/2017;1132;0;461;1;Spese correnti;3;Acquisto di beni e servizi;2;Acquisto di servizi;3;Aggi di riscossione;999;Altri aggi di riscossione n.a.c.;21/08/2017
2105;1;24,94;73,95;ABACO SPA;Z4B154EC0D;21/08/2017;1132;0;504;1;Spese correnti;3;Acquisto di beni e servizi;2;Acquisto di servizi;3;Aggi di riscossione;999;Altri aggi di riscossione n.a.c.;21/08/2017
2105;2;24,46;73,95;ABACO SPA;Z4B154EC0D;21/08/2017;1132;0;504;1;Spese correnti;3;Acquisto di beni e servizi;2;Acquisto di servizi;3;Aggi di riscossione;999;Altri aggi di riscossione n.a.c.;21/08/2017
2105;3;25,55;73,95;ABACO SPA;Z4B154EC0D;21/08/2017;1132;0;504;1;Spese correnti;3;Acquisto di beni e servizi;2;Acquisto di servizi;3;Aggi di riscossione;999;Altri aggi di riscossione n.a.c.;21/08/2017
2106;1;352,76;352,76;SOGGETTI DIVERSI;;22/08/2017;3957;0;688;1;Spese correnti;4;Trasferimenti correnti;2;Trasferimenti correnti a Famiglie;5;Altri trasferimenti a famiglie;999;Altri trasferimenti a famiglie n.a.c.;22/08/2017
2107;1;50;526,8;SOGGETTI DIVERSI;;22/08/2017;3957;0;688;1;Spese correnti;4;Trasferimenti correnti;2;Trasferimenti correnti a Famiglie;5;Altri trasferimenti a famiglie;999;Altri trasferimenti a famiglie n.a.c.;22/08/2017
2107;2;291,2;526,8;SOGGETTI DIVERSI;;22/08/2017;3957;0;688;1;Spese correnti;4;Trasferimenti correnti;2;Trasferimenti correnti a Famiglie;5;Altri trasferimenti a famiglie;999;Altri trasferimenti a famiglie n.a.c.;22/08/2017
2107;3;21,8;526,8;SOGGETTI DIVERSI;;22/08/2017;3957;0;688;1;Spese correnti;4;Trasferimenti correnti;2;Trasferimenti correnti a Famiglie;5;Altri trasferimenti a famiglie;999;Altri trasferimenti a famiglie n.a.c.;22/08/2017
2107;4;18,2;526,8;SOGGETTI DIVERSI;;22/08/2017;3957;0;688;1;Spese correnti;4;Trasferimenti correnti;2;Trasferimenti correnti a Famiglie;5;Altri trasferimenti a famiglie;999;Altri trasferimenti a famiglie n.a.c.;22/08/2017
2107;5;146,6;526,8;SOGGETTI DIVERSI;;22/08/2017;3957;0;688;1;Spese correnti;4;Trasferimenti correnti;2;Trasferimenti correnti a Famiglie;5;Altri trasferimenti a famiglie;999;Altri trasferimenti a famiglie n.a.c.;22/08/2017
2108;1;197;197;SOGGETTI DIVERSI;;22/08/2017;3957;0;688;1;Spese correnti;4;Trasferimenti correnti;2;Trasferimenti correnti a Famiglie;5;Altri trasferimenti a famiglie;999;Altri trasferimenti a famiglie n.a.c.;22/08/2017
2109;1;80;80;KUWAIT PETROLEUM ITALIA SPA;Z021874A21;22/08/2017;121;7;77;1;Spese correnti;3;Acquisto di beni e servizi;1;Acquisto di beni;2;Altri beni di consumo;2;Carburanti, combustibili e lubrificanti;22/08/2017
2110;1;1.949,50;1.949,50;VODAFONE ITALIA SPA;ZD91D19076;22/08/2017;134;0;122;1;Spese correnti;3;Acquisto di beni e servizi;2;Acquisto di servizi;5;Utenze e canoni;2;Telefonia mobile;22/08/2017
2111;1;2.285,65;2.285,65;VODAFONE ITALIA SPA;ZD91D19076;22/08/2017;134;0;122;1;Spese correnti;3;Acquisto di beni e servizi;2;Acquisto di servizi;5;Utenze e canoni;2;Telefonia mobile;22/08/2017
2112;1;60,85;60,85;VODAFONE ITALIA SPA;Z631D18735;22/08/2017;134;30;86;1;Spese correnti;3;Acquisto di beni e servizi;2;Acquisto di servizi;5;Utenze e canoni;1;Telefonia fissa;22/08/2017
2113;1;380;380;DOLOMITI ENERGIA SPA;6679006A1A;22/08/2017;134;30;101;1;Spese correnti;3;Acquisto di beni e servizi;2;Acquisto di servizi;5;Utenze e canoni;4;Energia elettrica;22/08/2017
2114;1;961,24;961,24;VODAFONE ITALIA SPA;Z631D18735;22/08/2017;134;31;87;1;Spese correnti;3;Acquisto di beni e servizi;2;Acquisto di servizi;5;Utenze e canoni;1;Telefonia fissa;22/08/2017
2115;1;424,76;424,76;DOLOMITI ENERGIA SPA;6679006A1A;22/08/2017;134;31;102;1;Spese correnti;3;Acquisto di beni e servizi;2;Acquisto di servizi;5;Utenze e canoni;4;Energia elettrica;22/08/2017
2116;1;35,95;35,95;DOLOMITI ENERGIA SPA;6679006A1A;22/08/2017;134;31;102;1;Spese correnti;3;Acquisto di beni e servizi;2;Acquisto di servizi;5;Utenze e canoni;4;Energia elettrica;22/08/2017
2117;1;2.529,83;2.529,83;DOLOMITI ENERGIA SPA;6679006A1A;22/08/2017;134;31;102;1;Spese correnti;3;Acquisto di beni e servizi;2;Acquisto di servizi;5;Utenze e canoni;4;Energia elettrica;22/08/2017
2118;1;316,1;316,1;DOLOMITI ENERGIA SPA;6679006A1A;22/08/2017;134;31;102;1;Spese correnti;3;Acquisto di beni e servizi;2;Acquisto di servizi;5;Utenze e canoni;4;Energia elettrica;22/08/2017
2119;1;250;250;KUWAIT PETROLEUM ITALIA SPA;Z021874A21;22/08/2017;521;0;78;1;Spese correnti;3;Acquisto di beni e servizi;1;Acquisto di beni;2;Altri beni di consumo;2;Carburanti, combustibili e lubrificanti;22/08/2017
2120;1;9,7;9,7;C.E.I.F. DI BESSEGA VANNI;ZD51D68903;22/08/2017;522;0;174;1;Spese correnti;3;Acquisto di beni e servizi;1;Acquisto di beni;2;Altri beni di consumo;999;Altri beni e materiali di consumo n.a.c.;22/08/2017
2121;1;684,45;684,45;VODAFONE ITALIA SPA;Z681D18B7F;22/08/2017;1334;0;118;1;Spese correnti;3;Acquisto di beni e servizi;2;Acquisto di servizi;5;Utenze e canoni;1;Telefonia fissa;22/08/2017
2122;1;191,58;191,58;VODAFONE ITALIA SPA;Z681D18B7F;22/08/2017;1334;0;119;1;Spese correnti;3;Acquisto di beni e servizi;2;Acquisto di servizi;5;Utenze e canoni;1;Telefonia fissa;22/08/2017
2123;1;98,6;98,6;VODAFONE ITALIA SPA;Z631D18735;22/08/2017;1834;0;88;1;Spese correnti;3;Acquisto di beni e servizi;2;Acquisto di servizi;5;Utenze e canoni;1;Telefonia fissa;22/08/2017
2124;1;427,48;427,48;DOLOMITI ENERGIA SPA;6679006A1A;22/08/2017;1834;0;104;1;Spese correnti;3;Acquisto di beni e servizi;2;Acquisto di servizi;5;Utenze e canoni;4;Energia elettrica;22/08/2017
2125;1;421,73;421,73;DOLOMITI ENERGIA SPA;6679006A1A;22/08/2017;1834;0;104;1;Spese correnti;3;Acquisto di beni e servizi;2;Acquisto di servizi;5;Utenze e canoni;4;Energia elettrica;22/08/2017
2126;1;1.342,00;1.342,00;ARTEVEN;Z301F21140;22/08/2017;1840;0;468;1;Spese correnti;3;Acquisto di beni e servizi;2;Acquisto di servizi;11;Prestazioni professionali e specialistiche;999;Altre prestazioni professionali e specialistiche n.a.c.;22/08/2017
2127;1;424,76;424,76;DOLOMITI ENERGIA SPA;6679006A1A;22/08/2017;1934;0;105;1;Spese correnti;3;Acquisto di beni e servizi;2;Acquisto di servizi;5;Utenze e canoni;4;Energia elettrica;22/08/2017
2128;1;97,96;97,96;DOLOMITI ENERGIA SPA;6679006A1A;22/08/2017;1934;0;105;1;Spese correnti;3;Acquisto di beni e servizi;2;Acquisto di servizi;5;Utenze e canoni;4;Energia elettrica;22/08/2017
2129;1;427,48;427,48;DOLOMITI ENERGIA SPA;6679006A1A;22/08/2017;1934;0;105;1;Spese correnti;3;Acquisto di beni e servizi;2;Acquisto di servizi;5;Utenze e canoni;4;Energia elettrica;22/08/2017
2130;1;250;250;DOLOMITI ENERGIA SPA;6679006A1A;22/08/2017;2734;0;106;1;Spese correnti;3;Acquisto di beni e servizi;2;Acquisto di servizi;5;Utenze e canoni;4;Energia elettrica;22/08/2017
2131;1;430,47;430,47;KUWAIT PETROLEUM ITALIA SPA;Z021874A21;22/08/2017;3521;0;80;1;Spese correnti;3;Acquisto di beni e servizi;1;Acquisto di beni;2;Altri beni di consumo;2;Carburanti, combustibili e lubrificanti;22/08/2017
2132;1;370;370;DOLOMITI ENERGIA SPA;6679006A1A;22/08/2017;3534;0;107;1;Spese correnti;3;Acquisto di beni e servizi;2;Acquisto di servizi;5;Utenze e canoni;4;Energia elettrica;22/08/2017
2133;1;172,07;172,07;IDRONORD SRL;Z251DBDD73;22/08/2017;3538;0;221;1;Spese correnti;3;Acquisto di beni e servizi;2;Acquisto di servizi;9;Manutenzione ordinaria e riparazioni;8;Manutenzione ordinaria e riparazioni di beni immobili;22/08/2017
2134;1;12.063,18;12.063,18;DOLOMITI ENERGIA SPA;6679006A1A;22/08/2017;3544;0;110;1;Spese correnti;3;Acquisto di beni e servizi;2;Acquisto di servizi;15;Contratti di servizio pubblico;15;Contratti di servizio per l'illuminazione pubblica;22/08/2017
2135;1;364,65;364,65;DOLOMITI ENERGIA SPA;6679006A1A;22/08/2017;3544;0;110;1;Spese correnti;3;Acquisto di beni e servizi;2;Acquisto di servizi;15;Contratti di servizio pubblico;15;Contratti di servizio per l'illuminazione pubblica;22/08/2017
2136;1;450;450;KUWAIT PETROLEUM ITALIA SPA;Z021874A21;22/08/2017;4121;0;79;1;Spese correnti;3;Acquisto di beni e servizi;1;Acquisto di beni;2;Altri beni di consumo;2;Carburanti, combustibili e lubrificanti;22/08/2017
2137;1;1.265,27;1.265,27;DOLOMITI ENERGIA SPA;6679006A1A;22/08/2017;4234;0;108;1;Spese correnti;3;Acquisto di beni e servizi;2;Acquisto di servizi;5;Utenze e canoni;4;Energia elettrica;22/08/2017
2138;1;1.592,47;1.592,47;DOLOMITI ENERGIA SPA;6679006A1A;22/08/2017;4234;0;108;1;Spese correnti;3;Acquisto di beni e servizi;2;Acquisto di servizi;5;Utenze e canoni;4;Energia elettrica;22/08/2017
2139;1;320;320;DOLOMITI ENERGIA SPA;6679006A1A;22/08/2017;4434;0;109;1;Spese correnti;3;Acquisto di beni e servizi;2;Acquisto di servizi;5;Utenze e canoni;4;Energia elettrica;22/08/2017
2140;1;7.333,79;7.333,79;FAVARO1 SRL;ZAA1E136BC;22/08/2017;8601;0;912;2;Spese in conto capitale;2;Investimenti fissi lordi e acquisto di terreni;1;Beni materiali;9;Beni immobili;12;Infrastrutture stradali;22/08/2017
2141;1;63,04;63,04;VODAFONE ITALIA SPA;Z631D18735;22/08/2017;3534;0;89;1;Spese correnti;3;Acquisto di beni e servizi;2;Acquisto di servizi;5;Utenze e canoni;1;Telefonia fissa;22/08/2017
2142;1;15.000,00;15.000,00;F.B.F. IMPIANTI SRL;ZA91EFBA71;22/08/2017;7681;0;451;2;Spese in conto capitale;2;Investimenti fissi lordi e acquisto di terreni;1;Beni materiali;9;Beni immobili;3;Fabbricati ad uso scolastico;22/08/2017
2143;1;47.831,78;47.831,78;IDROGEO SRL UNIPERSONALE;7071294867;22/08/2017;8503;0;360;2;Spese in conto capitale;2;Investimenti fissi lordi e acquisto di terreni;1;Beni materiali;9;Beni immobili;12;Infrastrutture stradali;22/08/2017
2144;1;23.000,00;23.000,00;IDROGEO SRL UNIPERSONALE;7071294867;22/08/2017;8602;0;913;2;Spese in conto capitale;2;Investimenti fissi lordi e acquisto di terreni;1;Beni materiali;9;Beni immobili;12;Infrastrutture stradali;22/08/2017
2145;1;519,5;519,5;SOGGETTI DIVERSI;;22/08/2017;3957;0;688;1;Spese correnti;4;Trasferimenti correnti;2;Trasferimenti correnti a Famiglie;5;Altri trasferimenti a famiglie;999;Altri trasferimenti a famiglie n.a.c.;22/08/2017
2146;1;88;6.771,50;BONAVENTURA EXPRESS SRL;6717691DF8;22/08/2017;1344;0;446;1;Spese correnti;3;Acquisto di beni e servizi;2;Acquisto di servizi;15;Contratti di servizio pubblico;2;Contratti di servizio di trasporto scolastico;22/08/2017
2146;2;6.683,50;6.771,50;BONAVENTURA EXPRESS SRL;6717691DF8;22/08/2017;1344;0;446;1;Spese correnti;3;Acquisto di beni e servizi;2;Acquisto di servizi;15;Contratti di servizio pubblico;2;Contratti di servizio di trasporto scolastico;22/08/2017
2153;1;51.348,32;51.348,32;AZIENDA ULSS N. 3 SERENISSIMA;;24/08/2017;3851;0;381;1;Spese correnti;4;Trasferimenti correnti;1;Trasferimenti correnti a Amministrazioni Pubbliche;2;Trasferimenti correnti a Amministrazioni Locali;11;Trasferimenti correnti a Aziende sanitarie locali n.a.f.;24/08/2017
2154;1;5.500,00;5.500,00;AZIENDA ULSS N. 3 SERENISSIMA;;24/08/2017;3851;0;779;1;Spese correnti;4;Trasferimenti correnti;1;Trasferimenti correnti a Amministrazioni Pubbliche;2;Trasferimenti correnti a Amministrazioni Locali;11;Trasferimenti correnti a Aziende sanitarie locali n.a.f.;24/08/2017
2155;1;30.647,79;30.647,79;AZIENDA ULSS N. 3 SERENISSIMA;;24/08/2017;3851;0;645;1;Spese correnti;4;Trasferimenti correnti;1;Trasferimenti correnti a Amministrazioni Pubbliche;2;Trasferimenti correnti a Amministrazioni Locali;11;Trasferimenti correnti a Aziende sanitarie locali n.a.f.;24/08/2017
2156;1;35,86;35,86;SOENERGY S.R.L.;68635615B6;24/08/2017;134;31;112;1;Spese correnti;3;Acquisto di beni e servizi;2;Acquisto di servizi;5;Utenze e canoni;6;Gas;24/08/2017
2157;1;35,86;35,86;SOENERGY S.R.L.;68635615B6;24/08/2017;134;31;112;1;Spese correnti;3;Acquisto di beni e servizi;2;Acquisto di servizi;5;Utenze e canoni;6;Gas;24/08/2017
2158;1;20,33;20,33;SOENERGY S.R.L.;68635615B6;24/08/2017;134;31;112;1;Spese correnti;3;Acquisto di beni e servizi;2;Acquisto di servizi;5;Utenze e canoni;6;Gas;24/08/2017
2159;1;89,38;6.801,14;ECOLOGY COOP SPA;ZED1E8481C;24/08/2017;142;0;356;1;Spese correnti;3;Acquisto di beni e servizi;2;Acquisto di servizi;13;Servizi ausiliari per il funzionamento dell'ente;2;Servizi di pulizia e lavanderia;24/08/2017
2159;2;3.356,88;6.801,14;ECOLOGY COOP SPA;ZED1E8481C;24/08/2017;142;0;356;1;Spese correnti;3;Acquisto di beni e servizi;2;Acquisto di servizi;13;Servizi ausiliari per il funzionamento dell'ente;2;Servizi di pulizia e lavanderia;24/08/2017
2159;3;3.356,88;6.801,14;ECOLOGY COOP SPA;ZED1E8481C;24/08/2017;142;0;356;1;Spese correnti;3;Acquisto di beni e servizi;2;Acquisto di servizi;13;Servizi ausiliari per il funzionamento dell'ente;2;Servizi di pulizia e lavanderia;24/08/2017
2160;1;7;7;SOENERGY S.R.L.;68635615B6;24/08/2017;1334;30;113;1;Spese correnti;3;Acquisto di beni e servizi;2;Acquisto di servizi;5;Utenze e canoni;6;Gas;24/08/2017
2161;1;21,86;21,86;SOENERGY S.R.L.;68635615B6;24/08/2017;1334;30;113;1;Spese correnti;3;Acquisto di beni e servizi;2;Acquisto di servizi;5;Utenze e canoni;6;Gas;24/08/2017
2162;1;10;10;SOENERGY S.R.L.;68635615B6;24/08/2017;1334;30;113;1;Spese correnti;3;Acquisto di beni e servizi;2;Acquisto di servizi;5;Utenze e canoni;6;Gas;24/08/2017
2163;1;15,86;15,86;SOENERGY S.R.L.;68635615B6;24/08/2017;1334;30;113;1;Spese correnti;3;Acquisto di beni e servizi;2;Acquisto di servizi;5;Utenze e canoni;6;Gas;24/08/2017
2164;1;12;12;SOENERGY S.R.L.;68635615B6;24/08/2017;1334;30;113;1;Spese correnti;3;Acquisto di beni e servizi;2;Acquisto di servizi;5;Utenze e canoni;6;Gas;24/08/2017
2165;1;11,86;11,86;SOENERGY S.R.L.;68635615B6;24/08/2017;1334;30;113;1;Spese correnti;3;Acquisto di beni e servizi;2;Acquisto di servizi;5;Utenze e canoni;6;Gas;24/08/2017
2166;1;90,34;90,34;SOENERGY S.R.L.;68635615B6;24/08/2017;1334;30;113;1;Spese correnti;3;Acquisto di beni e servizi;2;Acquisto di servizi;5;Utenze e canoni;6;Gas;24/08/2017
2167;1;35,86;35,86;SOENERGY S.R.L.;68635615B6;24/08/2017;1334;30;113;1;Spese correnti;3;Acquisto di beni e servizi;2;Acquisto di servizi;5;Utenze e canoni;6;Gas;24/08/2017
2168;1;17,43;17,43;SOENERGY S.R.L.;68635615B6;24/08/2017;1334;30;113;1;Spese correnti;3;Acquisto di beni e servizi;2;Acquisto di servizi;5;Utenze e canoni;6;Gas;24/08/2017
2169;1;17,43;17,43;SOENERGY S.R.L.;68635615B6;24/08/2017;1334;30;113;1;Spese correnti;3;Acquisto di beni e servizi;2;Acquisto di servizi;5;Utenze e canoni;6;Gas;24/08/2017
2170;1;8;8;SOENERGY S.R.L.;68635615B6;24/08/2017;1334;30;113;1;Spese correnti;3;Acquisto di beni e servizi;2;Acquisto di servizi;5;Utenze e canoni;6;Gas;24/08/2017
2171;1;19,86;19,86;SOENERGY S.R.L.;68635615B6;24/08/2017;1334;30;113;1;Spese correnti;3;Acquisto di beni e servizi;2;Acquisto di servizi;5;Utenze e canoni;6;Gas;24/08/2017
2172;1;7;7;SOENERGY S.R.L.;68635615B6;24/08/2017;1934;0;115;1;Spese correnti;3;Acquisto di beni e servizi;2;Acquisto di servizi;5;Utenze e canoni;6;Gas;24/08/2017
2173;1;10;10;SOENERGY S.R.L.;68635615B6;24/08/2017;1934;0;115;1;Spese correnti;3;Acquisto di beni e servizi;2;Acquisto di servizi;5;Utenze e canoni;6;Gas;24/08/2017
2174;1;12;12;SOENERGY S.R.L.;68635615B6;24/08/2017;1934;0;115;1;Spese correnti;3;Acquisto di beni e servizi;2;Acquisto di servizi;5;Utenze e canoni;6;Gas;24/08/2017
2175;1;2,34;2,34;SOENERGY S.R.L.;68635615B6;24/08/2017;1934;0;115;1;Spese correnti;3;Acquisto di beni e servizi;2;Acquisto di servizi;5;Utenze e canoni;6;Gas;24/08/2017
2176;1;17,43;17,43;SOENERGY S.R.L.;68635615B6;24/08/2017;1934;0;115;1;Spese correnti;3;Acquisto di beni e servizi;2;Acquisto di servizi;5;Utenze e canoni;6;Gas;24/08/2017
2177;1;17,43;17,43;SOENERGY S.R.L.;68635615B6;24/08/2017;1934;0;115;1;Spese correnti;3;Acquisto di beni e servizi;2;Acquisto di servizi;5;Utenze e canoni;6;Gas;24/08/2017
2178;1;8;8;SOENERGY S.R.L.;68635615B6;24/08/2017;1934;0;115;1;Spese correnti;3;Acquisto di beni e servizi;2;Acquisto di servizi;5;Utenze e canoni;6;Gas;24/08/2017
2179;1;211,21;424,81;SONEPAR ITALIA SPA;Z671D95B62;24/08/2017;1938;0;205;1;Spese correnti;3;Acquisto di beni e servizi;2;Acquisto di servizi;9;Manutenzione ordinaria e riparazioni;4;Manutenzione ordinaria e riparazioni di impianti e macchinari;24/08/2017
2179;2;213,6;424,81;SONEPAR ITALIA SPA;Z671D95B62;24/08/2017;1938;0;205;1;Spese correnti;3;Acquisto di beni e servizi;2;Acquisto di servizi;9;Manutenzione ordinaria e riparazioni;4;Manutenzione ordinaria e riparazioni di impianti e macchinari;24/08/2017
2180;1;37,71;37,71;SOENERGY S.R.L.;68635615B6;24/08/2017;3534;0;116;1;Spese correnti;3;Acquisto di beni e servizi;2;Acquisto di servizi;5;Utenze e canoni;6;Gas;24/08/2017
2181;1;3.680,52;3.680,52;STUDIO ASSOCIATO PAPINI MAURIZIO E TALLUTO GLORIA;Z631ED226D;24/08/2017;8503;0;395;2;Spese in conto capitale;2;Investimenti fissi lordi e acquisto di terreni;1;Beni materiali;9;Beni immobili;12;Infrastrutture stradali;24/08/2017
2182;1;29.915,41;29.915,41;G.P.S. SEGNALETICA SRL;Z4A1E6C503;24/08/2017;8558;0;345;2;Spese in conto capitale;2;Investimenti fissi lordi e acquisto di terreni;1;Beni materiali;9;Beni immobili;12;Infrastrutture stradali;24/08/2017
2183;1;250;250;SOGGETTI DIVERSI;;24/08/2017;4157;0;19;1;Spese correnti;4;Trasferimenti correnti;2;Trasferimenti correnti a Famiglie;2;Interventi assistenziali;999;Altri assegni e sussidi assistenziali;24/08/2017
2184;1;3.000,00;3.000,00;CIRCOLO 1554 ASSOCIAZIONE CULTURALE;;28/08/2017;1859;0;490;1;Spese correnti;4;Trasferimenti correnti;4;Trasferimenti correnti a Istituzioni Sociali Private;1;Trasferimenti correnti a Istituzioni Sociali Private;1;Trasferimenti correnti a Istituzioni Sociali Private;28/08/2017
2185;1;3.000,00;3.000,00;LABS LABORATORIO SOLIDALE ONLUS;;28/08/2017;1859;0;489;1;Spese correnti;4;Trasferimenti correnti;4;Trasferimenti correnti a Istituzioni Sociali Private;1;Trasferimenti correnti a Istituzioni Sociali Private;1;Trasferimenti correnti a Istituzioni Sociali Private;28/08/2017
2186;1;1.361,79;1.361,79;AXITEA SPA SECURITY EVOLUTION;Z191F04CF0;30/08/2017;548;0;435;1;Spese correnti;3;Acquisto di beni e servizi;2;Acquisto di servizi;9;Manutenzione ordinaria e riparazioni;8;Manutenzione ordinaria e riparazioni di beni immobili;30/08/2017
2187;1;50;50;CITTA' METROPOLITANA DI VENEZIA;;30/08/2017;3851;50;29;1;Spese correnti;4;Trasferimenti correnti;1;Trasferimenti correnti a Amministrazioni Pubbliche;2;Trasferimenti correnti a Amministrazioni Locali;2;Trasferimenti correnti a Province;30/08/2017
2188;1;20;20;CITTA' METROPOLITANA DI VENEZIA;;30/08/2017;3851;0;385;1;Spese correnti;4;Trasferimenti correnti;1;Trasferimenti correnti a Amministrazioni Pubbliche;2;Trasferimenti correnti a Amministrazioni Locali;4;Trasferimenti correnti a Citt? metropolitane e Roma capitale;30/08/2017
2189;1;295,25;295,25;EPIU' SRL - COSTRUIRE INSIEME;Z6B1DBDDB0;30/08/2017;3538;0;222;1;Spese correnti;3;Acquisto di beni e servizi;2;Acquisto di servizi;9;Manutenzione ordinaria e riparazioni;8;Manutenzione ordinaria e riparazioni di beni immobili;30/08/2017
2190;1;255,4;255,4;NUOVA AUTOCAR 94 SNC;Z241E66964;30/08/2017;3538;0;347;1;Spese correnti;3;Acquisto di beni e servizi;2;Acquisto di servizi;9;Manutenzione ordinaria e riparazioni;1;Manutenzione ordinaria e riparazioni di mezzi di trasporto ad uso civile, di sicurezza e ordine pubblico;30/08/2017
2191;1;3.284,24;3.284,24;PSR PRODUCT SERVICE ROAD S.R.L.;ZAA1F2F830;30/08/2017;8565;0;449;2;Spese in conto capitale;2;Investimenti fissi lordi e acquisto di terreni;1;Beni materiali;9;Beni immobili;12;Infrastrutture stradali;30/08/2017
2192;1;720;720;SOGGETTI DIVERSI;;04/09/2017;3957;50;506;1;Spese correnti;4;Trasferimenti correnti;2;Trasferimenti correnti a Famiglie;2;Interventi assistenziali;999;Altri assegni e sussidi assistenziali;04/09/2017
2193;1;1.200,00;1.200,00;SOGGETTI DIVERSI;;04/09/2017;3957;50;506;1;Spese correnti;4;Trasferimenti correnti;2;Trasferimenti correnti a Famiglie;2;Interventi assistenziali;999;Altri assegni e sussidi assistenziali;04/09/2017
2194;1;2.850,00;2.850,00;LABS LABORATORIO SOLIDALE ONLUS;;04/09/2017;4059;0;502;1;Spese correnti;4;Trasferimenti correnti;4;Trasferimenti correnti a Istituzioni Sociali Private;1;Trasferimenti correnti a Istituzioni Sociali Private;1;Trasferimenti correnti a Istituzioni Sociali Private;04/09/2017
2196;1;12.515,38;55.757,59;SOC.SERV.SOCIO CULTURALE COOP.SOC.ONLUS;65887432BA;04/09/2017;3944;0;207;1;Spese correnti;3;Acquisto di beni e servizi;2;Acquisto di servizi;15;Contratti di servizio pubblico;9;Contratti di servizio di assistenza sociale domiciliare;04/09/2017
2196;2;13.267,39;55.757,59;SOC.SERV.SOCIO CULTURALE COOP.SOC.ONLUS;65887432BA;04/09/2017;3944;0;207;1;Spese correnti;3;Acquisto di beni e servizi;2;Acquisto di servizi;15;Contratti di servizio pubblico;9;Contratti di servizio di assistenza sociale domiciliare;04/09/2017
2196;3;14.242,28;55.757,59;SOC.SERV.SOCIO CULTURALE COOP.SOC.ONLUS;65887432BA;04/09/2017;3944;0;207;1;Spese correnti;3;Acquisto di beni e servizi;2;Acquisto di servizi;15;Contratti di servizio pubblico;9;Contratti di servizio di assistenza sociale domiciliare;04/09/2017
2196;4;15.732,54;55.757,59;SOC.SERV.SOCIO CULTURALE COOP.SOC.ONLUS;65887432BA;04/09/2017;3944;0;207;1;Spese correnti;3;Acquisto di beni e servizi;2;Acquisto di servizi;15;Contratti di servizio pubblico;9;Contratti di servizio di assistenza sociale domiciliare;04/09/2017
2197;1;600;600;BERTOLDO PIETRO E ZAMENGO ELVIRA;;04/09/2017;4236;0;591;1;Spese correnti;3;Acquisto di beni e servizi;2;Acquisto di servizi;7;Utilizzo di beni di terzi;1;Locazione di beni immobili;04/09/2017
2198;1;687,92;687,92;FASOLO GIANNI;;04/09/2017;3844;0;420;1;Spese correnti;3;Acquisto di beni e servizi;2;Acquisto di servizi;15;Contratti di servizio pubblico;1;Contratti di servizio di trasporto pubblico;04/09/2017
2199;1;279,37;279,37;PERALE LINA;;04/09/2017;3844;0;378;1;Spese correnti;3;Acquisto di beni e servizi;2;Acquisto di servizi;15;Contratti di servizio pubblico;8;Contratti di servizio di assistenza sociale residenziale e semiresidenziale;04/09/2017
2200;1;513,5;513,5;ZAMENGO FIDALMA;;04/09/2017;3844;0;381;1;Spese correnti;3;Acquisto di beni e servizi;2;Acquisto di servizi;15;Contratti di servizio pubblico;8;Contratti di servizio di assistenza sociale residenziale e semiresidenziale;04/09/2017
2201;1;366,71;366,71;MANENTE LUIGIA;;04/09/2017;3844;0;379;1;Spese correnti;3;Acquisto di beni e servizi;2;Acquisto di servizi;15;Contratti di servizio pubblico;8;Contratti di servizio di assistenza sociale residenziale e semiresidenziale;04/09/2017
2202;1;300;300;MASIERO DORO-SABBADIN RITA;;04/09/2017;3844;0;257;1;Spese correnti;3;Acquisto di beni e servizi;2;Acquisto di servizi;15;Contratti di servizio pubblico;8;Contratti di servizio di assistenza sociale residenziale e semiresidenziale;04/09/2017
2203;1;250;250;GALLO MADDALENA;;04/09/2017;3844;0;248;1;Spese correnti;3;Acquisto di beni e servizi;2;Acquisto di servizi;15;Contratti di servizio pubblico;8;Contratti di servizio di assistenza sociale residenziale e semiresidenziale;04/09/2017
2204;1;500;500;CAZZIN TERESA;;04/09/2017;3844;0;238;1;Spese correnti;3;Acquisto di beni e servizi;2;Acquisto di servizi;15;Contratti di servizio pubblico;8;Contratti di servizio di assistenza sociale residenziale e semiresidenziale;04/09/2017
2205;1;250;250;SOGGETTI DIVERSI;;04/09/2017;4157;0;19;1;Spese correnti;4;Trasferimenti correnti;2;Trasferimenti correnti a Famiglie;2;Interventi assistenziali;999;Altri assegni e sussidi assistenziali;04/09/2017
2206;1;48.434,39;48.434,39;MILAN SNC DI MILAN GEOM.LORENZO & C.;Z531E6B2D9;04/09/2017;8558;0;343;2;Spese in conto capitale;2;Investimenti fissi lordi e acquisto di terreni;1;Beni materiali;9;Beni immobili;12;Infrastrutture stradali;04/09/2017
2208;1;73,79;73,79;C/C/P 15453301 SERVIZIO DI TESORERIA COM;;05/09/2017;146;0;0;1;Spese correnti;3;Acquisto di beni e servizi;2;Acquisto di servizi;17;Servizi finanziari;999;Spese per servizi finanziari n.a.c.;05/09/2017
2211;1;6.500,00;6.500,00;GHEDINI VITTORIA NICOLETTA;;06/09/2017;3844;0;419;1;Spese correnti;3;Acquisto di beni e servizi;2;Acquisto di servizi;15;Contratti di servizio pubblico;8;Contratti di servizio di assistenza sociale residenziale e semiresidenziale;06/09/2017
2212;1;1.600,00;1.600,00;PRO LOCO DI S.MARIA DI SALA;;06/09/2017;1859;0;522;1;Spese correnti;4;Trasferimenti correnti;4;Trasferimenti correnti a Istituzioni Sociali Private;1;Trasferimenti correnti a Istituzioni Sociali Private;1;Trasferimenti correnti a Istituzioni Sociali Private;06/09/2017
2213;1;152,11;152,11;TIM-TELECOM ITALIA SPA;Z7A12B8EE9;06/09/2017;134;0;133;1;Spese correnti;3;Acquisto di beni e servizi;2;Acquisto di servizi;5;Utenze e canoni;2;Telefonia mobile;06/09/2017
2214;1;14,95;283,26;V.E.R.I.T.A.S. SPA;;06/09/2017;134;31;94;1;Spese correnti;3;Acquisto di beni e servizi;2;Acquisto di servizi;5;Utenze e canoni;5;Acqua;06/09/2017
2214;2;14,96;283,26;V.E.R.I.T.A.S. SPA;;06/09/2017;134;31;94;1;Spese correnti;3;Acquisto di beni e servizi;2;Acquisto di servizi;5;Utenze e canoni;5;Acqua;06/09/2017
2214;3;16,71;283,26;V.E.R.I.T.A.S. SPA;;06/09/2017;134;31;94;1;Spese correnti;3;Acquisto di beni e servizi;2;Acquisto di servizi;5;Utenze e canoni;5;Acqua;06/09/2017
2214;4;20,7;283,26;V.E.R.I.T.A.S. SPA;;06/09/2017;134;31;94;1;Spese correnti;3;Acquisto di beni e servizi;2;Acquisto di servizi;5;Utenze e canoni;5;Acqua;06/09/2017
2214;5;23,21;283,26;V.E.R.I.T.A.S. SPA;;06/09/2017;134;31;94;1;Spese correnti;3;Acquisto di beni e servizi;2;Acquisto di servizi;5;Utenze e canoni;5;Acqua;06/09/2017
2214;6;23,21;283,26;V.E.R.I.T.A.S. SPA;;06/09/2017;134;31;94;1;Spese correnti;3;Acquisto di beni e servizi;2;Acquisto di servizi;5;Utenze e canoni;5;Acqua;06/09/2017
2214;7;23,21;283,26;V.E.R.I.T.A.S. SPA;;06/09/2017;134;31;94;1;Spese correnti;3;Acquisto di beni e servizi;2;Acquisto di servizi;5;Utenze e canoni;5;Acqua;06/09/2017
2214;8;23,21;283,26;V.E.R.I.T.A.S. SPA;;06/09/2017;134;31;94;1;Spese correnti;3;Acquisto di beni e servizi;2;Acquisto di servizi;5;Utenze e canoni;5;Acqua;06/09/2017
2214;9;23,21;283,26;V.E.R.I.T.A.S. SPA;;06/09/2017;134;31;94;1;Spese correnti;3;Acquisto di beni e servizi;2;Acquisto di servizi;5;Utenze e canoni;5;Acqua;06/09/2017
2214;10;23,21;283,26;V.E.R.I.T.A.S. SPA;;06/09/2017;134;31;94;1;Spese correnti;3;Acquisto di beni e servizi;2;Acquisto di servizi;5;Utenze e canoni;5;Acqua;06/09/2017
2214;11;23,21;283,26;V.E.R.I.T.A.S. SPA;;06/09/2017;134;31;94;1;Spese correnti;3;Acquisto di beni e servizi;2;Acquisto di servizi;5;Utenze e canoni;5;Acqua;06/09/2017
2214;12;27,14;283,26;V.E.R.I.T.A.S. SPA;;06/09/2017;134;31;94;1;Spese correnti;3;Acquisto di beni e servizi;2;Acquisto di servizi;5;Utenze e canoni;5;Acqua;06/09/2017
2214;13;30,33;283,26;V.E.R.I.T.A.S. SPA;;06/09/2017;134;31;94;1;Spese correnti;3;Acquisto di beni e servizi;2;Acquisto di servizi;5;Utenze e canoni;5;Acqua;06/09/2017
2215;1;31,79;420,41;SONEPAR ITALIA SPA;Z671D95B62;06/09/2017;521;0;203;1;Spese correnti;3;Acquisto di beni e servizi;1;Acquisto di beni;2;Altri beni di consumo;999;Altri beni e materiali di consumo n.a.c.;06/09/2017
2215;2;33,65;420,41;SONEPAR ITALIA SPA;Z671D95B62;06/09/2017;521;0;203;1;Spese correnti;3;Acquisto di beni e servizi;1;Acquisto di beni;2;Altri beni di consumo;999;Altri beni e materiali di consumo n.a.c.;06/09/2017
2215;3;38,23;420,41;SONEPAR ITALIA SPA;Z671D95B62;06/09/2017;521;0;203;1;Spese correnti;3;Acquisto di beni e servizi;1;Acquisto di beni;2;Altri beni di consumo;999;Altri beni e materiali di consumo n.a.c.;06/09/2017
2215;4;40,82;420,41;SONEPAR ITALIA SPA;Z671D95B62;06/09/2017;521;0;203;1;Spese correnti;3;Acquisto di beni e servizi;1;Acquisto di beni;2;Altri beni di consumo;999;Altri beni e materiali di consumo n.a.c.;06/09/2017
2215;5;42,02;420,41;SONEPAR ITALIA SPA;Z671D95B62;06/09/2017;521;0;203;1;Spese correnti;3;Acquisto di beni e servizi;1;Acquisto di beni;2;Altri beni di consumo;999;Altri beni e materiali di consumo n.a.c.;06/09/2017
2215;6;51,36;420,41;SONEPAR ITALIA SPA;Z671D95B62;06/09/2017;521;0;203;1;Spese correnti;3;Acquisto di beni e servizi;1;Acquisto di beni;2;Altri beni di consumo;999;Altri beni e materiali di consumo n.a.c.;06/09/2017
2215;7;68,44;420,41;SONEPAR ITALIA SPA;Z671D95B62;06/09/2017;521;0;203;1;Spese correnti;3;Acquisto di beni e servizi;1;Acquisto di beni;2;Altri beni di consumo;999;Altri beni e materiali di consumo n.a.c.;06/09/2017
2215;8;117,1;420,41;SONEPAR ITALIA SPA;Z671D95B62;06/09/2017;521;0;203;1;Spese correnti;3;Acquisto di beni e servizi;1;Acquisto di beni;2;Altri beni di consumo;999;Altri beni e materiali di consumo n.a.c.;06/09/2017
2216;1;13,72;153,97;V.E.R.I.T.A.S. SPA;;06/09/2017;1334;30;95;1;Spese correnti;3;Acquisto di beni e servizi;2;Acquisto di servizi;5;Utenze e canoni;5;Acqua;06/09/2017
2216;2;21,97;153,97;V.E.R.I.T.A.S. SPA;;06/09/2017;1334;30;95;1;Spese correnti;3;Acquisto di beni e servizi;2;Acquisto di servizi;5;Utenze e canoni;5;Acqua;06/09/2017
2216;3;119,28;153,97;V.E.R.I.T.A.S. SPA;;06/09/2017;1334;30;95;1;Spese correnti;3;Acquisto di beni e servizi;2;Acquisto di servizi;5;Utenze e canoni;5;Acqua;06/09/2017
2217;1;36,6;36,6;TIM-TELECOM ITALIA SPA;ZD51D16E0C;06/09/2017;1834;0;135;1;Spese correnti;3;Acquisto di beni e servizi;2;Acquisto di servizi;5;Utenze e canoni;1;Telefonia fissa;06/09/2017
2218;1;16,71;16,71;V.E.R.I.T.A.S. SPA;;06/09/2017;3534;0;98;1;Spese correnti;3;Acquisto di beni e servizi;2;Acquisto di servizi;5;Utenze e canoni;5;Acqua;06/09/2017
2219;1;13,5;131,43;V.E.R.I.T.A.S. SPA;;06/09/2017;4234;0;99;1;Spese correnti;3;Acquisto di beni e servizi;2;Acquisto di servizi;5;Utenze e canoni;5;Acqua;06/09/2017
2219;2;23,21;131,43;V.E.R.I.T.A.S. SPA;;06/09/2017;4234;0;99;1;Spese correnti;3;Acquisto di beni e servizi;2;Acquisto di servizi;5;Utenze e canoni;5;Acqua;06/09/2017
2219;3;96,72;131,43;V.E.R.I.T.A.S. SPA;;06/09/2017;4234;0;99;1;Spese correnti;3;Acquisto di beni e servizi;2;Acquisto di servizi;5;Utenze e canoni;5;Acqua;06/09/2017
2220;1;39,53;39,53;TIM-TELECOM ITALIA SPA;ZD51D16E0C;06/09/2017;4234;0;134;1;Spese correnti;3;Acquisto di beni e servizi;2;Acquisto di servizi;5;Utenze e canoni;1;Telefonia fissa;06/09/2017
2221;1;1.800,00;1.800,00;"IPAB ""LUIGI MARIUTTO""- CENTRO DI SERVIZI ALLA PERSONA";;06/09/2017;3844;0;528;1;Spese correnti;3;Acquisto di beni e servizi;2;Acquisto di servizi;15;Contratti di servizio pubblico;8;Contratti di servizio di assistenza sociale residenziale e semiresidenziale;06/09/2017
2222;1;1.758,70;1.758,70;"IPAB ""LUIGI MARIUTTO""- CENTRO DI SERVIZI ALLA PERSONA";;06/09/2017;3844;0;509;1;Spese correnti;3;Acquisto di beni e servizi;2;Acquisto di servizi;15;Contratti di servizio pubblico;8;Contratti di servizio di assistenza sociale residenziale e semiresidenziale;06/09/2017
2223;1;3,21;3,21;V.E.R.I.T.A.S. SPA;;06/09/2017;134;30;93;1;Spese correnti;3;Acquisto di beni e servizi;2;Acquisto di servizi;5;Utenze e canoni;5;Acqua;06/09/2017
2224;1;81,97;81,97;V.E.R.I.T.A.S. SPA;;06/09/2017;134;31;94;1;Spese correnti;3;Acquisto di beni e servizi;2;Acquisto di servizi;5;Utenze e canoni;5;Acqua;06/09/2017
2225;1;20;20;V.E.R.I.T.A.S. SPA;;06/09/2017;134;31;94;1;Spese correnti;3;Acquisto di beni e servizi;2;Acquisto di servizi;5;Utenze e canoni;5;Acqua;06/09/2017
2226;1;8;8;V.E.R.I.T.A.S. SPA;;06/09/2017;1334;30;95;1;Spese correnti;3;Acquisto di beni e servizi;2;Acquisto di servizi;5;Utenze e canoni;5;Acqua;06/09/2017
2227;1;7,21;7,21;V.E.R.I.T.A.S. SPA;;06/09/2017;1334;30;95;1;Spese correnti;3;Acquisto di beni e servizi;2;Acquisto di servizi;5;Utenze e canoni;5;Acqua;06/09/2017
2228;1;12,6;12,6;V.E.R.I.T.A.S. SPA;;06/09/2017;1334;30;95;1;Spese correnti;3;Acquisto di beni e servizi;2;Acquisto di servizi;5;Utenze e canoni;5;Acqua;06/09/2017
2229;1;30,23;30,23;V.E.R.I.T.A.S. SPA;;06/09/2017;1334;30;95;1;Spese correnti;3;Acquisto di beni e servizi;2;Acquisto di servizi;5;Utenze e canoni;5;Acqua;06/09/2017
2230;1;10,73;10,73;V.E.R.I.T.A.S. SPA;;06/09/2017;1334;30;95;1;Spese correnti;3;Acquisto di beni e servizi;2;Acquisto di servizi;5;Utenze e canoni;5;Acqua;06/09/2017
2231;1;36,93;36,93;V.E.R.I.T.A.S. SPA;;06/09/2017;1334;30;95;1;Spese correnti;3;Acquisto di beni e servizi;2;Acquisto di servizi;5;Utenze e canoni;5;Acqua;06/09/2017
2232;1;685;685;V.E.R.I.T.A.S. SPA;;06/09/2017;1334;30;95;1;Spese correnti;3;Acquisto di beni e servizi;2;Acquisto di servizi;5;Utenze e canoni;5;Acqua;06/09/2017
2233;1;1.134,63;1.134,63;V.E.R.I.T.A.S. SPA;;06/09/2017;1334;30;95;1;Spese correnti;3;Acquisto di beni e servizi;2;Acquisto di servizi;5;Utenze e canoni;5;Acqua;06/09/2017
2234;1;3;3;V.E.R.I.T.A.S. SPA;;06/09/2017;1334;30;95;1;Spese correnti;3;Acquisto di beni e servizi;2;Acquisto di servizi;5;Utenze e canoni;5;Acqua;06/09/2017
2235;1;7,46;7,46;V.E.R.I.T.A.S. SPA;;06/09/2017;1334;30;95;1;Spese correnti;3;Acquisto di beni e servizi;2;Acquisto di servizi;5;Utenze e canoni;5;Acqua;06/09/2017
2236;1;10;10;V.E.R.I.T.A.S. SPA;;06/09/2017;1334;30;95;1;Spese correnti;3;Acquisto di beni e servizi;2;Acquisto di servizi;5;Utenze e canoni;5;Acqua;06/09/2017
2237;1;10,03;10,03;V.E.R.I.T.A.S. SPA;;06/09/2017;1334;30;95;1;Spese correnti;3;Acquisto di beni e servizi;2;Acquisto di servizi;5;Utenze e canoni;5;Acqua;06/09/2017
2238;1;20;20;V.E.R.I.T.A.S. SPA;;06/09/2017;1334;30;95;1;Spese correnti;3;Acquisto di beni e servizi;2;Acquisto di servizi;5;Utenze e canoni;5;Acqua;06/09/2017
2239;1;46,81;46,81;V.E.R.I.T.A.S. SPA;;06/09/2017;1334;30;95;1;Spese correnti;3;Acquisto di beni e servizi;2;Acquisto di servizi;5;Utenze e canoni;5;Acqua;06/09/2017
2240;1;4;4;V.E.R.I.T.A.S. SPA;;06/09/2017;1334;30;95;1;Spese correnti;3;Acquisto di beni e servizi;2;Acquisto di servizi;5;Utenze e canoni;5;Acqua;06/09/2017
2241;1;6,22;6,22;V.E.R.I.T.A.S. SPA;;06/09/2017;1334;30;95;1;Spese correnti;3;Acquisto di beni e servizi;2;Acquisto di servizi;5;Utenze e canoni;5;Acqua;06/09/2017
2242;1;32.839,13;32.839,13;UNICREDIT LEASING SPA;202734562;06/09/2017;1337;0;177;1;Spese correnti;3;Acquisto di beni e servizi;2;Acquisto di servizi;8;Leasing operativo;999;Leasing operativo di altri beni;06/09/2017
2243;1;8;8;V.E.R.I.T.A.S. SPA;;06/09/2017;1934;0;97;1;Spese correnti;3;Acquisto di beni e servizi;2;Acquisto di servizi;5;Utenze e canoni;5;Acqua;06/09/2017
2244;1;12,61;12,61;V.E.R.I.T.A.S. SPA;;06/09/2017;1934;0;97;1;Spese correnti;3;Acquisto di beni e servizi;2;Acquisto di servizi;5;Utenze e canoni;5;Acqua;06/09/2017
2245;1;30,24;30,24;V.E.R.I.T.A.S. SPA;;06/09/2017;1934;0;97;1;Spese correnti;3;Acquisto di beni e servizi;2;Acquisto di servizi;5;Utenze e canoni;5;Acqua;06/09/2017
2246;1;10,73;10,73;V.E.R.I.T.A.S. SPA;;06/09/2017;1934;0;97;1;Spese correnti;3;Acquisto di beni e servizi;2;Acquisto di servizi;5;Utenze e canoni;5;Acqua;06/09/2017
2247;1;36,94;36,94;V.E.R.I.T.A.S. SPA;;06/09/2017;1934;0;97;1;Spese correnti;3;Acquisto di beni e servizi;2;Acquisto di servizi;5;Utenze e canoni;5;Acqua;06/09/2017
2248;1;685;685;V.E.R.I.T.A.S. SPA;;06/09/2017;1934;0;97;1;Spese correnti;3;Acquisto di beni e servizi;2;Acquisto di servizi;5;Utenze e canoni;5;Acqua;06/09/2017
2249;1;3;3;V.E.R.I.T.A.S. SPA;;06/09/2017;1934;0;97;1;Spese correnti;3;Acquisto di beni e servizi;2;Acquisto di servizi;5;Utenze e canoni;5;Acqua;06/09/2017
2250;1;10;10;V.E.R.I.T.A.S. SPA;;06/09/2017;1934;0;97;1;Spese correnti;3;Acquisto di beni e servizi;2;Acquisto di servizi;5;Utenze e canoni;5;Acqua;06/09/2017
2251;1;20;20;V.E.R.I.T.A.S. SPA;;06/09/2017;1934;0;97;1;Spese correnti;3;Acquisto di beni e servizi;2;Acquisto di servizi;5;Utenze e canoni;5;Acqua;06/09/2017
2252;1;4;4;V.E.R.I.T.A.S. SPA;;06/09/2017;1934;0;97;1;Spese correnti;3;Acquisto di beni e servizi;2;Acquisto di servizi;5;Utenze e canoni;5;Acqua;06/09/2017
2253;1;3.378,02;3.378,02;AGENZIA DELLE ENTRATE - IVA;;07/09/2017;291;0;536;1;Spese correnti;10;Altre spese correnti;3;Versamenti IVA a debito;1;Versamenti IVA a debito per le gestioni commerciali;1;Versamenti IVA a debito per le gestioni commerciali;07/09/2017
2254;1;885;885;MANO AMICA ONLUS -ASSOC. VOLONTARIATO;;07/09/2017;1259;0;531;1;Spese correnti;4;Trasferimenti correnti;4;Trasferimenti correnti a Istituzioni Sociali Private;1;Trasferimenti correnti a Istituzioni Sociali Private;1;Trasferimenti correnti a Istituzioni Sociali Private;07/09/2017
2255;1;210;210;LABS LABORATORIO SOLIDALE ONLUS;;07/09/2017;1259;0;532;1;Spese correnti;4;Trasferimenti correnti;4;Trasferimenti correnti a Istituzioni Sociali Private;1;Trasferimenti correnti a Istituzioni Sociali Private;1;Trasferimenti correnti a Istituzioni Sociali Private;07/09/2017
2256;1;5.000,00;5.000,00;LABS LABORATORIO SOLIDALE ONLUS;;07/09/2017;4059;0;505;1;Spese correnti;4;Trasferimenti correnti;4;Trasferimenti correnti a Istituzioni Sociali Private;1;Trasferimenti correnti a Istituzioni Sociali Private;1;Trasferimenti correnti a Istituzioni Sociali Private;07/09/2017
2257;1;9,95;9,95;COMUNE DI S.MARIA DI SALA;;07/09/2017;332;0;0;1;Spese correnti;3;Acquisto di beni e servizi;2;Acquisto di servizi;3;Aggi di riscossione;999;Altri aggi di riscossione n.a.c.;07/09/2017
2258;1;77,84;154,68;EUROPE ENERGY SPA;4,74E+16;07/09/2017;3544;0;563;1;Spese correnti;3;Acquisto di beni e servizi;2;Acquisto di servizi;15;Contratti di servizio pubblico;15;Contratti di servizio per l'illuminazione pubblica;07/09/2017
2258;2;77,84;154,68;EUROPE ENERGY SPA;4,74E+16;07/09/2017;3544;0;563;1;Spese correnti;3;Acquisto di beni e servizi;2;Acquisto di servizi;15;Contratti di servizio pubblico;15;Contratti di servizio per l'illuminazione pubblica;07/09/2017
2259;1;18.300,00;18.300,00;TORNABRUNI TIZIANO IMPRESA EDILE;Z631EFBA34;07/09/2017;7681;0;411;2;Spese in conto capitale;2;Investimenti fissi lordi e acquisto di terreni;1;Beni materiali;9;Beni immobili;3;Fabbricati ad uso scolastico;07/09/2017
2260;1;169,61;169,61;V.E.R.I.T.A.S. SPA;;07/09/2017;134;31;94;1;Spese correnti;3;Acquisto di beni e servizi;2;Acquisto di servizi;5;Utenze e canoni;5;Acqua;07/09/2017
2267;1;1.200,00;1.200,00;SOGGETTI DIVERSI;;11/09/2017;3957;50;225;1;Spese correnti;4;Trasferimenti correnti;2;Trasferimenti correnti a Famiglie;2;Interventi assistenziali;999;Altri assegni e sussidi assistenziali;11/09/2017
2269;1;240;240;SOGGETTI DIVERSI;;11/09/2017;3957;50;225;1;Spese correnti;4;Trasferimenti correnti;2;Trasferimenti correnti a Famiglie;2;Interventi assistenziali;999;Altri assegni e sussidi assistenziali;11/09/2017
2270;1;120;120;SOGGETTI DIVERSI;;11/09/2017;3957;50;550;1;Spese correnti;4;Trasferimenti correnti;2;Trasferimenti correnti a Famiglie;2;Interventi assistenziali;999;Altri assegni e sussidi assistenziali;11/09/2017
2271;1;720;720;SOGGETTI DIVERSI;;11/09/2017;3957;50;161;1;Spese correnti;4;Trasferimenti correnti;2;Trasferimenti correnti a Famiglie;2;Interventi assistenziali;999;Altri assegni e sussidi assistenziali;11/09/2017
2272;1;120;120;SOGGETTI DIVERSI;;11/09/2017;3957;50;582;1;Spese correnti;4;Trasferimenti correnti;2;Trasferimenti correnti a Famiglie;2;Interventi assistenziali;999;Altri assegni e sussidi assistenziali;11/09/2017
2273;1;240;240;SOGGETTI DIVERSI;;12/09/2017;3957;50;582;1;Spese correnti;4;Trasferimenti correnti;2;Trasferimenti correnti a Famiglie;2;Interventi assistenziali;999;Altri assegni e sussidi assistenziali;12/09/2017
2274;1;600;600;SOGGETTI DIVERSI;;12/09/2017;3957;50;196;1;Spese correnti;4;Trasferimenti correnti;2;Trasferimenti correnti a Famiglie;2;Interventi assistenziali;999;Altri assegni e sussidi assistenziali;12/09/2017
2275;1;360;360;SOGGETTI DIVERSI;;12/09/2017;3957;50;506;1;Spese correnti;4;Trasferimenti correnti;2;Trasferimenti correnti a Famiglie;2;Interventi assistenziali;999;Altri assegni e sussidi assistenziali;12/09/2017
2276;1;1.200,00;9.600,00;SOGGETTI DIVERSI;;12/09/2017;3957;50;506;1;Spese correnti;4;Trasferimenti correnti;2;Trasferimenti correnti a Famiglie;2;Interventi assistenziali;999;Altri assegni e sussidi assistenziali;12/09/2017
2276;2;1.200,00;9.600,00;SOGGETTI DIVERSI;;12/09/2017;3957;50;506;1;Spese correnti;4;Trasferimenti correnti;2;Trasferimenti correnti a Famiglie;2;Interventi assistenziali;999;Altri assegni e sussidi assistenziali;12/09/2017
2276;3;1.200,00;9.600,00;SOGGETTI DIVERSI;;12/09/2017;3957;50;506;1;Spese correnti;4;Trasferimenti correnti;2;Trasferimenti correnti a Famiglie;2;Interventi assistenziali;999;Altri assegni e sussidi assistenziali;12/09/2017
2276;4;1.200,00;9.600,00;SOGGETTI DIVERSI;;12/09/2017;3957;50;506;1;Spese correnti;4;Trasferimenti correnti;2;Trasferimenti correnti a Famiglie;2;Interventi assistenziali;999;Altri assegni e sussidi assistenziali;12/09/2017
2276;5;1.200,00;9.600,00;SOGGETTI DIVERSI;;12/09/2017;3957;50;506;1;Spese correnti;4;Trasferimenti correnti;2;Trasferimenti correnti a Famiglie;2;Interventi assistenziali;999;Altri assegni e sussidi assistenziali;12/09/2017
2276;6;1.200,00;9.600,00;SOGGETTI DIVERSI;;12/09/2017;3957;50;506;1;Spese correnti;4;Trasferimenti correnti;2;Trasferimenti correnti a Famiglie;2;Interventi assistenziali;999;Altri assegni e sussidi assistenziali;12/09/2017
2276;7;1.200,00;9.600,00;SOGGETTI DIVERSI;;12/09/2017;3957;50;506;1;Spese correnti;4;Trasferimenti correnti;2;Trasferimenti correnti a Famiglie;2;Interventi assistenziali;999;Altri assegni e sussidi assistenziali;12/09/2017
2276;8;1.200,00;9.600,00;SOGGETTI DIVERSI;;12/09/2017;3957;50;506;1;Spese correnti;4;Trasferimenti correnti;2;Trasferimenti correnti a Famiglie;2;Interventi assistenziali;999;Altri assegni e sussidi assistenziali;12/09/2017
2277;1;720;32.400,00;SOGGETTI DIVERSI;;12/09/2017;3957;50;506;1;Spese correnti;4;Trasferimenti correnti;2;Trasferimenti correnti a Famiglie;2;Interventi assistenziali;999;Altri assegni e sussidi assistenziali;12/09/2017
2277;2;600;32.400,00;SOGGETTI DIVERSI;;12/09/2017;3957;50;506;1;Spese correnti;4;Trasferimenti correnti;2;Trasferimenti correnti a Famiglie;2;Interventi assistenziali;999;Altri assegni e sussidi assistenziali;12/09/2017
2277;3;720;32.400,00;SOGGETTI DIVERSI;;12/09/2017;3957;50;506;1;Spese correnti;4;Trasferimenti correnti;2;Trasferimenti correnti a Famiglie;2;Interventi assistenziali;999;Altri assegni e sussidi assistenziali;12/09/2017
2277;4;720;32.400,00;SOGGETTI DIVERSI;;12/09/2017;3957;50;506;1;Spese correnti;4;Trasferimenti correnti;2;Trasferimenti correnti a Famiglie;2;Interventi assistenziali;999;Altri assegni e sussidi assistenziali;12/09/2017
2277;5;720;32.400,00;SOGGETTI DIVERSI;;12/09/2017;3957;50;506;1;Spese correnti;4;Trasferimenti correnti;2;Trasferimenti correnti a Famiglie;2;Interventi assistenziali;999;Altri assegni e sussidi assistenziali;12/09/2017
2277;6;720;32.400,00;SOGGETTI DIVERSI;;12/09/2017;3957;50;506;1;Spese correnti;4;Trasferimenti correnti;2;Trasferimenti correnti a Famiglie;2;Interventi assistenziali;999;Altri assegni e sussidi assistenziali;12/09/2017
2277;7;720;32.400,00;SOGGETTI DIVERSI;;12/09/2017;3957;50;506;1;Spese correnti;4;Trasferimenti correnti;2;Trasferimenti correnti a Famiglie;2;Interventi assistenziali;999;Altri assegni e sussidi assistenziali;12/09/2017
2277;8;720;32.400,00;SOGGETTI DIVERSI;;12/09/2017;3957;50;506;1;Spese correnti;4;Trasferimenti correnti;2;Trasferimenti correnti a Famiglie;2;Interventi assistenziali;999;Altri assegni e sussidi assistenziali;12/09/2017
2277;9;360;32.400,00;SOGGETTI DIVERSI;;12/09/2017;3957;50;506;1;Spese correnti;4;Trasferimenti correnti;2;Trasferimenti correnti a Famiglie;2;Interventi assistenziali;999;Altri assegni e sussidi assistenziali;12/09/2017
2277;10;480;32.400,00;SOGGETTI DIVERSI;;12/09/2017;3957;50;506;1;Spese correnti;4;Trasferimenti correnti;2;Trasferimenti correnti a Famiglie;2;Interventi assistenziali;999;Altri assegni e sussidi assistenziali;12/09/2017
2277;11;720;32.400,00;SOGGETTI DIVERSI;;12/09/2017;3957;50;506;1;Spese correnti;4;Trasferimenti correnti;2;Trasferimenti correnti a Famiglie;2;Interventi assistenziali;999;Altri assegni e sussidi assistenziali;12/09/2017
2277;12;720;32.400,00;SOGGETTI DIVERSI;;12/09/2017;3957;50;506;1;Spese correnti;4;Trasferimenti correnti;2;Trasferimenti correnti a Famiglie;2;Interventi assistenziali;999;Altri assegni e sussidi assistenziali;12/09/2017
2277;13;720;32.400,00;SOGGETTI DIVERSI;;12/09/2017;3957;50;506;1;Spese correnti;4;Trasferimenti correnti;2;Trasferimenti correnti a Famiglie;2;Interventi assistenziali;999;Altri assegni e sussidi assistenziali;12/09/2017
2277;14;720;32.400,00;SOGGETTI DIVERSI;;12/09/2017;3957;50;506;1;Spese correnti;4;Trasferimenti correnti;2;Trasferimenti correnti a Famiglie;2;Interventi assistenziali;999;Altri assegni e sussidi assistenziali;12/09/2017
2277;15;2.160,00;32.400,00;SOGGETTI DIVERSI;;12/09/2017;3957;50;506;1;Spese correnti;4;Trasferimenti correnti;2;Trasferimenti correnti a Famiglie;2;Interventi assistenziali;999;Altri assegni e sussidi assistenziali;12/09/2017
2277;16;120;32.400,00;SOGGETTI DIVERSI;;12/09/2017;3957;50;506;1;Spese correnti;4;Trasferimenti correnti;2;Trasferimenti correnti a Famiglie;2;Interventi assistenziali;999;Altri assegni e sussidi assistenziali;12/09/2017
2277;17;720;32.400,00;SOGGETTI DIVERSI;;12/09/2017;3957;50;506;1;Spese correnti;4;Trasferimenti correnti;2;Trasferimenti correnti a Famiglie;2;Interventi assistenziali;999;Altri assegni e sussidi assistenziali;12/09/2017
2277;18;240;32.400,00;SOGGETTI DIVERSI;;12/09/2017;3957;50;506;1;Spese correnti;4;Trasferimenti correnti;2;Trasferimenti correnti a Famiglie;2;Interventi assistenziali;999;Altri assegni e sussidi assistenziali;12/09/2017
2277;19;720;32.400,00;SOGGETTI DIVERSI;;12/09/2017;3957;50;506;1;Spese correnti;4;Trasferimenti correnti;2;Trasferimenti correnti a Famiglie;2;Interventi assistenziali;999;Altri assegni e sussidi assistenziali;12/09/2017
2277;20;360;32.400,00;SOGGETTI DIVERSI;;12/09/2017;3957;50;506;1;Spese correnti;4;Trasferimenti correnti;2;Trasferimenti correnti a Famiglie;2;Interventi assistenziali;999;Altri assegni e sussidi assistenziali;12/09/2017
2277;21;720;32.400,00;SOGGETTI DIVERSI;;12/09/2017;3957;50;506;1;Spese correnti;4;Trasferimenti correnti;2;Trasferimenti correnti a Famiglie;2;Interventi assistenziali;999;Altri assegni e sussidi assistenziali;12/09/2017
2277;22;360;32.400,00;SOGGETTI DIVERSI;;12/09/2017;3957;50;506;1;Spese correnti;4;Trasferimenti correnti;2;Trasferimenti correnti a Famiglie;2;Interventi assistenziali;999;Altri assegni e sussidi assistenziali;12/09/2017
2277;23;360;32.400,00;SOGGETTI DIVERSI;;12/09/2017;3957;50;506;1;Spese correnti;4;Trasferimenti correnti;2;Trasferimenti correnti a Famiglie;2;Interventi assistenziali;999;Altri assegni e sussidi assistenziali;12/09/2017
2277;24;720;32.400,00;SOGGETTI DIVERSI;;12/09/2017;3957;50;506;1;Spese correnti;4;Trasferimenti correnti;2;Trasferimenti correnti a Famiglie;2;Interventi assistenziali;999;Altri assegni e sussidi assistenziali;12/09/2017
2277;25;720;32.400,00;SOGGETTI DIVERSI;;12/09/2017;3957;50;506;1;Spese correnti;4;Trasferimenti correnti;2;Trasferimenti correnti a Famiglie;2;Interventi assistenziali;999;Altri assegni e sussidi assistenziali;12/09/2017
2277;26;720;32.400,00;SOGGETTI DIVERSI;;12/09/2017;3957;50;506;1;Spese correnti;4;Trasferimenti correnti;2;Trasferimenti correnti a Famiglie;2;Interventi assistenziali;999;Altri assegni e sussidi assistenziali;12/09/2017
2277;27;360;32.400,00;SOGGETTI DIVERSI;;12/09/2017;3957;50;506;1;Spese correnti;4;Trasferimenti correnti;2;Trasferimenti correnti a Famiglie;2;Interventi assistenziali;999;Altri assegni e sussidi assistenziali;12/09/2017
2277;28;720;32.400,00;SOGGETTI DIVERSI;;12/09/2017;3957;50;506;1;Spese correnti;4;Trasferimenti correnti;2;Trasferimenti correnti a Famiglie;2;Interventi assistenziali;999;Altri assegni e sussidi assistenziali;12/09/2017
2277;29;720;32.400,00;SOGGETTI DIVERSI;;12/09/2017;3957;50;506;1;Spese correnti;4;Trasferimenti correnti;2;Trasferimenti correnti a Famiglie;2;Interventi assistenziali;999;Altri assegni e sussidi assistenziali;12/09/2017
2277;30;720;32.400,00;SOGGETTI DIVERSI;;12/09/2017;3957;50;506;1;Spese correnti;4;Trasferimenti correnti;2;Trasferimenti correnti a Famiglie;2;Interventi assistenziali;999;Altri assegni e sussidi assistenziali;12/09/2017
2277;31;720;32.400,00;SOGGETTI DIVERSI;;12/09/2017;3957;50;506;1;Spese correnti;4;Trasferimenti correnti;2;Trasferimenti correnti a Famiglie;2;Interventi assistenziali;999;Altri assegni e sussidi assistenziali;12/09/2017
2277;32;720;32.400,00;SOGGETTI DIVERSI;;12/09/2017;3957;50;506;1;Spese correnti;4;Trasferimenti correnti;2;Trasferimenti correnti a Famiglie;2;Interventi assistenziali;999;Altri assegni e sussidi assistenziali;12/09/2017
2277;33;720;32.400,00;SOGGETTI DIVERSI;;12/09/2017;3957;50;506;1;Spese correnti;4;Trasferimenti correnti;2;Trasferimenti correnti a Famiglie;2;Interventi assistenziali;999;Altri assegni e sussidi assistenziali;12/09/2017
2277;34;720;32.400,00;SOGGETTI DIVERSI;;12/09/2017;3957;50;506;1;Spese correnti;4;Trasferimenti correnti;2;Trasferimenti correnti a Famiglie;2;Interventi assistenziali;999;Altri assegni e sussidi assistenziali;12/09/2017
2277;35;720;32.400,00;SOGGETTI DIVERSI;;12/09/2017;3957;50;506;1;Spese correnti;4;Trasferimenti correnti;2;Trasferimenti correnti a Famiglie;2;Interventi assistenziali;999;Altri assegni e sussidi assistenziali;12/09/2017
2277;36;720;32.400,00;SOGGETTI DIVERSI;;12/09/2017;3957;50;506;1;Spese correnti;4;Trasferimenti correnti;2;Trasferimenti correnti a Famiglie;2;Interventi assistenziali;999;Altri assegni e sussidi assistenziali;12/09/2017
2277;37;720;32.400,00;SOGGETTI DIVERSI;;12/09/2017;3957;50;506;1;Spese correnti;4;Trasferimenti correnti;2;Trasferimenti correnti a Famiglie;2;Interventi assistenziali;999;Altri assegni e sussidi assistenziali;12/09/2017
2277;38;120;32.400,00;SOGGETTI DIVERSI;;12/09/2017;3957;50;506;1;Spese correnti;4;Trasferimenti correnti;2;Trasferimenti correnti a Famiglie;2;Interventi assistenziali;999;Altri assegni e sussidi assistenziali;12/09/2017
2277;39;720;32.400,00;SOGGETTI DIVERSI;;12/09/2017;3957;50;506;1;Spese correnti;4;Trasferimenti correnti;2;Trasferimenti correnti a Famiglie;2;Interventi assistenziali;999;Altri assegni e sussidi assistenziali;12/09/2017
2277;40;720;32.400,00;SOGGETTI DIVERSI;;12/09/2017;3957;50;506;1;Spese correnti;4;Trasferimenti correnti;2;Trasferimenti correnti a Famiglie;2;Interventi assistenziali;999;Altri assegni e sussidi assistenziali;12/09/2017
2277;41;720;32.400,00;SOGGETTI DIVERSI;;12/09/2017;3957;50;506;1;Spese correnti;4;Trasferimenti correnti;2;Trasferimenti correnti a Famiglie;2;Interventi assistenziali;999;Altri assegni e sussidi assistenziali;12/09/2017
2277;42;720;32.400,00;SOGGETTI DIVERSI;;12/09/2017;3957;50;506;1;Spese correnti;4;Trasferimenti correnti;2;Trasferimenti correnti a Famiglie;2;Interventi assistenziali;999;Altri assegni e sussidi assistenziali;12/09/2017
2277;43;720;32.400,00;SOGGETTI DIVERSI;;12/09/2017;3957;50;506;1;Spese correnti;4;Trasferimenti correnti;2;Trasferimenti correnti a Famiglie;2;Interventi assistenziali;999;Altri assegni e sussidi assistenziali;12/09/2017
2277;44;720;32.400,00;SOGGETTI DIVERSI;;12/09/2017;3957;50;506;1;Spese correnti;4;Trasferimenti correnti;2;Trasferimenti correnti a Famiglie;2;Interventi assistenziali;999;Altri assegni e sussidi assistenziali;12/09/2017
2277;45;720;32.400,00;SOGGETTI DIVERSI;;12/09/2017;3957;50;506;1;Spese correnti;4;Trasferimenti correnti;2;Trasferimenti correnti a Famiglie;2;Interventi assistenziali;999;Altri assegni e sussidi assistenziali;12/09/2017
2277;46;720;32.400,00;SOGGETTI DIVERSI;;12/09/2017;3957;50;506;1;Spese correnti;4;Trasferimenti correnti;2;Trasferimenti correnti a Famiglie;2;Interventi assistenziali;999;Altri assegni e sussidi assistenziali;12/09/2017
2277;47;720;32.400,00;SOGGETTI DIVERSI;;12/09/2017;3957;50;506;1;Spese correnti;4;Trasferimenti correnti;2;Trasferimenti correnti a Famiglie;2;Interventi assistenziali;999;Altri assegni e sussidi assistenziali;12/09/2017
2277;48;720;32.400,00;SOGGETTI DIVERSI;;12/09/2017;3957;50;506;1;Spese correnti;4;Trasferimenti correnti;2;Trasferimenti correnti a Famiglie;2;Interventi assistenziali;999;Altri assegni e sussidi assistenziali;12/09/2017
2277;49;240;32.400,00;SOGGETTI DIVERSI;;12/09/2017;3957;50;506;1;Spese correnti;4;Trasferimenti correnti;2;Trasferimenti correnti a Famiglie;2;Interventi assistenziali;999;Altri assegni e sussidi assistenziali;12/09/2017
2278;1;480;13.200,00;SOGGETTI DIVERSI;;12/09/2017;3957;50;506;1;Spese correnti;4;Trasferimenti correnti;2;Trasferimenti correnti a Famiglie;2;Interventi assistenziali;999;Altri assegni e sussidi assistenziali;12/09/2017
2278;2;360;13.200,00;SOGGETTI DIVERSI;;12/09/2017;3957;50;506;1;Spese correnti;4;Trasferimenti correnti;2;Trasferimenti correnti a Famiglie;2;Interventi assistenziali;999;Altri assegni e sussidi assistenziali;12/09/2017
2278;3;2.160,00;13.200,00;SOGGETTI DIVERSI;;12/09/2017;3957;50;506;1;Spese correnti;4;Trasferimenti correnti;2;Trasferimenti correnti a Famiglie;2;Interventi assistenziali;999;Altri assegni e sussidi assistenziali;12/09/2017
2278;4;240;13.200,00;SOGGETTI DIVERSI;;12/09/2017;3957;50;506;1;Spese correnti;4;Trasferimenti correnti;2;Trasferimenti correnti a Famiglie;2;Interventi assistenziali;999;Altri assegni e sussidi assistenziali;12/09/2017
2278;5;600;13.200,00;SOGGETTI DIVERSI;;12/09/2017;3957;50;506;1;Spese correnti;4;Trasferimenti correnti;2;Trasferimenti correnti a Famiglie;2;Interventi assistenziali;999;Altri assegni e sussidi assistenziali;12/09/2017
2278;6;720;13.200,00;SOGGETTI DIVERSI;;12/09/2017;3957;50;506;1;Spese correnti;4;Trasferimenti correnti;2;Trasferimenti correnti a Famiglie;2;Interventi assistenziali;999;Altri assegni e sussidi assistenziali;12/09/2017
2278;7;600;13.200,00;SOGGETTI DIVERSI;;12/09/2017;3957;50;506;1;Spese correnti;4;Trasferimenti correnti;2;Trasferimenti correnti a Famiglie;2;Interventi assistenziali;999;Altri assegni e sussidi assistenziali;12/09/2017
2278;8;120;13.200,00;SOGGETTI DIVERSI;;12/09/2017;3957;50;506;1;Spese correnti;4;Trasferimenti correnti;2;Trasferimenti correnti a Famiglie;2;Interventi assistenziali;999;Altri assegni e sussidi assistenziali;12/09/2017
2278;9;720;13.200,00;SOGGETTI DIVERSI;;12/09/2017;3957;50;506;1;Spese correnti;4;Trasferimenti correnti;2;Trasferimenti correnti a Famiglie;2;Interventi assistenziali;999;Altri assegni e sussidi assistenziali;12/09/2017
2278;10;720;13.200,00;SOGGETTI DIVERSI;;12/09/2017;3957;50;506;1;Spese correnti;4;Trasferimenti correnti;2;Trasferimenti correnti a Famiglie;2;Interventi assistenziali;999;Altri assegni e sussidi assistenziali;12/09/2017
2278;11;720;13.200,00;SOGGETTI DIVERSI;;12/09/2017;3957;50;506;1;Spese correnti;4;Trasferimenti correnti;2;Trasferimenti correnti a Famiglie;2;Interventi assistenziali;999;Altri assegni e sussidi assistenziali;12/09/2017
2278;12;720;13.200,00;SOGGETTI DIVERSI;;12/09/2017;3957;50;506;1;Spese correnti;4;Trasferimenti correnti;2;Trasferimenti correnti a Famiglie;2;Interventi assistenziali;999;Altri assegni e sussidi assistenziali;12/09/2017
2278;13;720;13.200,00;SOGGETTI DIVERSI;;12/09/2017;3957;50;506;1;Spese correnti;4;Trasferimenti correnti;2;Trasferimenti correnti a Famiglie;2;Interventi assistenziali;999;Altri assegni e sussidi assistenziali;12/09/2017
2278;14;720;13.200,00;SOGGETTI DIVERSI;;12/09/2017;3957;50;506;1;Spese correnti;4;Trasferimenti correnti;2;Trasferimenti correnti a Famiglie;2;Interventi assistenziali;999;Altri assegni e sussidi assistenziali;12/09/2017
2278;15;720;13.200,00;SOGGETTI DIVERSI;;12/09/2017;3957;50;506;1;Spese correnti;4;Trasferimenti correnti;2;Trasferimenti correnti a Famiglie;2;Interventi assistenziali;999;Altri assegni e sussidi assistenziali;12/09/2017
2278;16;720;13.200,00;SOGGETTI DIVERSI;;12/09/2017;3957;50;506;1;Spese correnti;4;Trasferimenti correnti;2;Trasferimenti correnti a Famiglie;2;Interventi assistenziali;999;Altri assegni e sussidi assistenziali;12/09/2017
2278;17;720;13.200,00;SOGGETTI DIVERSI;;12/09/2017;3957;50;506;1;Spese correnti;4;Trasferimenti correnti;2;Trasferimenti correnti a Famiglie;2;Interventi assistenziali;999;Altri assegni e sussidi assistenziali;12/09/2017
2278;18;720;13.200,00;SOGGETTI DIVERSI;;12/09/2017;3957;50;506;1;Spese correnti;4;Trasferimenti correnti;2;Trasferimenti correnti a Famiglie;2;Interventi assistenziali;999;Altri assegni e sussidi assistenziali;12/09/2017
2278;19;720;13.200,00;SOGGETTI DIVERSI;;12/09/2017;3957;50;506;1;Spese correnti;4;Trasferimenti correnti;2;Trasferimenti correnti a Famiglie;2;Interventi assistenziali;999;Altri assegni e sussidi assistenziali;12/09/2017
2279;1;339,77;339,77;ABACO SPA;5325258DE8;12/09/2017;332;0;0;1;Spese correnti;3;Acquisto di beni e servizi;2;Acquisto di servizi;3;Aggi di riscossione;999;Altri aggi di riscossione n.a.c.;12/09/2017
2281;1;6,64;6,64;ABACO SPA;5325258DE8;12/09/2017;332;0;655;1;Spese correnti;3;Acquisto di beni e servizi;2;Acquisto di servizi;3;Aggi di riscossione;999;Altri aggi di riscossione n.a.c.;12/09/2017
2282;1;1.363,02;1.363,02;ABACO SPA;5325258DE8;12/09/2017;332;0;0;1;Spese correnti;3;Acquisto di beni e servizi;2;Acquisto di servizi;3;Aggi di riscossione;999;Altri aggi di riscossione n.a.c.;12/09/2017
2283;1;447,32;447,32;ABACO SPA;Z4B0FF1CA6;12/09/2017;332;0;0;1;Spese correnti;3;Acquisto di beni e servizi;2;Acquisto di servizi;3;Aggi di riscossione;999;Altri aggi di riscossione n.a.c.;12/09/2017
2284;1;2.260,62;2.260,62;IMPRESA EDILE BARIZZA SAS DI BARIZZA G&C;Z431EDB3BC;12/09/2017;649;0;404;1;Spese correnti;3;Acquisto di beni e servizi;2;Acquisto di servizi;99;Altri servizi;4;Altre spese per consultazioni elettorali dell'ente;12/09/2017
2285;1;9.096,80;9.096,80;SCANTAMBURLO PIETRO;Z511DC05BE;12/09/2017;2438;0;224;1;Spese correnti;3;Acquisto di beni e servizi;2;Acquisto di servizi;9;Manutenzione ordinaria e riparazioni;12;Manutenzione ordinaria e riparazioni di terreni e beni materiali non prodotti;12/09/2017
2286;1;77,08;77,08;ENI SPA DIVISIONE REFINING & MARKETING;Z991D1C5CE;12/09/2017;4121;0;76;1;Spese correnti;3;Acquisto di beni e servizi;1;Acquisto di beni;2;Altri beni di consumo;2;Carburanti, combustibili e lubrificanti;12/09/2017
2287;1;30.919,91;30.919,91;DUCALERESTAURO SRL;7155489053;12/09/2017;7450;2;609;2;Spese in conto capitale;2;Investimenti fissi lordi e acquisto di terreni;1;Beni materiali;10;Beni immobili di valore culturale, storico ed artistico;999;Beni immobili di valore culturale, storico ed artistico n.a.c.;12/09/2017
2288;1;37.871,84;37.871,84;DUCALERESTAURO SRL;7155489053;12/09/2017;7450;2;703;2;Spese in conto capitale;2;Investimenti fissi lordi e acquisto di terreni;1;Beni materiali;10;Beni immobili di valore culturale, storico ed artistico;999;Beni immobili di valore culturale, storico ed artistico n.a.c.;12/09/2017
2289;1;3.001,84;3.001,84;FIDELIA SRL - SOC. UNIPERSONALE;Z941F91C0;12/09/2017;993;0;495;1;Spese correnti;10;Altre spese correnti;4;Premi di assicurazione;99;Altri premi di assicurazione n.a.c.;999;Altri premi di assicurazione n.a.c.;12/09/2017
2290;1;5.504,40;5.504,40;NOBILE VINCENZO;;14/09/2017;3844;0;537;1;Spese correnti;3;Acquisto di beni e servizi;2;Acquisto di servizi;15;Contratti di servizio pubblico;8;Contratti di servizio di assistenza sociale residenziale e semiresidenziale;14/09/2017
2291;1;150;1.245,13;SOGGETTI DIVERSI;;14/09/2017;4157;0;16;1;Spese correnti;4;Trasferimenti correnti;2;Trasferimenti correnti a Famiglie;2;Interventi assistenziali;999;Altri assegni e sussidi assistenziali;14/09/2017
2291;2;248;1.245,13;SOGGETTI DIVERSI;;14/09/2017;4157;0;16;1;Spese correnti;4;Trasferimenti correnti;2;Trasferimenti correnti a Famiglie;2;Interventi assistenziali;999;Altri assegni e sussidi assistenziali;14/09/2017
2291;3;460;1.245,13;SOGGETTI DIVERSI;;14/09/2017;4157;0;16;1;Spese correnti;4;Trasferimenti correnti;2;Trasferimenti correnti a Famiglie;2;Interventi assistenziali;999;Altri assegni e sussidi assistenziali;14/09/2017
2291;4;150;1.245,13;SOGGETTI DIVERSI;;14/09/2017;4157;0;16;1;Spese correnti;4;Trasferimenti correnti;2;Trasferimenti correnti a Famiglie;2;Interventi assistenziali;999;Altri assegni e sussidi assistenziali;14/09/2017
2291;5;130;1.245,13;SOGGETTI DIVERSI;;14/09/2017;4157;0;16;1;Spese correnti;4;Trasferimenti correnti;2;Trasferimenti correnti a Famiglie;2;Interventi assistenziali;999;Altri assegni e sussidi assistenziali;14/09/2017
2291;6;107,13;1.245,13;SOGGETTI DIVERSI;;14/09/2017;4157;0;16;1;Spese correnti;4;Trasferimenti correnti;2;Trasferimenti correnti a Famiglie;2;Interventi assistenziali;999;Altri assegni e sussidi assistenziali;14/09/2017
2292;1;21,88;4.723,75;ATER AZ.TERR.EDIL.RESIDENZIALE;;14/09/2017;4157;0;476;1;Spese correnti;4;Trasferimenti correnti;2;Trasferimenti correnti a Famiglie;2;Interventi assistenziali;999;Altri assegni e sussidi assistenziali;14/09/2017
2292;2;23,87;4.723,75;SOGGETTI DIVERSI;;14/09/2017;4157;0;476;1;Spese correnti;4;Trasferimenti correnti;2;Trasferimenti correnti a Famiglie;2;Interventi assistenziali;999;Altri assegni e sussidi assistenziali;14/09/2017
2292;3;100;4.723,75;SOGGETTI DIVERSI;;14/09/2017;4157;0;476;1;Spese correnti;4;Trasferimenti correnti;2;Trasferimenti correnti a Famiglie;2;Interventi assistenziali;999;Altri assegni e sussidi assistenziali;14/09/2017
2292;4;130;4.723,75;SOGGETTI DIVERSI;;14/09/2017;4157;0;476;1;Spese correnti;4;Trasferimenti correnti;2;Trasferimenti correnti a Famiglie;2;Interventi assistenziali;999;Altri assegni e sussidi assistenziali;14/09/2017
2292;5;150;4.723,75;SOGGETTI DIVERSI;;14/09/2017;4157;0;476;1;Spese correnti;4;Trasferimenti correnti;2;Trasferimenti correnti a Famiglie;2;Interventi assistenziali;999;Altri assegni e sussidi assistenziali;14/09/2017
2292;6;150;4.723,75;SOGGETTI DIVERSI;;14/09/2017;4157;0;476;1;Spese correnti;4;Trasferimenti correnti;2;Trasferimenti correnti a Famiglie;2;Interventi assistenziali;999;Altri assegni e sussidi assistenziali;14/09/2017
2292;7;150;4.723,75;SOGGETTI DIVERSI;;14/09/2017;4157;0;476;1;Spese correnti;4;Trasferimenti correnti;2;Trasferimenti correnti a Famiglie;2;Interventi assistenziali;999;Altri assegni e sussidi assistenziali;14/09/2017
2292;8;100;4.723,75;SOGGETTI DIVERSI;;14/09/2017;4157;0;476;1;Spese correnti;4;Trasferimenti correnti;2;Trasferimenti correnti a Famiglie;2;Interventi assistenziali;999;Altri assegni e sussidi assistenziali;14/09/2017
2292;9;200;4.723,75;SOGGETTI DIVERSI;;14/09/2017;4157;0;476;1;Spese correnti;4;Trasferimenti correnti;2;Trasferimenti correnti a Famiglie;2;Interventi assistenziali;999;Altri assegni e sussidi assistenziali;14/09/2017
2292;10;50;4.723,75;SOGGETTI DIVERSI;;14/09/2017;4157;0;476;1;Spese correnti;4;Trasferimenti correnti;2;Trasferimenti correnti a Famiglie;2;Interventi assistenziali;999;Altri assegni e sussidi assistenziali;14/09/2017
2292;11;135;4.723,75;SOGGETTI DIVERSI;;14/09/2017;4157;0;476;1;Spese correnti;4;Trasferimenti correnti;2;Trasferimenti correnti a Famiglie;2;Interventi assistenziali;999;Altri assegni e sussidi assistenziali;14/09/2017
2292;12;240;4.723,75;SOGGETTI DIVERSI;;14/09/2017;4157;0;476;1;Spese correnti;4;Trasferimenti correnti;2;Trasferimenti correnti a Famiglie;2;Interventi assistenziali;999;Altri assegni e sussidi assistenziali;14/09/2017
2292;13;70;4.723,75;SOGGETTI DIVERSI;;14/09/2017;4157;0;476;1;Spese correnti;4;Trasferimenti correnti;2;Trasferimenti correnti a Famiglie;2;Interventi assistenziali;999;Altri assegni e sussidi assistenziali;14/09/2017
2292;14;590;4.723,75;SOGGETTI DIVERSI;;14/09/2017;4157;0;476;1;Spese correnti;4;Trasferimenti correnti;2;Trasferimenti correnti a Famiglie;2;Interventi assistenziali;999;Altri assegni e sussidi assistenziali;14/09/2017
2292;15;130;4.723,75;SOGGETTI DIVERSI;;14/09/2017;4157;0;476;1;Spese correnti;4;Trasferimenti correnti;2;Trasferimenti correnti a Famiglie;2;Interventi assistenziali;999;Altri assegni e sussidi assistenziali;14/09/2017
2292;16;150;4.723,75;SOGGETTI DIVERSI;;14/09/2017;4157;0;476;1;Spese correnti;4;Trasferimenti correnti;2;Trasferimenti correnti a Famiglie;2;Interventi assistenziali;999;Altri assegni e sussidi assistenziali;14/09/2017
2292;17;150;4.723,75;SOGGETTI DIVERSI;;14/09/2017;4157;0;476;1;Spese correnti;4;Trasferimenti correnti;2;Trasferimenti correnti a Famiglie;2;Interventi assistenziali;999;Altri assegni e sussidi assistenziali;14/09/2017
2292;18;600;4.723,75;SOGGETTI DIVERSI;;14/09/2017;4157;0;476;1;Spese correnti;4;Trasferimenti correnti;2;Trasferimenti correnti a Famiglie;2;Interventi assistenziali;999;Altri assegni e sussidi assistenziali;14/09/2017
2292;19;150;4.723,75;SOGGETTI DIVERSI;;14/09/2017;4157;0;476;1;Spese correnti;4;Trasferimenti correnti;2;Trasferimenti correnti a Famiglie;2;Interventi assistenziali;999;Altri assegni e sussidi assistenziali;14/09/2017
2292;20;150;4.723,75;SOGGETTI DIVERSI;;14/09/2017;4157;0;476;1;Spese correnti;4;Trasferimenti correnti;2;Trasferimenti correnti a Famiglie;2;Interventi assistenziali;999;Altri assegni e sussidi assistenziali;14/09/2017
2292;21;74;4.723,75;SOGGETTI DIVERSI;;14/09/2017;4157;0;476;1;Spese correnti;4;Trasferimenti correnti;2;Trasferimenti correnti a Famiglie;2;Interventi assistenziali;999;Altri assegni e sussidi assistenziali;14/09/2017
2292;22;300;4.723,75;SOGGETTI DIVERSI;;14/09/2017;4157;0;476;1;Spese correnti;4;Trasferimenti correnti;2;Trasferimenti correnti a Famiglie;2;Interventi assistenziali;999;Altri assegni e sussidi assistenziali;14/09/2017
2292;23;250;4.723,75;SOGGETTI DIVERSI;;14/09/2017;4157;0;476;1;Spese correnti;4;Trasferimenti correnti;2;Trasferimenti correnti a Famiglie;2;Interventi assistenziali;999;Altri assegni e sussidi assistenziali;14/09/2017
2292;24;200;4.723,75;SOGGETTI DIVERSI;;14/09/2017;4157;0;476;1;Spese correnti;4;Trasferimenti correnti;2;Trasferimenti correnti a Famiglie;2;Interventi assistenziali;999;Altri assegni e sussidi assistenziali;14/09/2017
2292;25;130;4.723,75;SOGGETTI DIVERSI;;14/09/2017;4157;0;476;1;Spese correnti;4;Trasferimenti correnti;2;Trasferimenti correnti a Famiglie;2;Interventi assistenziali;999;Altri assegni e sussidi assistenziali;14/09/2017
2292;26;70;4.723,75;SOGGETTI DIVERSI;;14/09/2017;4157;0;476;1;Spese correnti;4;Trasferimenti correnti;2;Trasferimenti correnti a Famiglie;2;Interventi assistenziali;999;Altri assegni e sussidi assistenziali;14/09/2017
2292;27;160;4.723,75;SOGGETTI DIVERSI;;14/09/2017;4157;0;476;1;Spese correnti;4;Trasferimenti correnti;2;Trasferimenti correnti a Famiglie;2;Interventi assistenziali;999;Altri assegni e sussidi assistenziali;14/09/2017
2292;28;100;4.723,75;SOGGETTI DIVERSI;;14/09/2017;4157;0;476;1;Spese correnti;4;Trasferimenti correnti;2;Trasferimenti correnti a Famiglie;2;Interventi assistenziali;999;Altri assegni e sussidi assistenziali;14/09/2017
2293;1;250;250;SOGGETTI DIVERSI;;14/09/2017;4157;0;19;1;Spese correnti;4;Trasferimenti correnti;2;Trasferimenti correnti a Famiglie;2;Interventi assistenziali;999;Altri assegni e sussidi assistenziali;14/09/2017
2294;1;2.767,00;2.767,00;FIDELIA SRL - SOC. UNIPERSONALE;ZAE1FD942F;18/09/2017;992;0;551;1;Spese correnti;10;Altre spese correnti;4;Premi di assicurazione;1;Premi di assicurazione contro i danni;3;Premi di assicurazione per responsabilit? civile verso terzi;18/09/2017
2295;1;49;49;FIDELIA SRL - SOC. UNIPERSONALE;Z3A1FD944B;18/09/2017;993;0;552;1;Spese correnti;10;Altre spese correnti;4;Premi di assicurazione;99;Altri premi di assicurazione n.a.c.;999;Altri premi di assicurazione n.a.c.;18/09/2017
2296;1;1.202,70;1.202,70;PULIAUTOMATIC SRL;Z891F98A9A;18/09/2017;1338;0;492;1;Spese correnti;3;Acquisto di beni e servizi;2;Acquisto di servizi;9;Manutenzione ordinaria e riparazioni;5;Manutenzione ordinaria e riparazioni di attrezzature;18/09/2017
2297;1;228,49;228,49;BORTOLATO SAS DI BORTOLATO ONORINO & C.;Z051DBAAAA;18/09/2017;2538;0;219;1;Spese correnti;3;Acquisto di beni e servizi;2;Acquisto di servizi;9;Manutenzione ordinaria e riparazioni;5;Manutenzione ordinaria e riparazioni di attrezzature;18/09/2017
2300;1;8.187,72;8.187,72;DIVERSI-AMMINISTRATORI COM.LI;;19/09/2017;30;99;0;1;Spese correnti;3;Acquisto di beni e servizi;2;Acquisto di servizi;1;Organi e incarichi istituzionali dell'amministrazione;1;Organi istituzionali dell'amministrazione - Indennit?;19/09/2017
2361;1;500;500;SOGGETTI DIVERSI;;20/09/2017;4157;0;476;1;Spese correnti;4;Trasferimenti correnti;2;Trasferimenti correnti a Famiglie;2;Interventi assistenziali;999;Altri assegni e sussidi assistenziali;20/09/2017
2362;1;55;55;KUWAIT PETROLEUM ITALIA SPA;Z021874A21;25/09/2017;121;7;77;1;Spese correnti;3;Acquisto di beni e servizi;1;Acquisto di beni;2;Altri beni di consumo;2;Carburanti, combustibili e lubrificanti;25/09/2017
2363;1;180;180;KUWAIT PETROLEUM ITALIA SPA;Z021874A21;25/09/2017;521;0;78;1;Spese correnti;3;Acquisto di beni e servizi;1;Acquisto di beni;2;Altri beni di consumo;2;Carburanti, combustibili e lubrificanti;25/09/2017
2364;1;617,44;617,44;C.E.I.F. DI BESSEGA VANNI;ZD51D68903;25/09/2017;522;0;174;1;Spese correnti;3;Acquisto di beni e servizi;1;Acquisto di beni;2;Altri beni di consumo;999;Altri beni e materiali di consumo n.a.c.;25/09/2017
2365;1;32,49;32,49;INITIAL ITALIA SPA;Z4D1F42D76;25/09/2017;548;0;466;1;Spese correnti;3;Acquisto di beni e servizi;2;Acquisto di servizi;9;Manutenzione ordinaria e riparazioni;3;Manutenzione ordinaria e riparazioni di mobili e arredi;25/09/2017
2366;1;2.200,00;2.200,00;ORCHESTRA DI FIATI DEL VENETO;Z6F1F9D6EF;25/09/2017;1849;0;501;1;Spese correnti;3;Acquisto di beni e servizi;2;Acquisto di servizi;99;Altri servizi;999;Altri servizi diversi n.a.c.;25/09/2017
2367;1;326,98;326,98;KUWAIT PETROLEUM ITALIA SPA;Z021874A21;25/09/2017;3521;0;80;1;Spese correnti;3;Acquisto di beni e servizi;1;Acquisto di beni;2;Altri beni di consumo;2;Carburanti, combustibili e lubrificanti;25/09/2017
2368;1;350;350;KUWAIT PETROLEUM ITALIA SPA;Z021874A21;25/09/2017;4121;0;79;1;Spese correnti;3;Acquisto di beni e servizi;1;Acquisto di beni;2;Altri beni di consumo;2;Carburanti, combustibili e lubrificanti;25/09/2017
2369;1;858,74;858,74;LE LIBRERIE SRL UN.LOC.LIBRERIA MODERNA;7,03E+35;25/09/2017;8430;0;278;2;Spese in conto capitale;2;Investimenti fissi lordi e acquisto di terreni;1;Beni materiali;99;Altri beni materiali;1;Materiale bibliografico;25/09/2017
2370;1;356,94;356,94;IDROGEO SRL UNIPERSONALE;7071294867;25/09/2017;8503;0;360;2;Spese in conto capitale;2;Investimenti fissi lordi e acquisto di terreni;1;Beni materiali;9;Beni immobili;12;Infrastrutture stradali;25/09/2017
2371;1;3.129,69;3.129,69;GOTTARDO DINO & C.SNC;Z201F43EBF;25/09/2017;8503;0;467;2;Spese in conto capitale;2;Investimenti fissi lordi e acquisto di terreni;1;Beni materiali;9;Beni immobili;12;Infrastrutture stradali;25/09/2017
2372;1;1.185,62;1.185,62;GOTTARDO SRL;Z031F5AE73;25/09/2017;8503;0;469;2;Spese in conto capitale;2;Investimenti fissi lordi e acquisto di terreni;1;Beni materiali;9;Beni immobili;12;Infrastrutture stradali;25/09/2017
2373;1;6.833,22;6.833,22;AEC ILLUMINAZIONE SRL;ZDC1EA520A;25/09/2017;8567;0;371;2;Spese in conto capitale;2;Investimenti fissi lordi e acquisto di terreni;1;Beni materiali;9;Beni immobili;12;Infrastrutture stradali;25/09/2017
2374;1;7.027,20;7.027,20;PHILIPS SPA - DIVISIONE LIGHTING;ZB11EB4755;25/09/2017;8567;0;375;2;Spese in conto capitale;2;Investimenti fissi lordi e acquisto di terreni;1;Beni materiali;9;Beni immobili;12;Infrastrutture stradali;25/09/2017
2375;1;15.000,00;15.000,00;F.B.F. IMPIANTI SRL;ZA91EFBA71;25/09/2017;7457;0;452;2;Spese in conto capitale;2;Investimenti fissi lordi e acquisto di terreni;1;Beni materiali;9;Beni immobili;999;Beni immobili n.a.c.;25/09/2017
2376;1;48.477,68;48.477,68;BASSO S.A.S. DI BASSO SANDRO;ZC01E6B5C1;25/09/2017;8503;0;344;2;Spese in conto capitale;2;Investimenti fissi lordi e acquisto di terreni;1;Beni materiali;9;Beni immobili;12;Infrastrutture stradali;25/09/2017
2377;1;15.000,00;15.000,00;ECOPAVI SRL;ZBC1EFBAA9;25/09/2017;8503;0;410;2;Spese in conto capitale;2;Investimenti fissi lordi e acquisto di terreni;1;Beni materiali;9;Beni immobili;12;Infrastrutture stradali;25/09/2017
2378;1;13.541,08;13.541,08;FERIOTTI NICOLA;ZA5197C6DC;25/09/2017;8601;0;912;2;Spese in conto capitale;2;Investimenti fissi lordi e acquisto di terreni;1;Beni materiali;9;Beni immobili;12;Infrastrutture stradali;25/09/2017
2379;1;6.326,20;18.652,50;TELEGAMMA SAS DI GAMMA DIVIDINO & C.;ZBA1DFD432;25/09/2017;8800;1;254;2;Spese in conto capitale;2;Investimenti fissi lordi e acquisto di terreni;1;Beni materiali;99;Altri beni materiali;999;Altri beni materiali diversi;25/09/2017
2379;2;12.325,30;18.652,50;TELEGAMMA SAS DI GAMMA DIVIDINO & C.;ZBA1DFD432;25/09/2017;8800;1;254;2;Spese in conto capitale;2;Investimenti fissi lordi e acquisto di terreni;1;Beni materiali;99;Altri beni materiali;999;Altri beni materiali diversi;25/09/2017
